{"text_format":"1","workbook":"xlsx","n_sheets":3,"sheets":["main","경기진행표","순위표"],"not_rendered":{"charts":0,"images":1,"macros":1,"external_links":0,"defined_names":5,"comments":0,"pivot_tables":0},"unopened":[],"bounds":{"document_bytes":16777216,"sheet_cells":100000,"rows_first":2000,"rows_last":500,"rows_between":2000,"halvings":0,"cell_chars":16384,"cell_head_chars":4096},"cells_cut":0,"cells_raw":0,"read":"whole","date_system":"1900"}

{"sheet":"main","index":0,"n_rows":437,"n_cols":86,"rows_kept":437,"cut":false,"hidden":false,"merged":[[31,2,31,4],[32,2,32,4],[33,2,33,4],[6,14,6,18],[34,2,34,4],[20,2,20,4],[10,1,10,3],[11,1,11,2],[13,2,13,4],[26,2,26,4],[27,2,27,4],[28,2,28,4],[29,2,29,4],[30,2,30,4],[21,2,21,4],[22,2,22,4],[43,2,43,4],[35,2,35,4],[36,2,36,4],[37,2,37,4],[38,2,38,4],[39,2,39,4],[40,2,40,4],[41,2,41,4],[42,2,42,4],[23,2,23,4],[24,2,24,4],[25,2,25,4],[15,2,15,4],[1,32,1,33],[16,2,16,4],[17,2,17,4],[18,2,18,4],[19,2,19,4],[1,24,1,25],[14,2,14,4],[6,1,6,2],[7,1,7,2],[8,1,8,2],[9,1,9,2],[1,30,1,31],[1,34,1,35],[1,36,1,37],[1,38,1,39],[1,84,1,85],[1,64,1,65],[1,66,1,67],[1,68,1,69],[1,70,1,71],[1,72,1,73],[1,74,1,75],[1,40,1,41],[1,42,1,43],[1,44,1,45],[1,46,1,47],[1,48,1,49],[1,50,1,51],[1,76,1,77],[1,78,1,79],[1,80,1,81],[1,82,1,83],[1,62,1,63],[1,52,1,53],[1,54,1,55],[1,56,1,57],[1,58,1,59],[1,60,1,61]]}
[]
[null,null,null,null,"리그전 경기진행표 순위표 만들기",null,null,null,null,null,null,null,null,null,null,null,null,null,null,null,null,null,null,null,null,null,null,null,null,"N",3,null,4,null,5,null,6,null,7,null,8,null,9,null,10,null,11,null,12,null,13,null,14,null,15,null,16,null,17,null,18,null,19,null,20,null,21,null,22,null,23,null,24,null,25,null,26,null,27,null,28,null,29,null,30]
[null,null,null,null,null,null,null,null,null,null,null,null,null,null,null,null,null,null,null,null,null,null,null,null,null,null,null,null,null,1,1,3,1,4,1,5,1,6,1,7,1,8,1,9,1,10,1,11,1,12,1,13,1,14,1,15,1,16,1,17,1,18,1,19,1,20,1,21,1,22,1,23,1,24,1,25,1,26,1,27,1,28,1,29,1,30]
[null,null,null,null,null,null,null,null,null,null,null,null,null,null,null,null,null,null,null,null,null,null,null,null,null,null,null,null,null,2,1,2,2,3,2,4,2,5,2,6,2,7,2,8,2,9,2,10,2,11,2,12,2,13,2,14,2,15,2,16,2,17,2,18,2,19,2,20,2,21,2,22,2,23,2,24,2,25,2,26,2,27,2,28,2,29]
[null,null,null,null,null,null,null,null,null,null,null,null,null,null,null,null,null,null,null,null,null,null,null,null,null,null,null,null,null,3,2,3,1,2,1,3,3,4,3,5,3,6,3,7,3,8,3,9,3,10,3,11,3,12,3,13,3,14,3,15,3,16,3,17,3,18,3,19,3,20,3,21,3,22,3,23,3,24,3,25,3,26,3,27,3,28]
[null,null,null,null,null,null,{"$f":"IF(SUM(H9:L34)=SUM(E8),\"\",\"오류\")","v":""},{"$f":"IF(OR(H7=\"\",$E$12=\"\"),\"\",ROUND((H8/$E$12-INT(H8/$E$12))*$E$12,0))","v":6},{"$f":"IF(OR(I7=\"\",$E$12=\"\"),\"\",ROUND((I8/$E$12-INT(I8/$E$12))*$E$12,0))","v":6},{"$f":"IF(OR(J7=\"\",$E$12=\"\"),\"\",ROUND((J8/$E$12-INT(J8/$E$12))*$E$12,0))","v":6},{"$f":"IF(OR(K7=\"\",$E$12=\"\"),\"\",ROUND((K8/$E$12-INT(K8/$E$12))*$E$12,0))","v":6},{"$f":"IF(OR(L7=\"\",$E$12=\"\"),\"\",ROUND((L8/$E$12-INT(L8/$E$12))*$E$12,0))","v":6},null,null,null,null,null,null,null,null,{"$f":"O7&\"_\"&TEXT(TODAY(),\"YYMMDD\")","v":"30팀_231110"},{"$f":"COUNTIF(V8:V11,E10)","v":1},null,null,null,null,null,null,null,4,null,null,3,4,2,5,1,2,1,4,4,5,4,6,4,7,4,8,4,9,4,10,4,11,4,12,4,13,4,14,4,15,4,16,4,17,4,18,4,19,4,20,4,21,4,22,4,23,4,24,4,25,4,26,4,27]
[null,"팀수",null,"T",{"$f":"IF(MAX($B$15:$B$44)=0,\"\",MAX($B$15:$B$44))","v":30},null,"코트번호",{"$f":"IF(COLUMN(A1)>$E$10,\"\",\"A\")","v":"A"},{"$f":"IF(COLUMN(B1)>$E$10,\"\",\"B\")","v":"B"},{"$f":"IF(COLUMN(C1)>$E$10,\"\",\"C\")","v":"C"},{"$f":"IF(COLUMN(D1)>$E$10,\"\",\"D\")","v":"D"},{"$f":"IF(COLUMN(E1)>$E$10,\"\",\"E\")","v":"E"},null,"파일명","30팀",null,null,null,null,null,1,null,null,null,null,null,null,null,null,5,null,null,1,3,3,4,3,6,2,7,1,2,1,5,5,6,5,7,5,8,5,9,5,10,5,11,5,12,5,13,5,14,5,15,5,16,5,17,5,18,5,19,5,20,5,21,5,22,5,23,5,24,5,25,5,26]
[null,"경기수",null,"N",{"$f":"IF(E7=\"\",\"\",E7*(E7-1)/2)","v":435},null,"총경기수",{"$f":"IF(OR($E$8=\"\",H7=\"\"),\"\",E8-SUM(I8:L8))","v":87},{"$f":"IF(OR($E$8=\"\",I7=\"\"),\"\",INT($E$8/$E$10)+IF(COLUMN(B1)<=($E$8/$E$10-INT($E$8/$E$10))*$E$10,1,0))","v":87},{"$f":"IF(OR($E$8=\"\",J7=\"\"),\"\",INT($E$8/$E$10)+IF(COLUMN(C1)<=($E$8/$E$10-INT($E$8/$E$10))*$E$10,1,0))","v":87},{"$f":"IF(OR($E$8=\"\",K7=\"\"),\"\",INT($E$8/$E$10)+IF(COLUMN(D1)<=($E$8/$E$10-INT($E$8/$E$10))*$E$10,1,0))","v":87},{"$f":"IF(OR($E$8=\"\",L7=\"\"),\"\",INT($E$8/$E$10)+IF(COLUMN(E1)<=($E$8/$E$10-INT($E$8/$E$10))*$E$10,1,0))","v":87},null,null,null,null,null,null,null,null,2,2,null,null,null,null,null,null,null,6,null,null,2,4,1,2,4,5,3,6,3,8,2,9,1,2,1,6,6,7,6,8,6,9,6,10,6,11,6,12,6,13,6,14,6,15,6,16,6,17,6,18,6,19,6,20,6,21,6,22,6,23,6,24,6,25]
[null,"다음경기",null,null,{"$f":"IF(E7=\"\",\"\",INT((E7-1)/2))&\"~\"&IF(E7=\"\",\"\",ROUNDUP((E7+1)/2,0))","v":"14~16"},null,{"$f":"IF(H9=\"\",\"\",ROW()-8&\"R\")","v":"1R"},{"$f":"IF(H$6=\"\",\"\",IF(ROW(A1)<=$E$12,INT(H$8/$E$12)+IF(ROW(A1)<=H$6,1,0),\"\"))","v":10},{"$f":"IF(I$6=\"\",\"\",IF(ROW(B1)<=$E$12,INT(I$8/$E$12)+IF(ROW(B1)<=I$6,1,0),\"\"))","v":10},{"$f":"IF(J$6=\"\",\"\",IF(ROW(C1)<=$E$12,INT(J$8/$E$12)+IF(ROW(C1)<=J$6,1,0),\"\"))","v":10},{"$f":"IF(K$6=\"\",\"\",IF(ROW(D1)<=$E$12,INT(K$8/$E$12)+IF(ROW(D1)<=K$6,1,0),\"\"))","v":10},{"$f":"IF(L$6=\"\",\"\",IF(ROW(E1)<=$E$12,INT(L$8/$E$12)+IF(ROW(E1)<=L$6,1,0),\"\"))","v":10},null,"팀수","참가한 팀의 수 (최소 3팀 이상 동작.) - 입력",null,null,null,null,null,3,{"$f":"IF(ROW(A3)<=INT(($E$7-1)/4),ROW(A3),\"\")","v":3},null,null,null,null,null,null,null,7,null,null,null,null,3,5,1,3,4,5,4,7,3,8,3,10,2,11,1,2,1,7,7,8,7,9,7,10,7,11,7,12,7,13,7,14,7,15,7,16,7,17,7,18,7,19,7,20,7,21,7,22,7,23,7,24]
[null,"코트수",null,"C",5,null,"2R",10,10,{"$f":"IF(J$6=\"\",\"\",IF(ROW(C2)<=$E$12,INT(J$8/$E$12)+IF(ROW(C2)<=J$6,1,0),\"\"))","v":10},{"$f":"IF(K$6=\"\",\"\",IF(ROW(D2)<=$E$12,INT(K$8/$E$12)+IF(ROW(D2)<=K$6,1,0),\"\"))","v":10},{"$f":"IF(L$6=\"\",\"\",IF(ROW(E2)<=$E$12,INT(L$8/$E$12)+IF(ROW(E2)<=L$6,1,0),\"\"))","v":10},null,"경기수","리그전 총 경기수",null,null,null,null,null,4,{"$f":"IF(ROW(A4)<=INT(($E$7-1)/4),ROW(A4),\"\")","v":4},null,null,null,null,null,null,null,8,null,null,null,null,1,4,2,4,1,2,5,6,4,7,4,9,3,10,3,12,2,13,1,2,1,8,8,9,8,10,8,11,8,12,8,13,8,14,8,15,8,16,8,17,8,18,8,19,8,20,8,21,8,22,8,23]
[null,"N/(C.R)",null,null,10,null,"3R",10,10,10,10,10,null,"다음경기","1코트일 때 각 팀별 이루어지는 다음 경기",null,null,null,null,null,5,{"$f":"IF(ROW(A5)<=INT(($E$7-1)/4),ROW(A5),\"\")","v":5},null,null,null,null,null,null,null,9,null,null,null,null,2,3,5,6,3,7,1,3,5,6,5,8,4,9,4,11,3,12,3,14,2,15,1,2,1,9,9,10,9,11,9,12,9,13,9,14,9,15,9,16,9,17,9,18,9,19,9,20,9,21,9,22]
[null,"총라운드",null,"R",{"$f":"IF(OR(SUM(E8)<1,E10=\"\",E11=\"\"),\"\",ROUNDUP(E8/E10/E11,0))","v":9},null,"4R",10,10,10,10,10,null,null,"2코트일 때는 코트수로 나눔  다음경기/2",null,null,null,null,null,6,null,null,null,null,null,null,null,null,10,null,null,null,null,4,5,1,4,4,6,2,4,1,2,6,7,5,8,5,10,4,11,4,13,3,14,3,16,2,17,1,2,1,10,10,11,10,12,10,13,10,14,10,15,10,16,10,17,10,18,10,19,10,20,10,21]
[null,null,null,null,null,null,"5R",10,10,10,10,10,null,"코트수","리그전 진행할 때 사용되는 코트 수",null,null,null,null,null,7,null,null,null,null,null,null,null,null,11,null,null,null,null,null,null,3,5,1,5,5,8,3,9,1,3,6,7,6,9,5,10,5,12,4,13,4,15,3,16,3,18,2,19,1,2,1,11,11,12,11,13,11,14,11,15,11,16,11,17,11,18,11,19,11,20]
[null,"번호","팀명",null,null,null,"6R",10,10,10,10,10,null,null,"사용범위 2~ 다음경기/2 (작은값) 사이",null,null,null,null,null,8,null,null,null,null,null,null,null,null,12,null,null,null,null,null,null,2,6,2,3,6,7,4,8,2,4,1,2,7,8,6,9,6,11,5,12,5,14,4,15,4,17,3,18,3,20,2,21,1,2,1,12,12,13,12,14,12,15,12,16,12,17,12,18,12,19]
[null,{"$f":"IF(C15<>\"\",ROW(A1),\"\")","v":1},"인스텝킥",null,null,null,"7R",9,9,9,9,9,null,"경기수/(1코트.1라운드) - 입력",null,null,null,null,null,null,9,null,null,null,null,null,null,null,null,13,null,null,null,null,null,null,1,5,4,7,1,4,5,7,5,10,3,11,1,3,7,8,7,10,6,11,6,13,5,14,5,16,4,17,4,19,3,20,3,22,2,23,1,2,1,13,13,14,13,15,13,16,13,17,13,18]
[null,2,"힐킥","",null,null,"8R",9,9,9,9,9,null,null,"1코트 1라운드에서 이루어지는 경기 수",null,null,null,null,null,10,null,null,null,null,null,null,null,null,14,null,null,null,null,null,null,4,6,5,6,3,5,1,6,6,9,4,10,2,4,1,2,8,9,7,10,7,12,6,13,6,15,5,16,5,18,4,19,4,21,3,22,3,24,2,25,1,2,1,14,14,15,14,16,14,17]
[null,3,"발리킥","",null,null,"9R",9,9,9,9,9,null,"총라운드","모든 리그 종료시 소요되는 라운드",null,null,null,null,null,11,null,null,null,null,null,null,null,null,15,null,null,null,null,null,null,2,3,1,3,2,6,2,3,7,8,5,9,5,12,3,13,1,3,8,9,8,11,7,12,7,14,6,15,6,17,5,18,5,20,4,21,4,23,3,24,3,26,2,27,1,2,1,15,15,16]
[null,4,"토킥","",null,null,"","","","","","",null,null,null,null,null,null,null,null,12,null,null,null,null,null,null,null,null,16,null,null,null,null,null,null,null,null,2,4,7,8,4,9,1,4,6,8,6,11,4,12,2,4,1,2,9,10,8,11,8,13,7,14,7,16,6,17,6,19,5,20,5,22,4,23,4,25,3,26,3,28,2,29,1,2]
[null,5,"발날차기","",null,null,"","","","","","",null,"사용방법",null,null,null,null,null,null,13,null,null,null,null,null,null,null,null,17,null,null,null,null,null,null,null,null,5,7,1,5,5,8,3,5,1,7,7,10,5,11,5,14,3,15,1,3,9,10,9,12,8,13,8,15,7,16,7,18,6,19,6,21,5,22,5,24,4,25,4,27,3,28,3,30]
[null,6,"인사이드킥","",null,null,"","","","","","",null,null,"1. 팀명을 입력.",null,null,null,null,null,14,null,null,null,null,null,null,null,null,18,null,null,null,null,null,null,null,null,1,6,4,6,6,7,2,6,2,3,8,9,6,10,6,13,4,14,2,4,1,2,10,11,9,12,9,14,8,15,8,17,7,18,7,20,6,21,6,23,5,24,5,26,4,27,4,29]
[null,7,"헬리콥터킥 ","",null,null,"","","","","","",null,null,"2. 코트수를 입력.",null,null,null,null,null,15,null,null,null,null,null,null,null,null,19,null,null,null,null,null,null,null,null,3,4,3,7,1,3,7,10,4,11,1,4,7,9,7,12,5,13,5,16,3,17,1,3,10,11,10,13,9,14,9,16,8,17,8,19,7,20,7,22,6,23,6,25,5,26,5,28]
[null,8,"바이시클킥","",null,null,"","","","","","",null,null,"3. 경기수/(코트.라운드) N/(C.R) 입력",null,null,null,null,null,null,null,null,null,null,null,null,null,null,20,null,null,null,null,null,null,null,null,2,5,2,8,2,4,8,9,5,10,3,5,1,8,8,11,6,12,6,15,4,16,2,4,1,2,11,12,10,13,10,15,9,16,9,18,8,19,8,21,7,22,7,24,6,25,6,27]
[null,9,"코너킥","",null,null,"","","","","","",null,null,"4. 파일명 입력",null,null,null,null,null,null,null,null,null,null,null,null,null,null,21,null,null,null,null,null,null,null,null,6,7,1,6,5,9,1,5,6,9,2,6,2,3,9,10,7,11,7,14,5,15,5,18,3,19,1,3,11,12,11,14,10,15,10,17,9,18,9,20,8,21,8,23,7,24,7,26]
[null,10,"발등차기","",null,null,"","","","","","",null,null,"5. 만들기 버튼 클릭",null,null,null,null,null,{"$f":"IF(COUNTA(C15:C44)*3<=3,\"참가팀 전체 팀명을 입력하여주세요.\",\"\")","v":""},null,null,null,null,null,null,null,null,22,null,null,null,null,null,null,null,null,null,null,5,7,6,8,4,6,7,8,7,12,4,13,1,4,8,10,8,13,6,14,6,17,4,18,2,4,1,2,12,13,11,14,11,16,10,17,10,19,9,20,9,22,8,23,8,25]
[null,11,"라보나킥","",null,null,"","","",{"$f":"IF(J$6=\"\",\"\",IF(ROW(C17)<=$E$12,INT(J$8/$E$12)+IF(ROW(C17)<=J$6,1,0),\"\"))","v":""},{"$f":"IF(K$6=\"\",\"\",IF(ROW(D17)<=$E$12,INT(K$8/$E$12)+IF(ROW(D17)<=K$6,1,0),\"\"))","v":""},{"$f":"IF(L$6=\"\",\"\",IF(ROW(E17)<=$E$12,INT(L$8/$E$12)+IF(ROW(E17)<=L$6,1,0),\"\"))","v":""},null,null,null,null,null,null,null,null,{"$f":"IF(E10=\"\",\"경기진행할 코트수를 기록\",\"\")","v":""},null,null,null,null,null,null,null,null,23,null,null,null,null,null,null,null,null,null,null,4,8,1,7,3,7,1,3,8,11,5,12,3,5,1,9,9,12,7,13,7,16,5,17,5,20,3,21,1,3,12,13,12,15,11,16,11,18,10,19,10,21,9,22,9,24]
[null,12,"프런트킥","",null,null,"","","","","","",null,"작성",{"$f":"IFERROR(INDEX(U24:U29,MIN(IF(U24:U29=\"\",\"\",ROW(A1:A6)))),\"\")","v":""},null,null,null,null,null,{"$f":"IF(E11=\"\",\"N/(C.R) 1코트 1라운드 경기수 \"&IF(E10=\"\",\"기록\",IF(V6=0,\"수정\",\"\")),\"\")","v":""},null,null,null,null,null,null,null,null,24,null,null,null,null,null,null,null,null,null,null,2,3,3,4,2,8,2,4,9,10,6,11,2,6,2,3,10,11,8,12,8,15,6,16,6,19,4,20,2,4,1,2,13,14,12,15,12,17,11,18,11,20,10,21,10,23]
[null,13,"플로그킥","",null,null,"","","","","","",null,"안내문",{"$f":"IF(O26=\"\",\"모든 입력 완료 후 [만들기] 단추를 클릭\",\"\")","v":"모든 입력 완료 후 [만들기] 단추를 클릭"},null,null,null,null,null,{"$f":"IF(O7=\"\",\"파일명 입력\",\"\")","v":""},null,null,null,null,null,null,null,null,25,null,null,null,null,null,null,null,null,null,null,1,7,2,5,9,10,5,11,1,5,7,10,7,14,4,15,1,4,9,11,9,14,7,15,7,18,5,19,5,22,3,23,1,3,13,14,13,16,12,17,12,19,11,20,11,22]
[null,14,"미들킥","",null,null,"","","","","","",null,null,null,null,null,null,null,null,{"$f":"IF(MAX(V7:V11)<E10,\"코트수를 다시 입력.\",\"\")","v":""},null,null,null,null,null,null,null,null,26,null,null,null,null,null,null,null,null,null,null,6,8,6,9,1,6,6,10,4,6,8,9,8,13,5,14,3,5,1,10,10,13,8,14,8,17,6,18,6,21,4,22,2,4,1,2,14,15,13,16,13,18,12,19,12,21]
[null,15,"사이드킥","",null,null,"","","","","","",null,null,null,null,null,null,null,null,{"$f":"IF(MAX(B15:B44)=COUNTA(C15:C44),\"\",\"팀명 빈칸없이 위에서 차례로 입력.\")","v":""},null,null,null,null,null,null,null,null,27,null,null,null,null,null,null,null,null,null,null,2,5,7,8,5,7,7,9,3,7,1,3,9,12,6,13,2,6,2,3,11,12,9,13,9,16,7,17,7,20,5,21,5,24,3,25,1,3,14,15,14,17,13,18,13,20]
[null,16,"플러터킥 ","",null,null,"","","","","","",null,null,null,null,null,null,null,null,null,null,null,null,null,null,null,null,null,28,null,null,null,null,null,null,null,null,null,null,3,4,1,4,4,8,1,8,2,8,2,4,10,11,7,12,7,16,4,17,1,4,10,12,10,15,8,16,8,19,6,20,6,23,4,24,2,4,1,2,15,16,14,17,14,19]
[null,17,"오버헤드킥","",null,null,"","","","","","",null,null,null,null,null,null,null,null,null,null,null,null,null,null,null,null,null,29,null,null,null,null,null,null,null,null,null,null,null,null,3,5,3,9,3,4,9,12,5,13,1,5,8,11,8,15,5,16,3,5,1,11,11,14,9,15,9,18,7,19,7,22,5,23,5,26,3,27,1,3,15,16,15,18]
[null,18,"하이킥","",null,null,"","","","","","",null,null,null,null,null,null,null,null,null,null,null,null,null,null,null,null,null,30,null,null,null,null,null,null,null,null,null,null,null,null,2,6,2,10,2,5,10,11,6,12,4,6,9,10,9,14,6,15,2,6,2,3,12,13,10,14,10,17,8,18,8,21,6,22,6,25,4,26,2,4,1,2,16,17]
[null,19,"바나나킥","",null,null,"","","","","","",null,null,null,null,null,null,null,null,null,null,null,null,null,null,null,null,null,31,null,null,null,null,null,null,null,null,null,null,null,null,7,9,1,7,6,11,1,6,7,11,3,7,1,3,10,13,7,14,7,18,4,19,1,4,11,13,11,16,9,17,9,20,7,21,7,24,5,25,5,28,3,29,1,3]
[null,20,"인프런트킥","",null,null,"","","","","","",null,null,null,null,null,null,null,null,null,null,null,null,null,null,null,null,null,32,null,null,null,null,null,null,null,null,null,null,null,null,1,8,6,8,7,10,5,7,8,10,2,8,2,4,11,12,8,13,8,17,5,18,3,5,1,12,12,15,10,16,10,19,8,20,8,23,6,24,6,27,4,28,2,4]
[null,21,"안축차기","",null,null,"",{"$f":"IF(H$6=\"\",\"\",IF(ROW(A27)<=$E$12,INT(H$8/$E$12)+IF(ROW(A27)<=H$6,1,0),\"\"))","v":""},{"$f":"IF(I$6=\"\",\"\",IF(ROW(B27)<=$E$12,INT(I$8/$E$12)+IF(ROW(B27)<=I$6,1,0),\"\"))","v":""},"","","",null,null,null,null,null,null,null,null,null,null,null,null,null,null,null,null,null,33,null,null,null,null,null,null,null,null,null,null,null,null,4,5,5,9,8,9,4,8,1,9,9,14,5,15,1,5,9,12,9,16,6,17,2,6,2,3,13,14,11,15,11,18,9,19,9,22,7,23,7,26,5,27,5,30]
[null,22,"프리킥",null,null,null,"","","","","","",null,null,null,null,null,null,null,null,null,null,null,null,null,null,null,null,null,34,null,null,null,null,null,null,null,null,null,null,null,null,3,6,4,10,1,4,3,9,3,4,10,13,6,14,4,6,10,11,10,15,7,16,7,20,4,21,1,4,12,14,12,17,10,18,10,21,8,22,8,25,6,26,6,29]
[null,23,"시저킥",null,null,null,"","","","","","",null,null,null,null,null,null,null,null,null,null,null,null,null,null,null,null,null,35,null,null,null,null,null,null,null,null,null,null,null,null,2,7,2,3,3,5,2,10,2,5,11,12,7,13,3,7,1,3,11,14,8,15,8,19,5,20,3,5,1,13,13,16,11,17,11,20,9,21,9,24,7,25,7,28]
[null,24,"백워드킥",null,null,null,"","","","","","",null,null,null,null,null,null,null,null,null,null,null,null,null,null,null,null,null,36,null,null,null,null,null,null,null,null,null,null,null,null,8,9,1,8,2,6,11,12,6,13,1,6,8,12,2,8,2,4,12,13,9,14,9,18,6,19,2,6,2,3,14,15,12,16,12,19,10,20,10,23,8,24,8,27]
[null,25,"페널티킥",null,null,null,"","","","","","",null,null,null,null,null,null,null,null,null,null,null,null,null,null,null,null,null,37,null,null,null,null,null,null,null,null,null,null,null,null,null,null,7,9,7,11,1,7,7,12,5,7,9,11,9,16,5,17,1,5,10,13,10,17,7,18,7,22,4,23,1,4,13,15,13,18,11,19,11,22,9,23,9,26]
[null,26,"넘어차기",null,null,null,"","","","","","",null,null,null,null,null,null,null,null,null,null,null,null,null,null,null,null,null,38,null,null,null,null,null,null,null,null,null,null,null,null,null,null,6,10,8,10,6,8,8,11,4,8,1,10,10,15,6,16,4,6,11,12,11,16,8,17,8,21,5,22,3,5,1,14,14,17,12,18,12,21,10,22,10,25]
[null,27,"뛰어차기",null,null,null,"","","","","","",null,null,null,null,null,null,null,null,null,null,null,null,null,null,null,null,null,39,null,null,null,null,null,null,null,null,null,null,null,null,null,null,2,5,1,9,5,9,9,10,3,9,3,4,11,14,7,15,3,7,1,3,12,15,9,16,9,20,6,21,2,6,2,3,15,16,13,17,13,20,11,21,11,24]
[null,28,"발코차기",null,null,null,"","","","","","",null,null,null,null,null,null,null,null,null,null,null,null,null,null,null,null,null,40,null,null,null,null,null,null,null,null,null,null,null,null,null,null,3,4,4,5,4,10,1,4,2,10,2,5,12,13,8,14,2,8,2,4,13,14,10,15,10,19,7,20,7,24,4,25,1,4,14,16,14,19,12,20,12,23]
[null,29,"드롭킥",null,null,null,"","","","","","",null,null,null,null,null,null,null,null,null,null,null,null,null,null,null,null,null,41,null,null,null,null,null,null,null,null,null,null,null,null,null,null,1,9,3,6,3,11,3,5,11,14,6,15,1,6,9,13,9,18,5,19,1,5,11,14,11,18,8,19,8,23,5,24,3,5,1,15,15,18,13,19,13,22]
[null,30,"킥킥킥",null,null,null,"","","","","","",null,null,null,null,null,null,null,null,null,null,null,null,null,null,null,null,null,42,null,null,null,null,null,null,null,null,null,null,null,null,null,null,8,10,2,7,2,12,2,6,12,13,7,14,5,7,10,12,10,17,6,18,4,6,12,13,12,17,9,18,9,22,6,23,2,6,2,3,16,17,14,18,14,21]
[null,null,null,null,null,null,null,null,null,null,null,null,null,null,null,null,null,null,null,null,null,null,null,null,null,null,null,null,null,43,null,null,null,null,null,null,null,null,null,null,null,null,null,null,2,7,8,11,1,8,7,13,1,7,8,13,4,8,1,11,11,16,7,17,3,7,1,3,13,16,10,17,10,21,7,22,7,26,4,27,1,4,15,17,15,20]
[null,null,null,null,null,null,null,null,null,null,null,null,null,null,null,null,null,null,null,null,null,null,null,null,null,null,null,null,null,44,null,null,null,null,null,null,null,null,null,null,null,null,null,null,3,6,9,10,7,9,8,12,6,8,9,12,3,9,3,4,12,15,8,16,2,8,2,4,14,15,11,16,11,20,8,21,8,25,5,26,3,5,1,16,16,19]
[null,null,null,null,null,null,null,null,null,null,null,null,null,null,null,null,null,null,null,null,null,null,null,null,null,null,null,null,null,45,null,null,null,null,null,null,null,null,null,null,null,null,null,null,4,5,1,5,6,10,9,11,5,9,10,11,2,10,2,5,13,14,9,15,9,20,5,21,1,5,12,15,12,19,9,20,9,24,6,25,2,6,2,3,17,18]
[null,null,null,null,null,null,null,null,null,null,null,null,null,null,null,null,null,null,null,null,null,null,null,null,null,null,null,null,null,46,null,null,null,null,null,null,null,null,null,null,null,null,null,null,null,null,4,6,5,11,1,10,4,10,1,4,11,16,6,17,1,6,10,14,10,19,6,20,4,6,13,14,13,18,10,19,10,23,7,24,7,28,4,29,1,4]
[null,null,null,null,null,null,null,null,null,null,null,null,null,null,null,null,null,null,null,null,null,null,null,null,null,null,null,null,null,47,null,null,null,null,null,null,null,null,null,null,null,null,null,null,null,null,3,7,4,12,4,5,3,11,3,5,12,15,7,16,5,7,11,13,11,18,7,19,3,7,1,3,14,17,11,18,11,22,8,23,8,27,5,28,3,5]
[null,null,null,null,null,null,null,null,null,null,null,null,null,null,null,null,null,null,null,null,null,null,null,null,null,null,null,null,null,48,null,null,null,null,null,null,null,null,null,null,null,null,null,null,null,null,2,8,2,3,3,6,2,12,2,6,13,14,8,15,4,8,1,12,12,17,8,18,2,8,2,4,15,16,12,17,12,21,9,22,9,26,6,27,2,6]
[null,null,null,null,null,null,null,null,null,null,null,null,null,null,null,null,null,null,null,null,null,null,null,null,null,null,null,null,null,49,null,null,null,null,null,null,null,null,null,null,null,null,null,null,null,null,9,11,1,9,2,7,13,14,7,15,1,7,9,14,3,9,3,4,13,16,9,17,9,22,5,23,1,5,13,16,13,20,10,21,10,25,7,26,7,30]
[null,null,null,null,null,null,null,null,null,null,null,null,null,null,null,null,null,null,null,null,null,null,null,null,null,null,null,null,null,50,null,null,null,null,null,null,null,null,null,null,null,null,null,null,null,null,1,10,8,10,8,13,1,8,8,14,6,8,10,13,2,10,2,5,14,15,10,16,10,21,6,22,4,6,14,15,14,19,11,20,11,24,8,25,8,29]
[null,null,null,null,null,null,null,null,null,null,null,null,null,null,null,null,null,null,null,null,null,null,null,null,null,null,null,null,null,51,null,null,null,null,null,null,null,null,null,null,null,null,null,null,null,null,5,6,7,11,9,12,7,9,9,13,5,9,11,12,11,18,6,19,1,6,11,15,11,20,7,21,3,7,1,3,15,18,12,19,12,23,9,24,9,28]
[null,null,null,null,null,null,null,null,null,null,null,null,null,null,null,null,null,null,null,null,null,null,null,null,null,null,null,null,null,52,null,null,null,null,null,null,null,null,null,null,null,null,null,null,null,null,4,7,6,12,10,11,6,10,10,12,4,10,1,4,12,17,7,18,5,7,12,14,12,19,8,20,2,8,2,4,16,17,13,18,13,22,10,23,10,27]
[null,null,null,null,null,null,null,null,null,null,null,null,null,null,null,null,null,null,null,null,null,null,null,null,null,null,null,null,null,53,null,null,null,null,null,null,null,null,null,null,null,null,null,null,null,null,3,8,2,5,1,5,5,11,1,11,3,11,3,5,13,16,8,17,4,8,1,13,13,18,9,19,9,24,5,25,1,5,14,17,14,21,11,22,11,26]
[null,null,null,null,null,null,null,null,null,null,null,null,null,null,null,null,null,null,null,null,null,null,null,null,null,null,null,null,null,54,null,null,null,null,null,null,null,null,null,null,null,null,null,null,null,null,2,9,3,4,4,6,4,12,4,5,2,12,2,6,14,15,9,16,3,9,3,4,14,17,10,18,10,23,6,24,4,6,15,16,15,20,12,21,12,25]
[null,null,null,null,null,null,null,null,null,null,null,null,null,null,null,null,null,null,null,null,null,null,null,null,null,null,null,null,null,55,null,null,null,null,null,null,null,null,null,null,null,null,null,null,null,null,10,11,1,10,3,7,3,13,3,6,13,16,7,17,1,7,10,15,2,10,2,5,15,16,11,17,11,22,7,23,3,7,1,3,16,19,13,20,13,24]
[null,null,null,null,null,null,null,null,null,null,null,null,null,null,null,null,null,null,null,null,null,null,null,null,null,null,null,null,null,56,null,null,null,null,null,null,null,null,null,null,null,null,null,null,null,null,null,null,9,11,2,8,2,14,2,7,14,15,8,16,6,8,11,14,11,20,6,21,1,6,12,16,12,21,8,22,2,8,2,4,17,18,14,19,14,23]
[null,null,null,null,null,null,null,null,null,null,null,null,null,null,null,null,null,null,null,null,null,null,null,null,null,null,null,null,null,57,null,null,null,null,null,null,null,null,null,null,null,null,null,null,null,null,null,null,8,12,9,13,1,9,8,15,1,8,9,15,5,9,12,13,12,19,7,20,5,7,13,15,13,20,9,21,9,26,5,27,1,5,15,18,15,22]
[null,null,null,null,null,null,null,null,null,null,null,null,null,null,null,null,null,null,null,null,null,null,null,null,null,null,null,null,null,58,null,null,null,null,null,null,null,null,null,null,null,null,null,null,null,null,null,null,2,7,10,12,8,10,9,14,7,9,10,14,4,10,1,4,13,18,8,19,4,8,1,14,14,19,10,20,10,25,6,26,4,6,16,17,16,21]
[null,null,null,null,null,null,null,null,null,null,null,null,null,null,null,null,null,null,null,null,null,null,null,null,null,null,null,null,null,59,null,null,null,null,null,null,null,null,null,null,null,null,null,null,null,null,null,null,3,6,1,11,7,11,10,13,6,10,11,13,3,11,3,5,14,17,9,18,3,9,3,4,15,18,11,19,11,24,7,25,3,7,1,3,17,20]
[null,null,null,null,null,null,null,null,null,null,null,null,null,null,null,null,null,null,null,null,null,null,null,null,null,null,null,null,null,60,null,null,null,null,null,null,null,null,null,null,null,null,null,null,null,null,null,null,4,5,5,6,6,12,11,12,5,11,1,12,2,12,2,6,15,16,10,17,2,10,2,5,16,17,12,18,12,23,8,24,2,8,2,4,18,19]
[null,null,null,null,null,null,null,null,null,null,null,null,null,null,null,null,null,null,null,null,null,null,null,null,null,null,null,null,null,61,null,null,null,null,null,null,null,null,null,null,null,null,null,null,null,null,null,null,1,11,4,7,5,13,1,5,4,12,4,5,13,18,7,19,1,7,11,16,11,22,6,23,1,6,13,17,13,22,9,23,9,28,5,29,1,5]
[null,null,null,null,null,null,null,null,null,null,null,null,null,null,null,null,null,null,null,null,null,null,null,null,null,null,null,null,null,62,null,null,null,null,null,null,null,null,null,null,null,null,null,null,null,null,null,null,10,12,3,8,4,14,4,6,3,13,3,6,14,17,8,18,6,8,12,15,12,21,7,22,5,7,14,16,14,21,10,22,10,27,6,28,4,6]
[null,null,null,null,null,null,null,null,null,null,null,null,null,null,null,null,null,null,null,null,null,null,null,null,null,null,null,null,null,63,null,null,null,null,null,null,null,null,null,null,null,null,null,null,null,null,null,null,2,9,2,9,2,3,3,7,2,14,2,7,15,16,9,17,5,9,13,14,13,20,8,21,4,8,1,15,15,20,11,21,11,26,7,27,3,7]
[null,null,null,null,null,null,null,null,null,null,null,null,null,null,null,null,null,null,null,null,null,null,null,null,null,null,null,null,null,64,null,null,null,null,null,null,null,null,null,null,null,null,null,null,null,null,null,null,3,8,10,13,1,10,2,8,15,16,8,17,1,8,10,16,4,10,1,4,14,19,9,20,3,9,3,4,16,19,12,20,12,25,8,26,2,8]
[null,null,null,null,null,null,null,null,null,null,null,null,null,null,null,null,null,null,null,null,null,null,null,null,null,null,null,null,null,65,null,null,null,null,null,null,null,null,null,null,null,null,null,null,null,null,null,null,4,7,11,12,9,11,9,15,1,9,9,16,7,9,11,15,3,11,3,5,15,18,10,19,2,10,2,5,17,18,13,19,13,24,9,25,9,30]
[null,null,null,null,null,null,null,null,null,null,null,null,null,null,null,null,null,null,null,null,null,null,null,null,null,null,null,null,null,66,null,null,null,null,null,null,null,null,null,null,null,null,null,null,null,null,null,null,5,6,1,6,8,12,10,14,8,10,10,15,6,10,12,14,2,12,2,6,16,17,11,18,11,24,6,25,1,6,14,18,14,23,10,24,10,29]
[null,null,null,null,null,null,null,null,null,null,null,null,null,null,null,null,null,null,null,null,null,null,null,null,null,null,null,null,null,67,null,null,null,null,null,null,null,null,null,null,null,null,null,null,null,null,null,null,null,null,5,7,7,13,11,13,7,11,11,14,5,11,1,13,13,20,7,21,1,7,12,17,12,23,7,24,5,7,15,17,15,22,11,23,11,28]
[null,null,null,null,null,null,null,null,null,null,null,null,null,null,null,null,null,null,null,null,null,null,null,null,null,null,null,null,null,68,null,null,null,null,null,null,null,null,null,null,null,null,null,null,null,null,null,null,null,null,4,8,6,14,1,12,6,12,12,13,4,12,4,5,14,19,8,20,6,8,13,16,13,22,8,23,4,8,1,16,16,21,12,22,12,27]
[null,null,null,null,null,null,null,null,null,null,null,null,null,null,null,null,null,null,null,null,null,null,null,null,null,null,null,null,null,69,null,null,null,null,null,null,null,null,null,null,null,null,null,null,null,null,null,null,null,null,3,9,2,5,5,6,5,13,1,5,3,13,3,6,15,18,9,19,5,9,14,15,14,21,9,22,3,9,3,4,17,20,13,21,13,26]
[null,null,null,null,null,null,null,null,null,null,null,null,null,null,null,null,null,null,null,null,null,null,null,null,null,null,null,null,null,70,null,null,null,null,null,null,null,null,null,null,null,null,null,null,null,null,null,null,null,null,2,10,3,4,4,7,4,14,4,6,2,14,2,7,16,17,10,18,4,10,1,4,15,20,10,21,2,10,2,5,18,19,14,20,14,25]
[null,null,null,null,null,null,null,null,null,null,null,null,null,null,null,null,null,null,null,null,null,null,null,null,null,null,null,null,null,71,null,null,null,null,null,null,null,null,null,null,null,null,null,null,null,null,null,null,null,null,11,13,1,11,3,8,3,15,3,7,15,18,8,19,1,8,11,17,3,11,3,5,16,19,11,20,11,26,6,27,1,6,15,19,15,24]
[null,null,null,null,null,null,null,null,null,null,null,null,null,null,null,null,null,null,null,null,null,null,null,null,null,null,null,null,null,72,null,null,null,null,null,null,null,null,null,null,null,null,null,null,null,null,null,null,null,null,1,12,10,12,2,9,2,16,2,8,16,17,9,18,7,9,12,16,2,12,2,6,17,18,12,19,12,25,7,26,5,7,16,18,16,23]
[null,null,null,null,null,null,null,null,null,null,null,null,null,null,null,null,null,null,null,null,null,null,null,null,null,null,null,null,null,73,null,null,null,null,null,null,null,null,null,null,null,null,null,null,null,null,null,null,null,null,6,7,9,13,10,15,1,10,9,17,1,9,10,17,6,10,13,15,13,22,7,23,1,7,13,18,13,24,8,25,4,8,1,17,17,22]
[null,null,null,null,null,null,null,null,null,null,null,null,null,null,null,null,null,null,null,null,null,null,null,null,null,null,null,null,null,74,null,null,null,null,null,null,null,null,null,null,null,null,null,null,null,null,null,null,null,null,5,8,8,14,11,14,9,11,10,16,8,10,11,16,5,11,1,14,14,21,8,22,6,8,14,17,14,23,9,24,3,9,3,4,18,21]
[null,null,null,null,null,null,null,null,null,null,null,null,null,null,null,null,null,null,null,null,null,null,null,null,null,null,null,null,null,75,null,null,null,null,null,null,null,null,null,null,null,null,null,null,null,null,null,null,null,null,4,9,2,7,12,13,8,12,11,15,7,11,12,15,4,12,4,5,15,20,9,21,5,9,15,16,15,22,10,23,2,10,2,5,19,20]
[null,null,null,null,null,null,null,null,null,null,null,null,null,null,null,null,null,null,null,null,null,null,null,null,null,null,null,null,null,76,null,null,null,null,null,null,null,null,null,null,null,null,null,null,null,null,null,null,null,null,3,10,3,6,1,6,7,13,12,14,6,12,13,14,3,13,3,6,16,19,10,20,4,10,1,4,16,21,11,22,11,28,6,29,1,6]
[null,null,null,null,null,null,null,null,null,null,null,null,null,null,null,null,null,null,null,null,null,null,null,null,null,null,null,null,null,77,null,null,null,null,null,null,null,null,null,null,null,null,null,null,null,null,null,null,null,null,2,11,4,5,5,7,6,14,1,13,5,13,1,5,2,14,2,7,17,18,11,19,3,11,3,5,17,20,12,21,12,27,7,28,5,7]
[null,null,null,null,null,null,null,null,null,null,null,null,null,null,null,null,null,null,null,null,null,null,null,null,null,null,null,null,null,78,null,null,null,null,null,null,null,null,null,null,null,null,null,null,null,null,null,null,null,null,12,13,1,12,4,8,5,15,5,6,4,14,4,6,15,20,8,21,1,8,12,18,2,12,2,6,18,19,13,20,13,26,8,27,4,8]
[null,null,null,null,null,null,null,null,null,null,null,null,null,null,null,null,null,null,null,null,null,null,null,null,null,null,null,null,null,79,null,null,null,null,null,null,null,null,null,null,null,null,null,null,null,null,null,null,null,null,null,null,11,13,3,9,4,16,4,7,3,15,3,7,16,19,9,20,7,9,13,17,13,24,7,25,1,7,14,19,14,25,9,26,3,9]
[null,null,null,null,null,null,null,null,null,null,null,null,null,null,null,null,null,null,null,null,null,null,null,null,null,null,null,null,null,80,null,null,null,null,null,null,null,null,null,null,null,null,null,null,null,null,null,null,null,null,null,null,10,14,2,10,2,3,3,8,2,16,2,8,17,18,10,19,6,10,14,16,14,23,8,24,6,8,15,18,15,24,10,25,2,10]
[null,null,null,null,null,null,null,null,null,null,null,null,null,null,null,null,null,null,null,null,null,null,null,null,null,null,null,null,null,81,null,null,null,null,null,null,null,null,null,null,null,null,null,null,null,null,null,null,null,null,null,null,2,9,11,15,1,11,2,9,17,18,9,19,1,9,11,18,5,11,1,15,15,22,9,23,5,9,16,17,16,23,11,24,11,30]
[null,null,null,null,null,null,null,null,null,null,null,null,null,null,null,null,null,null,null,null,null,null,null,null,null,null,null,null,null,82,null,null,null,null,null,null,null,null,null,null,null,null,null,null,null,null,null,null,null,null,null,null,3,8,12,14,10,12,10,17,1,10,10,18,8,10,12,17,4,12,4,5,16,21,10,22,4,10,1,4,17,22,12,23,12,29]
[null,null,null,null,null,null,null,null,null,null,null,null,null,null,null,null,null,null,null,null,null,null,null,null,null,null,null,null,null,83,null,null,null,null,null,null,null,null,null,null,null,null,null,null,null,null,null,null,null,null,null,null,4,7,1,13,9,13,11,16,9,11,11,17,7,11,13,16,3,13,3,6,17,20,11,21,3,11,3,5,18,21,13,22,13,28]
[null,null,null,null,null,null,null,null,null,null,null,null,null,null,null,null,null,null,null,null,null,null,null,null,null,null,null,null,null,84,null,null,null,null,null,null,null,null,null,null,null,null,null,null,null,null,null,null,null,null,null,null,5,6,6,7,8,14,12,15,8,12,12,16,6,12,14,15,2,14,2,7,18,19,12,20,2,12,2,6,19,20,14,21,14,27]
[null,null,null,null,null,null,null,null,null,null,null,null,null,null,null,null,null,null,null,null,null,null,null,null,null,null,null,null,null,85,null,null,null,null,null,null,null,null,null,null,null,null,null,null,null,null,null,null,null,null,null,null,1,13,5,8,7,15,13,14,7,13,13,15,5,13,1,5,15,22,8,23,1,8,13,19,13,26,7,27,1,7,15,20,15,26]
[null,null,null,null,null,null,null,null,null,null,null,null,null,null,null,null,null,null,null,null,null,null,null,null,null,null,null,null,null,86,null,null,null,null,null,null,null,null,null,null,null,null,null,null,null,null,null,null,null,null,null,null,12,14,4,9,6,16,1,6,6,14,1,14,4,14,4,6,16,21,9,22,7,9,14,18,14,25,8,26,6,8,16,19,16,25]
[null,null,null,null,null,null,null,null,null,null,null,null,null,null,null,null,null,null,null,null,null,null,null,null,null,null,null,null,null,87,null,null,null,null,null,null,null,null,null,null,null,null,null,null,null,null,null,null,null,null,null,null,2,11,3,10,2,5,5,7,5,15,5,6,3,15,3,7,17,20,10,21,6,10,15,17,15,24,9,25,5,9,17,18,17,24]
[null,null,null,null,null,null,null,null,null,null,null,null,null,null,null,null,null,null,null,null,null,null,null,null,null,null,null,null,null,88,null,null,null,null,null,null,null,null,null,null,null,null,null,null,null,null,null,null,null,null,null,null,3,10,2,11,3,4,4,8,4,16,4,7,2,16,2,8,18,19,11,20,5,11,1,16,16,23,10,24,4,10,1,4,18,23]
[null,null,null,null,null,null,null,null,null,null,null,null,null,null,null,null,null,null,null,null,null,null,null,null,null,null,null,null,null,89,null,null,null,null,null,null,null,null,null,null,null,null,null,null,null,null,null,null,null,null,null,null,4,9,12,15,1,12,3,9,3,17,3,8,17,20,9,21,1,9,12,19,4,12,4,5,17,22,11,23,3,11,3,5,19,22]
[null,null,null,null,null,null,null,null,null,null,null,null,null,null,null,null,null,null,null,null,null,null,null,null,null,null,null,null,null,90,null,null,null,null,null,null,null,null,null,null,null,null,null,null,null,null,null,null,null,null,null,null,5,8,13,14,11,13,2,10,2,18,2,9,18,19,10,20,8,10,13,18,3,13,3,6,18,21,12,22,2,12,2,6,20,21]
[null,null,null,null,null,null,null,null,null,null,null,null,null,null,null,null,null,null,null,null,null,null,null,null,null,null,null,null,null,91,null,null,null,null,null,null,null,null,null,null,null,null,null,null,null,null,null,null,null,null,null,null,6,7,1,7,10,14,11,17,1,11,10,19,1,10,11,19,7,11,14,17,2,14,2,7,19,20,13,21,13,28,7,29,1,7]
[null,null,null,null,null,null,null,null,null,null,null,null,null,null,null,null,null,null,null,null,null,null,null,null,null,null,null,null,null,92,null,null,null,null,null,null,null,null,null,null,null,null,null,null,null,null,null,null,null,null,null,null,null,null,6,8,9,15,12,16,10,12,11,18,9,11,12,18,6,12,15,16,15,24,8,25,1,8,14,20,14,27,8,28,6,8]
[null,null,null,null,null,null,null,null,null,null,null,null,null,null,null,null,null,null,null,null,null,null,null,null,null,null,null,null,null,93,null,null,null,null,null,null,null,null,null,null,null,null,null,null,null,null,null,null,null,null,null,null,null,null,5,9,8,16,13,15,9,13,12,17,8,12,13,17,5,13,1,5,16,23,9,24,7,9,15,19,15,26,9,27,5,9]
[null,null,null,null,null,null,null,null,null,null,null,null,null,null,null,null,null,null,null,null,null,null,null,null,null,null,null,null,null,94,null,null,null,null,null,null,null,null,null,null,null,null,null,null,null,null,null,null,null,null,null,null,null,null,4,10,2,7,1,14,8,14,13,16,7,13,14,16,4,14,4,6,17,22,10,23,6,10,16,18,16,25,10,26,4,10]
[null,null,null,null,null,null,null,null,null,null,null,null,null,null,null,null,null,null,null,null,null,null,null,null,null,null,null,null,null,95,null,null,null,null,null,null,null,null,null,null,null,null,null,null,null,null,null,null,null,null,null,null,null,null,3,11,3,6,6,7,7,15,14,15,6,14,1,15,3,15,3,7,18,21,11,22,5,11,1,17,17,24,11,25,3,11]
[null,null,null,null,null,null,null,null,null,null,null,null,null,null,null,null,null,null,null,null,null,null,null,null,null,null,null,null,null,96,null,null,null,null,null,null,null,null,null,null,null,null,null,null,null,null,null,null,null,null,null,null,null,null,2,12,4,5,5,8,6,16,1,6,5,15,5,6,2,16,2,8,19,20,12,21,4,12,4,5,18,23,12,24,2,12]
[null,null,null,null,null,null,null,null,null,null,null,null,null,null,null,null,null,null,null,null,null,null,null,null,null,null,null,null,null,97,null,null,null,null,null,null,null,null,null,null,null,null,null,null,null,null,null,null,null,null,null,null,null,null,13,15,1,13,4,9,5,17,5,7,4,16,4,7,17,22,9,23,1,9,13,20,3,13,3,6,19,22,13,23,13,30]
[null,null,null,null,null,null,null,null,null,null,null,null,null,null,null,null,null,null,null,null,null,null,null,null,null,null,null,null,null,98,null,null,null,null,null,null,null,null,null,null,null,null,null,null,null,null,null,null,null,null,null,null,null,null,1,14,12,14,3,10,4,18,4,8,3,17,3,8,18,21,10,22,8,10,14,19,2,14,2,7,20,21,14,22,14,29]
[null,null,null,null,null,null,null,null,null,null,null,null,null,null,null,null,null,null,null,null,null,null,null,null,null,null,null,null,null,99,null,null,null,null,null,null,null,null,null,null,null,null,null,null,null,null,null,null,null,null,null,null,null,null,7,8,11,15,2,11,2,3,3,9,2,18,2,9,19,20,11,21,7,11,15,18,15,26,8,27,1,8,15,21,15,28]
[null,null,null,null,null,null,null,null,null,null,null,null,null,null,null,null,null,null,null,null,null,null,null,null,null,null,null,null,null,100,null,null,null,null,null,null,null,null,null,null,null,null,null,null,null,null,null,null,null,null,null,null,null,null,6,9,10,16,12,17,1,12,2,10,19,20,10,21,1,10,12,20,6,12,16,17,16,25,9,26,7,9,16,20,16,27]
[null,null,null,null,null,null,null,null,null,null,null,null,null,null,null,null,null,null,null,null,null,null,null,null,null,null,null,null,null,101,null,null,null,null,null,null,null,null,null,null,null,null,null,null,null,null,null,null,null,null,null,null,null,null,5,10,2,9,13,16,11,13,11,19,1,11,11,20,9,11,13,19,5,13,1,5,17,24,10,25,6,10,17,19,17,26]
[null,null,null,null,null,null,null,null,null,null,null,null,null,null,null,null,null,null,null,null,null,null,null,null,null,null,null,null,null,102,null,null,null,null,null,null,null,null,null,null,null,null,null,null,null,null,null,null,null,null,null,null,null,null,4,11,3,8,14,15,10,14,12,18,10,12,12,19,8,12,14,18,4,14,4,6,18,23,11,24,5,11,1,18,18,25]
[null,null,null,null,null,null,null,null,null,null,null,null,null,null,null,null,null,null,null,null,null,null,null,null,null,null,null,null,null,103,null,null,null,null,null,null,null,null,null,null,null,null,null,null,null,null,null,null,null,null,null,null,null,null,3,12,4,7,1,7,9,15,13,17,9,13,13,18,7,13,15,17,3,15,3,7,19,22,12,23,4,12,4,5,19,24]
[null,null,null,null,null,null,null,null,null,null,null,null,null,null,null,null,null,null,null,null,null,null,null,null,null,null,null,null,null,104,null,null,null,null,null,null,null,null,null,null,null,null,null,null,null,null,null,null,null,null,null,null,null,null,2,13,5,6,6,8,8,16,14,16,8,14,14,17,6,14,1,16,2,16,2,8,20,21,13,22,3,13,3,6,20,23]
[null,null,null,null,null,null,null,null,null,null,null,null,null,null,null,null,null,null,null,null,null,null,null,null,null,null,null,null,null,105,null,null,null,null,null,null,null,null,null,null,null,null,null,null,null,null,null,null,null,null,null,null,null,null,14,15,1,14,5,9,7,17,1,15,7,15,15,16,5,15,5,6,17,24,9,25,1,9,14,21,2,14,2,7,21,22]
[null,null,null,null,null,null,null,null,null,null,null,null,null,null,null,null,null,null,null,null,null,null,null,null,null,null,null,null,null,106,null,null,null,null,null,null,null,null,null,null,null,null,null,null,null,null,null,null,null,null,null,null,null,null,null,null,13,15,4,10,6,18,6,7,6,16,1,6,4,16,4,7,18,23,10,24,8,10,15,20,15,28,8,29,1,8]
[null,null,null,null,null,null,null,null,null,null,null,null,null,null,null,null,null,null,null,null,null,null,null,null,null,null,null,null,null,107,null,null,null,null,null,null,null,null,null,null,null,null,null,null,null,null,null,null,null,null,null,null,null,null,null,null,12,16,3,11,2,5,5,8,5,17,5,7,3,17,3,8,19,22,11,23,7,11,16,19,16,27,9,28,7,9]
[null,null,null,null,null,null,null,null,null,null,null,null,null,null,null,null,null,null,null,null,null,null,null,null,null,null,null,null,null,108,null,null,null,null,null,null,null,null,null,null,null,null,null,null,null,null,null,null,null,null,null,null,null,null,null,null,2,11,2,12,3,4,4,9,4,18,4,8,2,18,2,9,20,21,12,22,6,12,17,18,17,26,10,27,6,10]
[null,null,null,null,null,null,null,null,null,null,null,null,null,null,null,null,null,null,null,null,null,null,null,null,null,null,null,null,null,109,null,null,null,null,null,null,null,null,null,null,null,null,null,null,null,null,null,null,null,null,null,null,null,null,null,null,3,10,13,17,1,13,3,10,3,19,3,9,19,22,10,23,1,10,13,21,5,13,1,5,18,25,11,26,5,11]
[null,null,null,null,null,null,null,null,null,null,null,null,null,null,null,null,null,null,null,null,null,null,null,null,null,null,null,null,null,110,null,null,null,null,null,null,null,null,null,null,null,null,null,null,null,null,null,null,null,null,null,null,null,null,null,null,4,9,14,16,12,14,2,11,2,20,2,10,20,21,11,22,9,11,14,20,4,14,4,6,19,24,12,25,4,12]
[null,null,null,null,null,null,null,null,null,null,null,null,null,null,null,null,null,null,null,null,null,null,null,null,null,null,null,null,null,111,null,null,null,null,null,null,null,null,null,null,null,null,null,null,null,null,null,null,null,null,null,null,null,null,null,null,5,8,1,15,11,15,12,19,1,12,11,21,1,11,12,21,8,12,15,19,3,15,3,7,20,23,13,24,3,13]
[null,null,null,null,null,null,null,null,null,null,null,null,null,null,null,null,null,null,null,null,null,null,null,null,null,null,null,null,null,112,null,null,null,null,null,null,null,null,null,null,null,null,null,null,null,null,null,null,null,null,null,null,null,null,null,null,6,7,7,8,10,16,13,18,11,13,12,20,10,12,13,20,7,13,16,18,2,16,2,8,21,22,14,23,2,14]
[null,null,null,null,null,null,null,null,null,null,null,null,null,null,null,null,null,null,null,null,null,null,null,null,null,null,null,null,null,113,null,null,null,null,null,null,null,null,null,null,null,null,null,null,null,null,null,null,null,null,null,null,null,null,null,null,1,15,6,9,9,17,14,17,10,14,13,19,9,13,14,19,6,14,1,17,17,26,9,27,1,9,15,22,15,30]
[null,null,null,null,null,null,null,null,null,null,null,null,null,null,null,null,null,null,null,null,null,null,null,null,null,null,null,null,null,114,null,null,null,null,null,null,null,null,null,null,null,null,null,null,null,null,null,null,null,null,null,null,null,null,null,null,14,16,5,10,8,18,15,16,9,15,14,18,8,14,15,18,5,15,5,6,18,25,10,26,8,10,16,21,16,29]
[null,null,null,null,null,null,null,null,null,null,null,null,null,null,null,null,null,null,null,null,null,null,null,null,null,null,null,null,null,115,null,null,null,null,null,null,null,null,null,null,null,null,null,null,null,null,null,null,null,null,null,null,null,null,null,null,2,13,4,11,2,7,1,7,8,16,15,17,7,15,16,17,4,16,4,7,19,24,11,25,7,11,17,20,17,28]
[null,null,null,null,null,null,null,null,null,null,null,null,null,null,null,null,null,null,null,null,null,null,null,null,null,null,null,null,null,116,null,null,null,null,null,null,null,null,null,null,null,null,null,null,null,null,null,null,null,null,null,null,null,null,null,null,3,12,3,12,3,6,6,8,7,17,1,16,6,16,1,6,3,17,3,8,20,23,12,24,6,12,18,19,18,27]
[null,null,null,null,null,null,null,null,null,null,null,null,null,null,null,null,null,null,null,null,null,null,null,null,null,null,null,null,null,117,null,null,null,null,null,null,null,null,null,null,null,null,null,null,null,null,null,null,null,null,null,null,null,null,null,null,4,11,2,13,4,5,5,9,6,18,6,7,5,17,5,7,2,18,2,9,21,22,13,23,5,13,1,5,19,26]
[null,null,null,null,null,null,null,null,null,null,null,null,null,null,null,null,null,null,null,null,null,null,null,null,null,null,null,null,null,118,null,null,null,null,null,null,null,null,null,null,null,null,null,null,null,null,null,null,null,null,null,null,null,null,null,null,5,10,14,17,1,14,4,10,5,19,5,8,4,18,4,8,19,24,10,25,1,10,14,22,4,14,4,6,20,25]
[null,null,null,null,null,null,null,null,null,null,null,null,null,null,null,null,null,null,null,null,null,null,null,null,null,null,null,null,null,119,null,null,null,null,null,null,null,null,null,null,null,null,null,null,null,null,null,null,null,null,null,null,null,null,null,null,6,9,15,16,13,15,3,11,4,20,4,9,3,19,3,9,20,23,11,24,9,11,15,21,3,15,3,7,21,24]
[null,null,null,null,null,null,null,null,null,null,null,null,null,null,null,null,null,null,null,null,null,null,null,null,null,null,null,null,null,120,null,null,null,null,null,null,null,null,null,null,null,null,null,null,null,null,null,null,null,null,null,null,null,null,null,null,7,8,1,8,12,16,2,12,2,3,3,10,2,20,2,10,21,22,12,23,8,12,16,20,2,16,2,8,22,23]
[null,null,null,null,null,null,null,null,null,null,null,null,null,null,null,null,null,null,null,null,null,null,null,null,null,null,null,null,null,121,null,null,null,null,null,null,null,null,null,null,null,null,null,null,null,null,null,null,null,null,null,null,null,null,null,null,null,null,7,9,11,17,13,19,1,13,2,11,21,22,11,23,1,11,13,22,7,13,17,19,17,28,9,29,1,9]
[null,null,null,null,null,null,null,null,null,null,null,null,null,null,null,null,null,null,null,null,null,null,null,null,null,null,null,null,null,122,null,null,null,null,null,null,null,null,null,null,null,null,null,null,null,null,null,null,null,null,null,null,null,null,null,null,null,null,6,10,10,18,14,18,12,14,12,21,1,12,12,22,10,12,14,21,6,14,1,18,18,27,10,28,8,10]
[null,null,null,null,null,null,null,null,null,null,null,null,null,null,null,null,null,null,null,null,null,null,null,null,null,null,null,null,null,123,null,null,null,null,null,null,null,null,null,null,null,null,null,null,null,null,null,null,null,null,null,null,null,null,null,null,null,null,5,11,2,9,15,17,11,15,13,20,11,13,13,21,9,13,15,20,5,15,5,6,19,26,11,27,7,11]
[null,null,null,null,null,null,null,null,null,null,null,null,null,null,null,null,null,null,null,null,null,null,null,null,null,null,null,null,null,124,null,null,null,null,null,null,null,null,null,null,null,null,null,null,null,null,null,null,null,null,null,null,null,null,null,null,null,null,4,12,3,8,1,16,10,16,14,19,10,14,14,20,8,14,16,19,4,16,4,7,20,25,12,26,6,12]
[null,null,null,null,null,null,null,null,null,null,null,null,null,null,null,null,null,null,null,null,null,null,null,null,null,null,null,null,null,125,null,null,null,null,null,null,null,null,null,null,null,null,null,null,null,null,null,null,null,null,null,null,null,null,null,null,null,null,3,13,4,7,7,8,9,17,15,18,9,15,15,19,7,15,17,18,3,17,3,8,21,24,13,25,5,13]
[null,null,null,null,null,null,null,null,null,null,null,null,null,null,null,null,null,null,null,null,null,null,null,null,null,null,null,null,null,126,null,null,null,null,null,null,null,null,null,null,null,null,null,null,null,null,null,null,null,null,null,null,null,null,null,null,null,null,2,14,5,6,6,9,8,18,16,17,8,16,16,18,6,16,1,6,2,18,2,9,22,23,14,24,4,14]
[null,null,null,null,null,null,null,null,null,null,null,null,null,null,null,null,null,null,null,null,null,null,null,null,null,null,null,null,null,127,null,null,null,null,null,null,null,null,null,null,null,null,null,null,null,null,null,null,null,null,null,null,null,null,null,null,null,null,15,17,1,15,5,10,7,19,1,7,7,17,1,17,5,17,5,7,19,26,10,27,1,10,15,23,3,15]
[null,null,null,null,null,null,null,null,null,null,null,null,null,null,null,null,null,null,null,null,null,null,null,null,null,null,null,null,null,128,null,null,null,null,null,null,null,null,null,null,null,null,null,null,null,null,null,null,null,null,null,null,null,null,null,null,null,null,1,16,14,16,4,11,6,20,6,8,6,18,6,7,4,18,4,8,20,25,11,26,9,11,16,22,2,16]
[null,null,null,null,null,null,null,null,null,null,null,null,null,null,null,null,null,null,null,null,null,null,null,null,null,null,null,null,null,129,null,null,null,null,null,null,null,null,null,null,null,null,null,null,null,null,null,null,null,null,null,null,null,null,null,null,null,null,8,9,13,17,3,12,2,5,5,9,5,19,5,8,3,19,3,9,21,24,12,25,8,12,17,21,17,30]
[null,null,null,null,null,null,null,null,null,null,null,null,null,null,null,null,null,null,null,null,null,null,null,null,null,null,null,null,null,130,null,null,null,null,null,null,null,null,null,null,null,null,null,null,null,null,null,null,null,null,null,null,null,null,null,null,null,null,7,10,12,18,2,13,3,4,4,10,4,20,4,9,2,20,2,10,22,23,13,24,7,13,18,20,18,29]
[null,null,null,null,null,null,null,null,null,null,null,null,null,null,null,null,null,null,null,null,null,null,null,null,null,null,null,null,null,131,null,null,null,null,null,null,null,null,null,null,null,null,null,null,null,null,null,null,null,null,null,null,null,null,null,null,null,null,6,11,2,11,14,19,1,14,3,11,3,21,3,10,21,24,11,25,1,11,14,23,6,14,1,19,19,28]
[null,null,null,null,null,null,null,null,null,null,null,null,null,null,null,null,null,null,null,null,null,null,null,null,null,null,null,null,null,132,null,null,null,null,null,null,null,null,null,null,null,null,null,null,null,null,null,null,null,null,null,null,null,null,null,null,null,null,5,12,3,10,15,18,13,15,2,12,2,22,2,11,22,23,12,24,10,12,15,22,5,15,5,6,20,27]
[null,null,null,null,null,null,null,null,null,null,null,null,null,null,null,null,null,null,null,null,null,null,null,null,null,null,null,null,null,133,null,null,null,null,null,null,null,null,null,null,null,null,null,null,null,null,null,null,null,null,null,null,null,null,null,null,null,null,4,13,4,9,16,17,12,16,13,21,1,13,12,23,1,12,13,23,9,13,16,21,4,16,4,7,21,26]
[null,null,null,null,null,null,null,null,null,null,null,null,null,null,null,null,null,null,null,null,null,null,null,null,null,null,null,null,null,134,null,null,null,null,null,null,null,null,null,null,null,null,null,null,null,null,null,null,null,null,null,null,null,null,null,null,null,null,3,14,5,8,1,8,11,17,14,20,12,14,13,22,11,13,14,22,8,14,17,20,3,17,3,8,22,25]
[null,null,null,null,null,null,null,null,null,null,null,null,null,null,null,null,null,null,null,null,null,null,null,null,null,null,null,null,null,135,null,null,null,null,null,null,null,null,null,null,null,null,null,null,null,null,null,null,null,null,null,null,null,null,null,null,null,null,2,15,6,7,7,9,10,18,15,19,11,15,14,21,10,14,15,21,7,15,18,19,2,18,2,9,23,24]
[null,null,null,null,null,null,null,null,null,null,null,null,null,null,null,null,null,null,null,null,null,null,null,null,null,null,null,null,null,136,null,null,null,null,null,null,null,null,null,null,null,null,null,null,null,null,null,null,null,null,null,null,null,null,null,null,null,null,16,17,1,16,6,10,9,19,16,18,10,16,15,20,9,15,16,20,6,16,1,6,19,28,10,29,1,10]
[null,null,null,null,null,null,null,null,null,null,null,null,null,null,null,null,null,null,null,null,null,null,null,null,null,null,null,null,null,137,null,null,null,null,null,null,null,null,null,null,null,null,null,null,null,null,null,null,null,null,null,null,null,null,null,null,null,null,null,null,15,17,5,11,8,20,1,17,9,17,16,19,8,16,17,19,5,17,5,7,20,27,11,28,9,11]
[null,null,null,null,null,null,null,null,null,null,null,null,null,null,null,null,null,null,null,null,null,null,null,null,null,null,null,null,null,138,null,null,null,null,null,null,null,null,null,null,null,null,null,null,null,null,null,null,null,null,null,null,null,null,null,null,null,null,null,null,14,18,4,12,2,7,7,8,8,18,17,18,7,17,1,18,4,18,4,8,21,26,12,27,8,12]
[null,null,null,null,null,null,null,null,null,null,null,null,null,null,null,null,null,null,null,null,null,null,null,null,null,null,null,null,null,139,null,null,null,null,null,null,null,null,null,null,null,null,null,null,null,null,null,null,null,null,null,null,null,null,null,null,null,null,null,null,2,13,3,13,3,6,6,9,7,19,1,7,6,18,6,7,3,19,3,9,22,25,13,26,7,13]
[null,null,null,null,null,null,null,null,null,null,null,null,null,null,null,null,null,null,null,null,null,null,null,null,null,null,null,null,null,140,null,null,null,null,null,null,null,null,null,null,null,null,null,null,null,null,null,null,null,null,null,null,null,null,null,null,null,null,null,null,3,12,2,14,4,5,5,10,6,20,6,8,5,19,5,8,2,20,2,10,23,24,14,25,6,14]
[null,null,null,null,null,null,null,null,null,null,null,null,null,null,null,null,null,null,null,null,null,null,null,null,null,null,null,null,null,141,null,null,null,null,null,null,null,null,null,null,null,null,null,null,null,null,null,null,null,null,null,null,null,null,null,null,null,null,null,null,4,11,15,19,1,15,4,11,5,21,5,9,4,20,4,9,21,26,11,27,1,11,15,24,5,15]
[null,null,null,null,null,null,null,null,null,null,null,null,null,null,null,null,null,null,null,null,null,null,null,null,null,null,null,null,null,142,null,null,null,null,null,null,null,null,null,null,null,null,null,null,null,null,null,null,null,null,null,null,null,null,null,null,null,null,null,null,5,10,16,18,14,16,3,12,4,22,4,10,3,21,3,10,22,25,12,26,10,12,16,23,4,16]
[null,null,null,null,null,null,null,null,null,null,null,null,null,null,null,null,null,null,null,null,null,null,null,null,null,null,null,null,null,143,null,null,null,null,null,null,null,null,null,null,null,null,null,null,null,null,null,null,null,null,null,null,null,null,null,null,null,null,null,null,6,9,1,17,13,17,2,13,2,3,3,11,2,22,2,11,23,24,13,25,9,13,17,22,3,17]
[null,null,null,null,null,null,null,null,null,null,null,null,null,null,null,null,null,null,null,null,null,null,null,null,null,null,null,null,null,144,null,null,null,null,null,null,null,null,null,null,null,null,null,null,null,null,null,null,null,null,null,null,null,null,null,null,null,null,null,null,7,8,8,9,12,18,14,21,1,14,2,12,23,24,12,25,1,12,14,24,8,14,18,21,2,18]
[null,null,null,null,null,null,null,null,null,null,null,null,null,null,null,null,null,null,null,null,null,null,null,null,null,null,null,null,null,145,null,null,null,null,null,null,null,null,null,null,null,null,null,null,null,null,null,null,null,null,null,null,null,null,null,null,null,null,null,null,1,17,7,10,11,19,15,20,13,15,13,23,1,13,13,24,11,13,15,23,7,15,19,20,19,30]
[null,null,null,null,null,null,null,null,null,null,null,null,null,null,null,null,null,null,null,null,null,null,null,null,null,null,null,null,null,146,null,null,null,null,null,null,null,null,null,null,null,null,null,null,null,null,null,null,null,null,null,null,null,null,null,null,null,null,null,null,16,18,6,11,10,20,16,19,12,16,14,22,12,14,14,23,10,14,16,22,6,16,1,6,20,29]
[null,null,null,null,null,null,null,null,null,null,null,null,null,null,null,null,null,null,null,null,null,null,null,null,null,null,null,null,null,147,null,null,null,null,null,null,null,null,null,null,null,null,null,null,null,null,null,null,null,null,null,null,null,null,null,null,null,null,null,null,2,15,5,12,2,9,17,18,11,17,15,21,11,15,15,22,9,15,17,21,5,17,5,7,21,28]
[null,null,null,null,null,null,null,null,null,null,null,null,null,null,null,null,null,null,null,null,null,null,null,null,null,null,null,null,null,148,null,null,null,null,null,null,null,null,null,null,null,null,null,null,null,null,null,null,null,null,null,null,null,null,null,null,null,null,null,null,3,14,4,13,3,8,1,8,10,18,16,20,10,16,16,21,8,16,18,20,4,18,4,8,22,27]
[null,null,null,null,null,null,null,null,null,null,null,null,null,null,null,null,null,null,null,null,null,null,null,null,null,null,null,null,null,149,null,null,null,null,null,null,null,null,null,null,null,null,null,null,null,null,null,null,null,null,null,null,null,null,null,null,null,null,null,null,4,13,3,14,4,7,7,9,9,19,17,19,9,17,17,20,7,17,1,19,3,19,3,9,23,26]
[null,null,null,null,null,null,null,null,null,null,null,null,null,null,null,null,null,null,null,null,null,null,null,null,null,null,null,null,null,150,null,null,null,null,null,null,null,null,null,null,null,null,null,null,null,null,null,null,null,null,null,null,null,null,null,null,null,null,null,null,5,12,2,15,5,6,6,10,8,20,1,18,8,18,18,19,6,18,6,7,2,20,2,10,24,25]
[null,null,null,null,null,null,null,null,null,null,null,null,null,null,null,null,null,null,null,null,null,null,null,null,null,null,null,null,null,151,null,null,null,null,null,null,null,null,null,null,null,null,null,null,null,null,null,null,null,null,null,null,null,null,null,null,null,null,null,null,6,11,16,19,1,16,5,11,7,21,7,8,7,19,1,7,5,19,5,8,21,28,11,29,1,11]
[null,null,null,null,null,null,null,null,null,null,null,null,null,null,null,null,null,null,null,null,null,null,null,null,null,null,null,null,null,152,null,null,null,null,null,null,null,null,null,null,null,null,null,null,null,null,null,null,null,null,null,null,null,null,null,null,null,null,null,null,7,10,17,18,15,17,4,12,6,22,6,9,6,20,6,8,4,20,4,9,22,27,12,28,10,12]
[null,null,null,null,null,null,null,null,null,null,null,null,null,null,null,null,null,null,null,null,null,null,null,null,null,null,null,null,null,153,null,null,null,null,null,null,null,null,null,null,null,null,null,null,null,null,null,null,null,null,null,null,null,null,null,null,null,null,null,null,8,9,1,9,14,18,3,13,2,5,5,10,5,21,5,9,3,21,3,10,23,26,13,27,9,13]
[null,null,null,null,null,null,null,null,null,null,null,null,null,null,null,null,null,null,null,null,null,null,null,null,null,null,null,null,null,154,null,null,null,null,null,null,null,null,null,null,null,null,null,null,null,null,null,null,null,null,null,null,null,null,null,null,null,null,null,null,null,null,8,10,13,19,2,14,3,4,4,11,4,22,4,10,2,22,2,11,24,25,14,26,8,14]
[null,null,null,null,null,null,null,null,null,null,null,null,null,null,null,null,null,null,null,null,null,null,null,null,null,null,null,null,null,155,null,null,null,null,null,null,null,null,null,null,null,null,null,null,null,null,null,null,null,null,null,null,null,null,null,null,null,null,null,null,null,null,7,11,12,20,15,21,1,15,3,12,3,23,3,11,23,26,12,27,1,12,15,25,7,15]
[null,null,null,null,null,null,null,null,null,null,null,null,null,null,null,null,null,null,null,null,null,null,null,null,null,null,null,null,null,156,null,null,null,null,null,null,null,null,null,null,null,null,null,null,null,null,null,null,null,null,null,null,null,null,null,null,null,null,null,null,null,null,6,12,2,11,16,20,14,16,2,13,2,24,2,12,24,25,13,26,11,13,16,24,6,16]
[null,null,null,null,null,null,null,null,null,null,null,null,null,null,null,null,null,null,null,null,null,null,null,null,null,null,null,null,null,157,null,null,null,null,null,null,null,null,null,null,null,null,null,null,null,null,null,null,null,null,null,null,null,null,null,null,null,null,null,null,null,null,5,13,3,10,17,19,13,17,14,23,1,14,13,25,1,13,14,25,10,14,17,23,5,17]
[null,null,null,null,null,null,null,null,null,null,null,null,null,null,null,null,null,null,null,null,null,null,null,null,null,null,null,null,null,158,null,null,null,null,null,null,null,null,null,null,null,null,null,null,null,null,null,null,null,null,null,null,null,null,null,null,null,null,null,null,null,null,4,14,4,9,1,18,12,18,15,22,13,15,14,24,12,14,15,24,9,15,18,22,4,18]
[null,null,null,null,null,null,null,null,null,null,null,null,null,null,null,null,null,null,null,null,null,null,null,null,null,null,null,null,null,159,null,null,null,null,null,null,null,null,null,null,null,null,null,null,null,null,null,null,null,null,null,null,null,null,null,null,null,null,null,null,null,null,3,15,5,8,8,9,11,19,16,21,12,16,15,23,11,15,16,23,8,16,19,21,3,19]
[null,null,null,null,null,null,null,null,null,null,null,null,null,null,null,null,null,null,null,null,null,null,null,null,null,null,null,null,null,160,null,null,null,null,null,null,null,null,null,null,null,null,null,null,null,null,null,null,null,null,null,null,null,null,null,null,null,null,null,null,null,null,2,16,6,7,7,10,10,20,17,20,11,17,16,22,10,16,17,22,7,17,1,20,2,20]
[null,null,null,null,null,null,null,null,null,null,null,null,null,null,null,null,null,null,null,null,null,null,null,null,null,null,null,null,null,161,null,null,null,null,null,null,null,null,null,null,null,null,null,null,null,null,null,null,null,null,null,null,null,null,null,null,null,null,null,null,null,null,17,19,1,17,6,11,9,21,18,19,10,18,17,21,9,17,18,21,6,18,6,7,21,30]
[null,null,null,null,null,null,null,null,null,null,null,null,null,null,null,null,null,null,null,null,null,null,null,null,null,null,null,null,null,162,null,null,null,null,null,null,null,null,null,null,null,null,null,null,null,null,null,null,null,null,null,null,null,null,null,null,null,null,null,null,null,null,1,18,16,18,5,12,8,22,1,8,9,19,18,20,8,18,19,20,5,19,5,8,22,29]
[null,null,null,null,null,null,null,null,null,null,null,null,null,null,null,null,null,null,null,null,null,null,null,null,null,null,null,null,null,163,null,null,null,null,null,null,null,null,null,null,null,null,null,null,null,null,null,null,null,null,null,null,null,null,null,null,null,null,null,null,null,null,9,10,15,19,4,13,2,7,7,9,8,20,1,19,7,19,1,7,4,20,4,9,23,28]
[null,null,null,null,null,null,null,null,null,null,null,null,null,null,null,null,null,null,null,null,null,null,null,null,null,null,null,null,null,164,null,null,null,null,null,null,null,null,null,null,null,null,null,null,null,null,null,null,null,null,null,null,null,null,null,null,null,null,null,null,null,null,8,11,14,20,3,14,3,6,6,10,7,21,7,8,6,20,6,8,3,21,3,10,24,27]
[null,null,null,null,null,null,null,null,null,null,null,null,null,null,null,null,null,null,null,null,null,null,null,null,null,null,null,null,null,165,null,null,null,null,null,null,null,null,null,null,null,null,null,null,null,null,null,null,null,null,null,null,null,null,null,null,null,null,null,null,null,null,7,12,2,13,2,15,4,5,5,11,6,22,6,9,5,21,5,9,2,22,2,11,25,26]
[null,null,null,null,null,null,null,null,null,null,null,null,null,null,null,null,null,null,null,null,null,null,null,null,null,null,null,null,null,166,null,null,null,null,null,null,null,null,null,null,null,null,null,null,null,null,null,null,null,null,null,null,null,null,null,null,null,null,null,null,null,null,6,13,3,12,16,21,1,16,4,12,5,23,5,10,4,22,4,10,23,28,12,29,1,12]
[null,null,null,null,null,null,null,null,null,null,null,null,null,null,null,null,null,null,null,null,null,null,null,null,null,null,null,null,null,167,null,null,null,null,null,null,null,null,null,null,null,null,null,null,null,null,null,null,null,null,null,null,null,null,null,null,null,null,null,null,null,null,5,14,4,11,17,20,15,17,3,13,4,24,4,11,3,23,3,11,24,27,13,28,11,13]
[null,null,null,null,null,null,null,null,null,null,null,null,null,null,null,null,null,null,null,null,null,null,null,null,null,null,null,null,null,168,null,null,null,null,null,null,null,null,null,null,null,null,null,null,null,null,null,null,null,null,null,null,null,null,null,null,null,null,null,null,null,null,4,15,5,10,18,19,14,18,2,14,2,3,3,12,2,24,2,12,25,26,14,27,10,14]
[null,null,null,null,null,null,null,null,null,null,null,null,null,null,null,null,null,null,null,null,null,null,null,null,null,null,null,null,null,169,null,null,null,null,null,null,null,null,null,null,null,null,null,null,null,null,null,null,null,null,null,null,null,null,null,null,null,null,null,null,null,null,3,16,6,9,1,9,13,19,15,23,1,15,2,13,25,26,13,27,1,13,15,26,9,15]
[null,null,null,null,null,null,null,null,null,null,null,null,null,null,null,null,null,null,null,null,null,null,null,null,null,null,null,null,null,170,null,null,null,null,null,null,null,null,null,null,null,null,null,null,null,null,null,null,null,null,null,null,null,null,null,null,null,null,null,null,null,null,2,17,7,8,8,10,12,20,16,22,14,16,14,25,1,14,14,26,12,14,16,25,8,16]
[null,null,null,null,null,null,null,null,null,null,null,null,null,null,null,null,null,null,null,null,null,null,null,null,null,null,null,null,null,171,null,null,null,null,null,null,null,null,null,null,null,null,null,null,null,null,null,null,null,null,null,null,null,null,null,null,null,null,null,null,null,null,18,19,1,18,7,11,11,21,17,21,13,17,15,24,13,15,15,25,11,15,17,24,7,17]
[null,null,null,null,null,null,null,null,null,null,null,null,null,null,null,null,null,null,null,null,null,null,null,null,null,null,null,null,null,172,null,null,null,null,null,null,null,null,null,null,null,null,null,null,null,null,null,null,null,null,null,null,null,null,null,null,null,null,null,null,null,null,null,null,17,19,6,12,10,22,18,20,12,18,16,23,12,16,16,24,10,16,18,23,6,18]
[null,null,null,null,null,null,null,null,null,null,null,null,null,null,null,null,null,null,null,null,null,null,null,null,null,null,null,null,null,173,null,null,null,null,null,null,null,null,null,null,null,null,null,null,null,null,null,null,null,null,null,null,null,null,null,null,null,null,null,null,null,null,null,null,16,20,5,13,2,9,1,19,11,19,17,22,11,17,17,23,9,17,19,22,5,19]
[null,null,null,null,null,null,null,null,null,null,null,null,null,null,null,null,null,null,null,null,null,null,null,null,null,null,null,null,null,174,null,null,null,null,null,null,null,null,null,null,null,null,null,null,null,null,null,null,null,null,null,null,null,null,null,null,null,null,null,null,null,null,null,null,2,15,4,14,3,8,8,9,10,20,18,21,10,18,18,22,8,18,20,21,4,20]
[null,null,null,null,null,null,null,null,null,null,null,null,null,null,null,null,null,null,null,null,null,null,null,null,null,null,null,null,null,175,null,null,null,null,null,null,null,null,null,null,null,null,null,null,null,null,null,null,null,null,null,null,null,null,null,null,null,null,null,null,null,null,null,null,3,14,3,15,4,7,7,10,9,21,19,20,9,19,19,21,7,19,1,7,3,21]
[null,null,null,null,null,null,null,null,null,null,null,null,null,null,null,null,null,null,null,null,null,null,null,null,null,null,null,null,null,176,null,null,null,null,null,null,null,null,null,null,null,null,null,null,null,null,null,null,null,null,null,null,null,null,null,null,null,null,null,null,null,null,null,null,4,13,2,16,5,6,6,11,8,22,1,8,8,20,1,20,6,20,6,8,2,22]
[null,null,null,null,null,null,null,null,null,null,null,null,null,null,null,null,null,null,null,null,null,null,null,null,null,null,null,null,null,177,null,null,null,null,null,null,null,null,null,null,null,null,null,null,null,null,null,null,null,null,null,null,null,null,null,null,null,null,null,null,null,null,null,null,5,12,17,21,1,17,5,12,7,23,7,9,7,21,7,8,5,21,5,9,23,30]
[null,null,null,null,null,null,null,null,null,null,null,null,null,null,null,null,null,null,null,null,null,null,null,null,null,null,null,null,null,178,null,null,null,null,null,null,null,null,null,null,null,null,null,null,null,null,null,null,null,null,null,null,null,null,null,null,null,null,null,null,null,null,null,null,6,11,18,20,16,18,4,13,6,24,6,10,6,22,6,9,4,22,4,10,24,29]
[null,null,null,null,null,null,null,null,null,null,null,null,null,null,null,null,null,null,null,null,null,null,null,null,null,null,null,null,null,179,null,null,null,null,null,null,null,null,null,null,null,null,null,null,null,null,null,null,null,null,null,null,null,null,null,null,null,null,null,null,null,null,null,null,7,10,1,19,15,19,3,14,2,5,5,11,5,23,5,10,3,23,3,11,25,28]
[null,null,null,null,null,null,null,null,null,null,null,null,null,null,null,null,null,null,null,null,null,null,null,null,null,null,null,null,null,180,null,null,null,null,null,null,null,null,null,null,null,null,null,null,null,null,null,null,null,null,null,null,null,null,null,null,null,null,null,null,null,null,null,null,8,9,9,10,14,20,2,15,3,4,4,12,4,24,4,11,2,24,2,12,26,27]
[null,null,null,null,null,null,null,null,null,null,null,null,null,null,null,null,null,null,null,null,null,null,null,null,null,null,null,null,null,181,null,null,null,null,null,null,null,null,null,null,null,null,null,null,null,null,null,null,null,null,null,null,null,null,null,null,null,null,null,null,null,null,null,null,1,19,8,11,13,21,16,23,1,16,3,13,3,25,3,12,25,28,13,29,1,13]
[null,null,null,null,null,null,null,null,null,null,null,null,null,null,null,null,null,null,null,null,null,null,null,null,null,null,null,null,null,182,null,null,null,null,null,null,null,null,null,null,null,null,null,null,null,null,null,null,null,null,null,null,null,null,null,null,null,null,null,null,null,null,null,null,18,20,7,12,12,22,17,22,15,17,2,14,2,26,2,13,26,27,14,28,12,14]
[null,null,null,null,null,null,null,null,null,null,null,null,null,null,null,null,null,null,null,null,null,null,null,null,null,null,null,null,null,183,null,null,null,null,null,null,null,null,null,null,null,null,null,null,null,null,null,null,null,null,null,null,null,null,null,null,null,null,null,null,null,null,null,null,2,17,6,13,2,11,18,21,14,18,15,25,1,15,14,27,1,14,15,27,11,15]
[null,null,null,null,null,null,null,null,null,null,null,null,null,null,null,null,null,null,null,null,null,null,null,null,null,null,null,null,null,184,null,null,null,null,null,null,null,null,null,null,null,null,null,null,null,null,null,null,null,null,null,null,null,null,null,null,null,null,null,null,null,null,null,null,3,16,5,14,3,10,19,20,13,19,16,24,14,16,15,26,13,15,16,26,10,16]
[null,null,null,null,null,null,null,null,null,null,null,null,null,null,null,null,null,null,null,null,null,null,null,null,null,null,null,null,null,185,null,null,null,null,null,null,null,null,null,null,null,null,null,null,null,null,null,null,null,null,null,null,null,null,null,null,null,null,null,null,null,null,null,null,4,15,4,15,4,9,1,9,12,20,17,23,13,17,16,25,12,16,17,25,9,17]
[null,null,null,null,null,null,null,null,null,null,null,null,null,null,null,null,null,null,null,null,null,null,null,null,null,null,null,null,null,186,null,null,null,null,null,null,null,null,null,null,null,null,null,null,null,null,null,null,null,null,null,null,null,null,null,null,null,null,null,null,null,null,null,null,5,14,3,16,5,8,8,10,11,21,18,22,12,18,17,24,11,17,18,24,8,18]
[null,null,null,null,null,null,null,null,null,null,null,null,null,null,null,null,null,null,null,null,null,null,null,null,null,null,null,null,null,187,null,null,null,null,null,null,null,null,null,null,null,null,null,null,null,null,null,null,null,null,null,null,null,null,null,null,null,null,null,null,null,null,null,null,6,13,2,17,6,7,7,11,10,22,19,21,11,19,18,23,10,18,19,23,7,19]
[null,null,null,null,null,null,null,null,null,null,null,null,null,null,null,null,null,null,null,null,null,null,null,null,null,null,null,null,null,188,null,null,null,null,null,null,null,null,null,null,null,null,null,null,null,null,null,null,null,null,null,null,null,null,null,null,null,null,null,null,null,null,null,null,7,12,18,21,1,18,6,12,9,23,1,20,10,20,19,22,9,19,20,22,6,20]
[null,null,null,null,null,null,null,null,null,null,null,null,null,null,null,null,null,null,null,null,null,null,null,null,null,null,null,null,null,189,null,null,null,null,null,null,null,null,null,null,null,null,null,null,null,null,null,null,null,null,null,null,null,null,null,null,null,null,null,null,null,null,null,null,8,11,19,20,17,19,5,13,8,24,8,9,9,21,20,21,8,20,1,21,5,21]
[null,null,null,null,null,null,null,null,null,null,null,null,null,null,null,null,null,null,null,null,null,null,null,null,null,null,null,null,null,190,null,null,null,null,null,null,null,null,null,null,null,null,null,null,null,null,null,null,null,null,null,null,null,null,null,null,null,null,null,null,null,null,null,null,9,10,1,10,16,20,4,14,2,7,7,10,8,22,1,8,7,21,7,8,4,22]
[null,null,null,null,null,null,null,null,null,null,null,null,null,null,null,null,null,null,null,null,null,null,null,null,null,null,null,null,null,191,null,null,null,null,null,null,null,null,null,null,null,null,null,null,null,null,null,null,null,null,null,null,null,null,null,null,null,null,null,null,null,null,null,null,null,null,9,11,15,21,3,15,3,6,6,11,7,23,7,9,6,22,6,9,3,23]
[null,null,null,null,null,null,null,null,null,null,null,null,null,null,null,null,null,null,null,null,null,null,null,null,null,null,null,null,null,192,null,null,null,null,null,null,null,null,null,null,null,null,null,null,null,null,null,null,null,null,null,null,null,null,null,null,null,null,null,null,null,null,null,null,null,null,8,12,14,22,2,16,4,5,5,12,6,24,6,10,5,23,5,10,2,24]
[null,null,null,null,null,null,null,null,null,null,null,null,null,null,null,null,null,null,null,null,null,null,null,null,null,null,null,null,null,193,null,null,null,null,null,null,null,null,null,null,null,null,null,null,null,null,null,null,null,null,null,null,null,null,null,null,null,null,null,null,null,null,null,null,null,null,7,13,2,13,17,23,1,17,4,13,5,25,5,11,4,24,4,11,25,30]
[null,null,null,null,null,null,null,null,null,null,null,null,null,null,null,null,null,null,null,null,null,null,null,null,null,null,null,null,null,194,null,null,null,null,null,null,null,null,null,null,null,null,null,null,null,null,null,null,null,null,null,null,null,null,null,null,null,null,null,null,null,null,null,null,null,null,6,14,3,12,18,22,16,18,3,14,4,26,4,12,3,25,3,12,26,29]
[null,null,null,null,null,null,null,null,null,null,null,null,null,null,null,null,null,null,null,null,null,null,null,null,null,null,null,null,null,195,null,null,null,null,null,null,null,null,null,null,null,null,null,null,null,null,null,null,null,null,null,null,null,null,null,null,null,null,null,null,null,null,null,null,null,null,5,15,4,11,19,21,15,19,2,15,2,3,3,13,2,26,2,13,27,28]
[null,null,null,null,null,null,null,null,null,null,null,null,null,null,null,null,null,null,null,null,null,null,null,null,null,null,null,null,null,196,null,null,null,null,null,null,null,null,null,null,null,null,null,null,null,null,null,null,null,null,null,null,null,null,null,null,null,null,null,null,null,null,null,null,null,null,4,16,5,10,1,20,14,20,16,25,1,16,2,14,27,28,14,29,1,14]
[null,null,null,null,null,null,null,null,null,null,null,null,null,null,null,null,null,null,null,null,null,null,null,null,null,null,null,null,null,197,null,null,null,null,null,null,null,null,null,null,null,null,null,null,null,null,null,null,null,null,null,null,null,null,null,null,null,null,null,null,null,null,null,null,null,null,3,17,6,9,9,10,13,21,17,24,15,17,15,27,1,15,15,28,13,15]
[null,null,null,null,null,null,null,null,null,null,null,null,null,null,null,null,null,null,null,null,null,null,null,null,null,null,null,null,null,198,null,null,null,null,null,null,null,null,null,null,null,null,null,null,null,null,null,null,null,null,null,null,null,null,null,null,null,null,null,null,null,null,null,null,null,null,2,18,7,8,8,11,12,22,18,23,14,18,16,26,14,16,16,27,12,16]
[null,null,null,null,null,null,null,null,null,null,null,null,null,null,null,null,null,null,null,null,null,null,null,null,null,null,null,null,null,199,null,null,null,null,null,null,null,null,null,null,null,null,null,null,null,null,null,null,null,null,null,null,null,null,null,null,null,null,null,null,null,null,null,null,null,null,19,21,1,19,7,12,11,23,19,22,13,19,17,25,13,17,17,26,11,17]
[null,null,null,null,null,null,null,null,null,null,null,null,null,null,null,null,null,null,null,null,null,null,null,null,null,null,null,null,null,200,null,null,null,null,null,null,null,null,null,null,null,null,null,null,null,null,null,null,null,null,null,null,null,null,null,null,null,null,null,null,null,null,null,null,null,null,1,20,18,20,6,13,10,24,20,21,12,20,18,24,12,18,18,25,10,18]
[null,null,null,null,null,null,null,null,null,null,null,null,null,null,null,null,null,null,null,null,null,null,null,null,null,null,null,null,null,201,null,null,null,null,null,null,null,null,null,null,null,null,null,null,null,null,null,null,null,null,null,null,null,null,null,null,null,null,null,null,null,null,null,null,null,null,10,11,17,21,5,14,2,9,1,9,11,21,19,23,11,19,19,24,9,19]
[null,null,null,null,null,null,null,null,null,null,null,null,null,null,null,null,null,null,null,null,null,null,null,null,null,null,null,null,null,202,null,null,null,null,null,null,null,null,null,null,null,null,null,null,null,null,null,null,null,null,null,null,null,null,null,null,null,null,null,null,null,null,null,null,null,null,9,12,16,22,4,15,3,8,8,10,10,22,20,22,10,20,20,23,8,20]
[null,null,null,null,null,null,null,null,null,null,null,null,null,null,null,null,null,null,null,null,null,null,null,null,null,null,null,null,null,203,null,null,null,null,null,null,null,null,null,null,null,null,null,null,null,null,null,null,null,null,null,null,null,null,null,null,null,null,null,null,null,null,null,null,null,null,8,13,2,15,3,16,4,7,7,11,9,23,1,21,9,21,21,22,7,21]
[null,null,null,null,null,null,null,null,null,null,null,null,null,null,null,null,null,null,null,null,null,null,null,null,null,null,null,null,null,204,null,null,null,null,null,null,null,null,null,null,null,null,null,null,null,null,null,null,null,null,null,null,null,null,null,null,null,null,null,null,null,null,null,null,null,null,7,14,3,14,2,17,5,6,6,12,8,24,8,9,8,22,1,8,6,22]
[null,null,null,null,null,null,null,null,null,null,null,null,null,null,null,null,null,null,null,null,null,null,null,null,null,null,null,null,null,205,null,null,null,null,null,null,null,null,null,null,null,null,null,null,null,null,null,null,null,null,null,null,null,null,null,null,null,null,null,null,null,null,null,null,null,null,6,15,4,13,18,23,1,18,5,13,7,25,7,10,7,23,7,9,5,23]
[null,null,null,null,null,null,null,null,null,null,null,null,null,null,null,null,null,null,null,null,null,null,null,null,null,null,null,null,null,206,null,null,null,null,null,null,null,null,null,null,null,null,null,null,null,null,null,null,null,null,null,null,null,null,null,null,null,null,null,null,null,null,null,null,null,null,5,16,5,12,19,22,17,19,4,14,6,26,6,11,6,24,6,10,4,24]
[null,null,null,null,null,null,null,null,null,null,null,null,null,null,null,null,null,null,null,null,null,null,null,null,null,null,null,null,null,207,null,null,null,null,null,null,null,null,null,null,null,null,null,null,null,null,null,null,null,null,null,null,null,null,null,null,null,null,null,null,null,null,null,null,null,null,4,17,6,11,20,21,16,20,3,15,2,5,5,12,5,25,5,11,3,25]
[null,null,null,null,null,null,null,null,null,null,null,null,null,null,null,null,null,null,null,null,null,null,null,null,null,null,null,null,null,208,null,null,null,null,null,null,null,null,null,null,null,null,null,null,null,null,null,null,null,null,null,null,null,null,null,null,null,null,null,null,null,null,null,null,null,null,3,18,7,10,1,10,15,21,2,16,3,4,4,13,4,26,4,12,2,26]
[null,null,null,null,null,null,null,null,null,null,null,null,null,null,null,null,null,null,null,null,null,null,null,null,null,null,null,null,null,209,null,null,null,null,null,null,null,null,null,null,null,null,null,null,null,null,null,null,null,null,null,null,null,null,null,null,null,null,null,null,null,null,null,null,null,null,2,19,8,9,9,11,14,22,17,25,1,17,3,14,3,27,3,13,27,30]
[null,null,null,null,null,null,null,null,null,null,null,null,null,null,null,null,null,null,null,null,null,null,null,null,null,null,null,null,null,210,null,null,null,null,null,null,null,null,null,null,null,null,null,null,null,null,null,null,null,null,null,null,null,null,null,null,null,null,null,null,null,null,null,null,null,null,20,21,1,20,8,12,13,23,18,24,16,18,2,15,2,28,2,14,28,29]
[null,null,null,null,null,null,null,null,null,null,null,null,null,null,null,null,null,null,null,null,null,null,null,null,null,null,null,null,null,211,null,null,null,null,null,null,null,null,null,null,null,null,null,null,null,null,null,null,null,null,null,null,null,null,null,null,null,null,null,null,null,null,null,null,null,null,null,null,19,21,7,13,12,24,19,23,15,19,16,27,1,16,15,29,1,15]
[null,null,null,null,null,null,null,null,null,null,null,null,null,null,null,null,null,null,null,null,null,null,null,null,null,null,null,null,null,212,null,null,null,null,null,null,null,null,null,null,null,null,null,null,null,null,null,null,null,null,null,null,null,null,null,null,null,null,null,null,null,null,null,null,null,null,null,null,18,22,6,14,2,11,20,22,14,20,17,26,15,17,16,28,14,16]
[null,null,null,null,null,null,null,null,null,null,null,null,null,null,null,null,null,null,null,null,null,null,null,null,null,null,null,null,null,213,null,null,null,null,null,null,null,null,null,null,null,null,null,null,null,null,null,null,null,null,null,null,null,null,null,null,null,null,null,null,null,null,null,null,null,null,null,null,2,17,5,15,3,10,1,21,13,21,18,25,14,18,17,27,13,17]
[null,null,null,null,null,null,null,null,null,null,null,null,null,null,null,null,null,null,null,null,null,null,null,null,null,null,null,null,null,214,null,null,null,null,null,null,null,null,null,null,null,null,null,null,null,null,null,null,null,null,null,null,null,null,null,null,null,null,null,null,null,null,null,null,null,null,null,null,3,16,4,16,4,9,9,10,12,22,19,24,13,19,18,26,12,18]
[null,null,null,null,null,null,null,null,null,null,null,null,null,null,null,null,null,null,null,null,null,null,null,null,null,null,null,null,null,215,null,null,null,null,null,null,null,null,null,null,null,null,null,null,null,null,null,null,null,null,null,null,null,null,null,null,null,null,null,null,null,null,null,null,null,null,null,null,4,15,3,17,5,8,8,11,11,23,20,23,12,20,19,25,11,19]
[null,null,null,null,null,null,null,null,null,null,null,null,null,null,null,null,null,null,null,null,null,null,null,null,null,null,null,null,null,216,null,null,null,null,null,null,null,null,null,null,null,null,null,null,null,null,null,null,null,null,null,null,null,null,null,null,null,null,null,null,null,null,null,null,null,null,null,null,5,14,2,18,6,7,7,12,10,24,21,22,11,21,20,24,10,20]
[null,null,null,null,null,null,null,null,null,null,null,null,null,null,null,null,null,null,null,null,null,null,null,null,null,null,null,null,null,217,null,null,null,null,null,null,null,null,null,null,null,null,null,null,null,null,null,null,null,null,null,null,null,null,null,null,null,null,null,null,null,null,null,null,null,null,null,null,6,13,19,23,1,19,6,13,9,25,1,9,10,22,21,23,9,21]
[null,null,null,null,null,null,null,null,null,null,null,null,null,null,null,null,null,null,null,null,null,null,null,null,null,null,null,null,null,218,null,null,null,null,null,null,null,null,null,null,null,null,null,null,null,null,null,null,null,null,null,null,null,null,null,null,null,null,null,null,null,null,null,null,null,null,null,null,7,12,20,22,18,20,5,14,8,26,8,10,9,23,1,22,8,22]
[null,null,null,null,null,null,null,null,null,null,null,null,null,null,null,null,null,null,null,null,null,null,null,null,null,null,null,null,null,219,null,null,null,null,null,null,null,null,null,null,null,null,null,null,null,null,null,null,null,null,null,null,null,null,null,null,null,null,null,null,null,null,null,null,null,null,null,null,8,11,1,21,17,21,4,15,2,7,7,11,8,24,8,9,7,23]
[null,null,null,null,null,null,null,null,null,null,null,null,null,null,null,null,null,null,null,null,null,null,null,null,null,null,null,null,null,220,null,null,null,null,null,null,null,null,null,null,null,null,null,null,null,null,null,null,null,null,null,null,null,null,null,null,null,null,null,null,null,null,null,null,null,null,null,null,9,10,10,11,16,22,3,16,3,6,6,12,7,25,7,10,6,24]
[null,null,null,null,null,null,null,null,null,null,null,null,null,null,null,null,null,null,null,null,null,null,null,null,null,null,null,null,null,221,null,null,null,null,null,null,null,null,null,null,null,null,null,null,null,null,null,null,null,null,null,null,null,null,null,null,null,null,null,null,null,null,null,null,null,null,null,null,1,21,9,12,15,23,2,17,4,5,5,13,6,26,6,11,5,25]
[null,null,null,null,null,null,null,null,null,null,null,null,null,null,null,null,null,null,null,null,null,null,null,null,null,null,null,null,null,222,null,null,null,null,null,null,null,null,null,null,null,null,null,null,null,null,null,null,null,null,null,null,null,null,null,null,null,null,null,null,null,null,null,null,null,null,null,null,20,22,8,13,14,24,18,25,1,18,4,14,5,27,5,12,4,26]
[null,null,null,null,null,null,null,null,null,null,null,null,null,null,null,null,null,null,null,null,null,null,null,null,null,null,null,null,null,223,null,null,null,null,null,null,null,null,null,null,null,null,null,null,null,null,null,null,null,null,null,null,null,null,null,null,null,null,null,null,null,null,null,null,null,null,null,null,2,19,7,14,2,13,19,24,17,19,3,15,4,28,4,13,3,27]
[null,null,null,null,null,null,null,null,null,null,null,null,null,null,null,null,null,null,null,null,null,null,null,null,null,null,null,null,null,224,null,null,null,null,null,null,null,null,null,null,null,null,null,null,null,null,null,null,null,null,null,null,null,null,null,null,null,null,null,null,null,null,null,null,null,null,null,null,3,18,6,15,3,12,20,23,16,20,2,16,2,3,3,14,2,28]
[null,null,null,null,null,null,null,null,null,null,null,null,null,null,null,null,null,null,null,null,null,null,null,null,null,null,null,null,null,225,null,null,null,null,null,null,null,null,null,null,null,null,null,null,null,null,null,null,null,null,null,null,null,null,null,null,null,null,null,null,null,null,null,null,null,null,null,null,4,17,5,16,4,11,21,22,15,21,17,27,1,17,2,15,29,30]
[null,null,null,null,null,null,null,null,null,null,null,null,null,null,null,null,null,null,null,null,null,null,null,null,null,null,null,null,null,226,null,null,null,null,null,null,null,null,null,null,null,null,null,null,null,null,null,null,null,null,null,null,null,null,null,null,null,null,null,null,null,null,null,null,null,null,null,null,5,16,4,17,5,10,1,10,14,22,18,26,16,18,16,29,1,16]
[null,null,null,null,null,null,null,null,null,null,null,null,null,null,null,null,null,null,null,null,null,null,null,null,null,null,null,null,null,227,null,null,null,null,null,null,null,null,null,null,null,null,null,null,null,null,null,null,null,null,null,null,null,null,null,null,null,null,null,null,null,null,null,null,null,null,null,null,6,15,3,18,6,9,9,11,13,23,19,25,15,19,17,28,15,17]
[null,null,null,null,null,null,null,null,null,null,null,null,null,null,null,null,null,null,null,null,null,null,null,null,null,null,null,null,null,228,null,null,null,null,null,null,null,null,null,null,null,null,null,null,null,null,null,null,null,null,null,null,null,null,null,null,null,null,null,null,null,null,null,null,null,null,null,null,7,14,2,19,7,8,8,12,12,24,20,24,14,20,18,27,14,18]
[null,null,null,null,null,null,null,null,null,null,null,null,null,null,null,null,null,null,null,null,null,null,null,null,null,null,null,null,null,229,null,null,null,null,null,null,null,null,null,null,null,null,null,null,null,null,null,null,null,null,null,null,null,null,null,null,null,null,null,null,null,null,null,null,null,null,null,null,8,13,20,23,1,20,7,13,11,25,21,23,13,21,19,26,13,19]
[null,null,null,null,null,null,null,null,null,null,null,null,null,null,null,null,null,null,null,null,null,null,null,null,null,null,null,null,null,230,null,null,null,null,null,null,null,null,null,null,null,null,null,null,null,null,null,null,null,null,null,null,null,null,null,null,null,null,null,null,null,null,null,null,null,null,null,null,9,12,21,22,19,21,6,14,10,26,1,22,12,22,20,25,12,20]
[null,null,null,null,null,null,null,null,null,null,null,null,null,null,null,null,null,null,null,null,null,null,null,null,null,null,null,null,null,231,null,null,null,null,null,null,null,null,null,null,null,null,null,null,null,null,null,null,null,null,null,null,null,null,null,null,null,null,null,null,null,null,null,null,null,null,null,null,10,11,1,11,18,22,5,15,2,9,9,10,11,23,21,24,11,21]
[null,null,null,null,null,null,null,null,null,null,null,null,null,null,null,null,null,null,null,null,null,null,null,null,null,null,null,null,null,232,null,null,null,null,null,null,null,null,null,null,null,null,null,null,null,null,null,null,null,null,null,null,null,null,null,null,null,null,null,null,null,null,null,null,null,null,null,null,null,null,10,12,17,23,4,16,3,8,8,11,10,24,22,23,10,22]
[null,null,null,null,null,null,null,null,null,null,null,null,null,null,null,null,null,null,null,null,null,null,null,null,null,null,null,null,null,233,null,null,null,null,null,null,null,null,null,null,null,null,null,null,null,null,null,null,null,null,null,null,null,null,null,null,null,null,null,null,null,null,null,null,null,null,null,null,null,null,9,13,16,24,3,17,4,7,7,12,9,25,1,9,9,23]
[null,null,null,null,null,null,null,null,null,null,null,null,null,null,null,null,null,null,null,null,null,null,null,null,null,null,null,null,null,234,null,null,null,null,null,null,null,null,null,null,null,null,null,null,null,null,null,null,null,null,null,null,null,null,null,null,null,null,null,null,null,null,null,null,null,null,null,null,null,null,8,14,2,15,2,18,5,6,6,13,8,26,8,10,8,24]
[null,null,null,null,null,null,null,null,null,null,null,null,null,null,null,null,null,null,null,null,null,null,null,null,null,null,null,null,null,235,null,null,null,null,null,null,null,null,null,null,null,null,null,null,null,null,null,null,null,null,null,null,null,null,null,null,null,null,null,null,null,null,null,null,null,null,null,null,null,null,7,15,3,14,19,25,1,19,5,14,7,27,7,11,7,25]
[null,null,null,null,null,null,null,null,null,null,null,null,null,null,null,null,null,null,null,null,null,null,null,null,null,null,null,null,null,236,null,null,null,null,null,null,null,null,null,null,null,null,null,null,null,null,null,null,null,null,null,null,null,null,null,null,null,null,null,null,null,null,null,null,null,null,null,null,null,null,6,16,4,13,20,24,18,20,4,15,6,28,6,12,6,26]
[null,null,null,null,null,null,null,null,null,null,null,null,null,null,null,null,null,null,null,null,null,null,null,null,null,null,null,null,null,237,null,null,null,null,null,null,null,null,null,null,null,null,null,null,null,null,null,null,null,null,null,null,null,null,null,null,null,null,null,null,null,null,null,null,null,null,null,null,null,null,5,17,5,12,21,23,17,21,3,16,2,5,5,13,5,27]
[null,null,null,null,null,null,null,null,null,null,null,null,null,null,null,null,null,null,null,null,null,null,null,null,null,null,null,null,null,238,null,null,null,null,null,null,null,null,null,null,null,null,null,null,null,null,null,null,null,null,null,null,null,null,null,null,null,null,null,null,null,null,null,null,null,null,null,null,null,null,4,18,6,11,1,22,16,22,2,17,3,4,4,14,4,28]
[null,null,null,null,null,null,null,null,null,null,null,null,null,null,null,null,null,null,null,null,null,null,null,null,null,null,null,null,null,239,null,null,null,null,null,null,null,null,null,null,null,null,null,null,null,null,null,null,null,null,null,null,null,null,null,null,null,null,null,null,null,null,null,null,null,null,null,null,null,null,3,19,7,10,10,11,15,23,18,27,1,18,3,15,3,29]
[null,null,null,null,null,null,null,null,null,null,null,null,null,null,null,null,null,null,null,null,null,null,null,null,null,null,null,null,null,240,null,null,null,null,null,null,null,null,null,null,null,null,null,null,null,null,null,null,null,null,null,null,null,null,null,null,null,null,null,null,null,null,null,null,null,null,null,null,null,null,2,20,8,9,9,12,14,24,19,26,17,19,2,16,2,30]
[null,null,null,null,null,null,null,null,null,null,null,null,null,null,null,null,null,null,null,null,null,null,null,null,null,null,null,null,null,241,null,null,null,null,null,null,null,null,null,null,null,null,null,null,null,null,null,null,null,null,null,null,null,null,null,null,null,null,null,null,null,null,null,null,null,null,null,null,null,null,21,23,1,21,8,13,13,25,20,25,16,20,17,29,1,17]
[null,null,null,null,null,null,null,null,null,null,null,null,null,null,null,null,null,null,null,null,null,null,null,null,null,null,null,null,null,242,null,null,null,null,null,null,null,null,null,null,null,null,null,null,null,null,null,null,null,null,null,null,null,null,null,null,null,null,null,null,null,null,null,null,null,null,null,null,null,null,1,22,20,22,7,14,12,26,21,24,15,21,18,28,16,18]
[null,null,null,null,null,null,null,null,null,null,null,null,null,null,null,null,null,null,null,null,null,null,null,null,null,null,null,null,null,243,null,null,null,null,null,null,null,null,null,null,null,null,null,null,null,null,null,null,null,null,null,null,null,null,null,null,null,null,null,null,null,null,null,null,null,null,null,null,null,null,11,12,19,23,6,15,2,11,22,23,14,22,19,27,15,19]
[null,null,null,null,null,null,null,null,null,null,null,null,null,null,null,null,null,null,null,null,null,null,null,null,null,null,null,null,null,244,null,null,null,null,null,null,null,null,null,null,null,null,null,null,null,null,null,null,null,null,null,null,null,null,null,null,null,null,null,null,null,null,null,null,null,null,null,null,null,null,10,13,18,24,5,16,3,10,1,10,13,23,20,26,14,20]
[null,null,null,null,null,null,null,null,null,null,null,null,null,null,null,null,null,null,null,null,null,null,null,null,null,null,null,null,null,245,null,null,null,null,null,null,null,null,null,null,null,null,null,null,null,null,null,null,null,null,null,null,null,null,null,null,null,null,null,null,null,null,null,null,null,null,null,null,null,null,9,14,2,17,4,17,4,9,9,11,12,24,21,25,13,21]
[null,null,null,null,null,null,null,null,null,null,null,null,null,null,null,null,null,null,null,null,null,null,null,null,null,null,null,null,null,246,null,null,null,null,null,null,null,null,null,null,null,null,null,null,null,null,null,null,null,null,null,null,null,null,null,null,null,null,null,null,null,null,null,null,null,null,null,null,null,null,8,15,3,16,3,18,5,8,8,12,11,25,22,24,12,22]
[null,null,null,null,null,null,null,null,null,null,null,null,null,null,null,null,null,null,null,null,null,null,null,null,null,null,null,null,null,247,null,null,null,null,null,null,null,null,null,null,null,null,null,null,null,null,null,null,null,null,null,null,null,null,null,null,null,null,null,null,null,null,null,null,null,null,null,null,null,null,7,16,4,15,2,19,6,7,7,13,10,26,1,23,11,23]
[null,null,null,null,null,null,null,null,null,null,null,null,null,null,null,null,null,null,null,null,null,null,null,null,null,null,null,null,null,248,null,null,null,null,null,null,null,null,null,null,null,null,null,null,null,null,null,null,null,null,null,null,null,null,null,null,null,null,null,null,null,null,null,null,null,null,null,null,null,null,6,17,5,14,20,25,1,20,6,14,9,27,9,10,10,24]
[null,null,null,null,null,null,null,null,null,null,null,null,null,null,null,null,null,null,null,null,null,null,null,null,null,null,null,null,null,249,null,null,null,null,null,null,null,null,null,null,null,null,null,null,null,null,null,null,null,null,null,null,null,null,null,null,null,null,null,null,null,null,null,null,null,null,null,null,null,null,5,18,6,13,21,24,19,21,5,15,8,28,8,11,9,25]
[null,null,null,null,null,null,null,null,null,null,null,null,null,null,null,null,null,null,null,null,null,null,null,null,null,null,null,null,null,250,null,null,null,null,null,null,null,null,null,null,null,null,null,null,null,null,null,null,null,null,null,null,null,null,null,null,null,null,null,null,null,null,null,null,null,null,null,null,null,null,4,19,7,12,22,23,18,22,4,16,2,7,7,12,8,26]
[null,null,null,null,null,null,null,null,null,null,null,null,null,null,null,null,null,null,null,null,null,null,null,null,null,null,null,null,null,251,null,null,null,null,null,null,null,null,null,null,null,null,null,null,null,null,null,null,null,null,null,null,null,null,null,null,null,null,null,null,null,null,null,null,null,null,null,null,null,null,3,20,8,11,1,11,17,23,3,17,3,6,6,13,7,27]
[null,null,null,null,null,null,null,null,null,null,null,null,null,null,null,null,null,null,null,null,null,null,null,null,null,null,null,null,null,252,null,null,null,null,null,null,null,null,null,null,null,null,null,null,null,null,null,null,null,null,null,null,null,null,null,null,null,null,null,null,null,null,null,null,null,null,null,null,null,null,2,21,9,10,10,12,16,24,2,18,4,5,5,14,6,28]
[null,null,null,null,null,null,null,null,null,null,null,null,null,null,null,null,null,null,null,null,null,null,null,null,null,null,null,null,null,253,null,null,null,null,null,null,null,null,null,null,null,null,null,null,null,null,null,null,null,null,null,null,null,null,null,null,null,null,null,null,null,null,null,null,null,null,null,null,null,null,22,23,1,22,9,13,15,25,19,27,1,19,4,15,5,29]
[null,null,null,null,null,null,null,null,null,null,null,null,null,null,null,null,null,null,null,null,null,null,null,null,null,null,null,null,null,254,null,null,null,null,null,null,null,null,null,null,null,null,null,null,null,null,null,null,null,null,null,null,null,null,null,null,null,null,null,null,null,null,null,null,null,null,null,null,null,null,null,null,21,23,8,14,14,26,20,26,18,20,3,16,4,30]
[null,null,null,null,null,null,null,null,null,null,null,null,null,null,null,null,null,null,null,null,null,null,null,null,null,null,null,null,null,255,null,null,null,null,null,null,null,null,null,null,null,null,null,null,null,null,null,null,null,null,null,null,null,null,null,null,null,null,null,null,null,null,null,null,null,null,null,null,null,null,null,null,20,24,7,15,2,13,21,25,17,21,2,17,2,3]
[null,null,null,null,null,null,null,null,null,null,null,null,null,null,null,null,null,null,null,null,null,null,null,null,null,null,null,null,null,256,null,null,null,null,null,null,null,null,null,null,null,null,null,null,null,null,null,null,null,null,null,null,null,null,null,null,null,null,null,null,null,null,null,null,null,null,null,null,null,null,null,null,2,19,6,16,3,12,22,24,16,22,18,29,1,18]
[null,null,null,null,null,null,null,null,null,null,null,null,null,null,null,null,null,null,null,null,null,null,null,null,null,null,null,null,null,257,null,null,null,null,null,null,null,null,null,null,null,null,null,null,null,null,null,null,null,null,null,null,null,null,null,null,null,null,null,null,null,null,null,null,null,null,null,null,null,null,null,null,3,18,5,17,4,11,1,23,15,23,19,28,17,19]
[null,null,null,null,null,null,null,null,null,null,null,null,null,null,null,null,null,null,null,null,null,null,null,null,null,null,null,null,null,258,null,null,null,null,null,null,null,null,null,null,null,null,null,null,null,null,null,null,null,null,null,null,null,null,null,null,null,null,null,null,null,null,null,null,null,null,null,null,null,null,null,null,4,17,4,18,5,10,10,11,14,24,20,27,16,20]
[null,null,null,null,null,null,null,null,null,null,null,null,null,null,null,null,null,null,null,null,null,null,null,null,null,null,null,null,null,259,null,null,null,null,null,null,null,null,null,null,null,null,null,null,null,null,null,null,null,null,null,null,null,null,null,null,null,null,null,null,null,null,null,null,null,null,null,null,null,null,null,null,5,16,3,19,6,9,9,12,13,25,21,26,15,21]
[null,null,null,null,null,null,null,null,null,null,null,null,null,null,null,null,null,null,null,null,null,null,null,null,null,null,null,null,null,260,null,null,null,null,null,null,null,null,null,null,null,null,null,null,null,null,null,null,null,null,null,null,null,null,null,null,null,null,null,null,null,null,null,null,null,null,null,null,null,null,null,null,6,15,2,20,7,8,8,13,12,26,22,25,14,22]
[null,null,null,null,null,null,null,null,null,null,null,null,null,null,null,null,null,null,null,null,null,null,null,null,null,null,null,null,null,261,null,null,null,null,null,null,null,null,null,null,null,null,null,null,null,null,null,null,null,null,null,null,null,null,null,null,null,null,null,null,null,null,null,null,null,null,null,null,null,null,null,null,7,14,21,25,1,21,7,14,11,27,23,24,13,23]
[null,null,null,null,null,null,null,null,null,null,null,null,null,null,null,null,null,null,null,null,null,null,null,null,null,null,null,null,null,262,null,null,null,null,null,null,null,null,null,null,null,null,null,null,null,null,null,null,null,null,null,null,null,null,null,null,null,null,null,null,null,null,null,null,null,null,null,null,null,null,null,null,8,13,22,24,20,22,6,15,10,28,1,10,12,24]
[null,null,null,null,null,null,null,null,null,null,null,null,null,null,null,null,null,null,null,null,null,null,null,null,null,null,null,null,null,263,null,null,null,null,null,null,null,null,null,null,null,null,null,null,null,null,null,null,null,null,null,null,null,null,null,null,null,null,null,null,null,null,null,null,null,null,null,null,null,null,null,null,9,12,1,23,19,23,5,16,2,9,9,11,11,25]
[null,null,null,null,null,null,null,null,null,null,null,null,null,null,null,null,null,null,null,null,null,null,null,null,null,null,null,null,null,264,null,null,null,null,null,null,null,null,null,null,null,null,null,null,null,null,null,null,null,null,null,null,null,null,null,null,null,null,null,null,null,null,null,null,null,null,null,null,null,null,null,null,10,11,11,12,18,24,4,17,3,8,8,12,10,26]
[null,null,null,null,null,null,null,null,null,null,null,null,null,null,null,null,null,null,null,null,null,null,null,null,null,null,null,null,null,265,null,null,null,null,null,null,null,null,null,null,null,null,null,null,null,null,null,null,null,null,null,null,null,null,null,null,null,null,null,null,null,null,null,null,null,null,null,null,null,null,null,null,1,23,10,13,17,25,3,18,4,7,7,13,9,27]
[null,null,null,null,null,null,null,null,null,null,null,null,null,null,null,null,null,null,null,null,null,null,null,null,null,null,null,null,null,266,null,null,null,null,null,null,null,null,null,null,null,null,null,null,null,null,null,null,null,null,null,null,null,null,null,null,null,null,null,null,null,null,null,null,null,null,null,null,null,null,null,null,22,24,9,14,16,26,2,19,5,6,6,14,8,28]
[null,null,null,null,null,null,null,null,null,null,null,null,null,null,null,null,null,null,null,null,null,null,null,null,null,null,null,null,null,267,null,null,null,null,null,null,null,null,null,null,null,null,null,null,null,null,null,null,null,null,null,null,null,null,null,null,null,null,null,null,null,null,null,null,null,null,null,null,null,null,null,null,2,21,8,15,2,15,20,27,1,20,5,15,7,29]
[null,null,null,null,null,null,null,null,null,null,null,null,null,null,null,null,null,null,null,null,null,null,null,null,null,null,null,null,null,268,null,null,null,null,null,null,null,null,null,null,null,null,null,null,null,null,null,null,null,null,null,null,null,null,null,null,null,null,null,null,null,null,null,null,null,null,null,null,null,null,null,null,3,20,7,16,3,14,21,26,19,21,4,16,6,30]
[null,null,null,null,null,null,null,null,null,null,null,null,null,null,null,null,null,null,null,null,null,null,null,null,null,null,null,null,null,269,null,null,null,null,null,null,null,null,null,null,null,null,null,null,null,null,null,null,null,null,null,null,null,null,null,null,null,null,null,null,null,null,null,null,null,null,null,null,null,null,null,null,4,19,6,17,4,13,22,25,18,22,3,17,2,5]
[null,null,null,null,null,null,null,null,null,null,null,null,null,null,null,null,null,null,null,null,null,null,null,null,null,null,null,null,null,270,null,null,null,null,null,null,null,null,null,null,null,null,null,null,null,null,null,null,null,null,null,null,null,null,null,null,null,null,null,null,null,null,null,null,null,null,null,null,null,null,null,null,5,18,5,18,5,12,23,24,17,23,2,18,3,4]
[null,null,null,null,null,null,null,null,null,null,null,null,null,null,null,null,null,null,null,null,null,null,null,null,null,null,null,null,null,271,null,null,null,null,null,null,null,null,null,null,null,null,null,null,null,null,null,null,null,null,null,null,null,null,null,null,null,null,null,null,null,null,null,null,null,null,null,null,null,null,null,null,6,17,4,19,6,11,1,11,16,24,19,29,1,19]
[null,null,null,null,null,null,null,null,null,null,null,null,null,null,null,null,null,null,null,null,null,null,null,null,null,null,null,null,null,272,null,null,null,null,null,null,null,null,null,null,null,null,null,null,null,null,null,null,null,null,null,null,null,null,null,null,null,null,null,null,null,null,null,null,null,null,null,null,null,null,null,null,7,16,3,20,7,10,10,12,15,25,20,28,18,20]
[null,null,null,null,null,null,null,null,null,null,null,null,null,null,null,null,null,null,null,null,null,null,null,null,null,null,null,null,null,273,null,null,null,null,null,null,null,null,null,null,null,null,null,null,null,null,null,null,null,null,null,null,null,null,null,null,null,null,null,null,null,null,null,null,null,null,null,null,null,null,null,null,8,15,2,21,8,9,9,13,14,26,21,27,17,21]
[null,null,null,null,null,null,null,null,null,null,null,null,null,null,null,null,null,null,null,null,null,null,null,null,null,null,null,null,null,274,null,null,null,null,null,null,null,null,null,null,null,null,null,null,null,null,null,null,null,null,null,null,null,null,null,null,null,null,null,null,null,null,null,null,null,null,null,null,null,null,null,null,9,14,22,25,1,22,8,14,13,27,22,26,16,22]
[null,null,null,null,null,null,null,null,null,null,null,null,null,null,null,null,null,null,null,null,null,null,null,null,null,null,null,null,null,275,null,null,null,null,null,null,null,null,null,null,null,null,null,null,null,null,null,null,null,null,null,null,null,null,null,null,null,null,null,null,null,null,null,null,null,null,null,null,null,null,null,null,10,13,23,24,21,23,7,15,12,28,23,25,15,23]
[null,null,null,null,null,null,null,null,null,null,null,null,null,null,null,null,null,null,null,null,null,null,null,null,null,null,null,null,null,276,null,null,null,null,null,null,null,null,null,null,null,null,null,null,null,null,null,null,null,null,null,null,null,null,null,null,null,null,null,null,null,null,null,null,null,null,null,null,null,null,null,null,11,12,1,12,20,24,6,16,2,11,1,24,14,24]
[null,null,null,null,null,null,null,null,null,null,null,null,null,null,null,null,null,null,null,null,null,null,null,null,null,null,null,null,null,277,null,null,null,null,null,null,null,null,null,null,null,null,null,null,null,null,null,null,null,null,null,null,null,null,null,null,null,null,null,null,null,null,null,null,null,null,null,null,null,null,null,null,null,null,11,13,19,25,5,17,3,10,10,11,13,25]
[null,null,null,null,null,null,null,null,null,null,null,null,null,null,null,null,null,null,null,null,null,null,null,null,null,null,null,null,null,278,null,null,null,null,null,null,null,null,null,null,null,null,null,null,null,null,null,null,null,null,null,null,null,null,null,null,null,null,null,null,null,null,null,null,null,null,null,null,null,null,null,null,null,null,10,14,18,26,4,18,4,9,9,12,12,26]
[null,null,null,null,null,null,null,null,null,null,null,null,null,null,null,null,null,null,null,null,null,null,null,null,null,null,null,null,null,279,null,null,null,null,null,null,null,null,null,null,null,null,null,null,null,null,null,null,null,null,null,null,null,null,null,null,null,null,null,null,null,null,null,null,null,null,null,null,null,null,null,null,null,null,9,15,2,17,3,19,5,8,8,13,11,27]
[null,null,null,null,null,null,null,null,null,null,null,null,null,null,null,null,null,null,null,null,null,null,null,null,null,null,null,null,null,280,null,null,null,null,null,null,null,null,null,null,null,null,null,null,null,null,null,null,null,null,null,null,null,null,null,null,null,null,null,null,null,null,null,null,null,null,null,null,null,null,null,null,null,null,8,16,3,16,2,20,6,7,7,14,10,28]
[null,null,null,null,null,null,null,null,null,null,null,null,null,null,null,null,null,null,null,null,null,null,null,null,null,null,null,null,null,281,null,null,null,null,null,null,null,null,null,null,null,null,null,null,null,null,null,null,null,null,null,null,null,null,null,null,null,null,null,null,null,null,null,null,null,null,null,null,null,null,null,null,null,null,7,17,4,15,21,27,1,21,6,15,9,29]
[null,null,null,null,null,null,null,null,null,null,null,null,null,null,null,null,null,null,null,null,null,null,null,null,null,null,null,null,null,282,null,null,null,null,null,null,null,null,null,null,null,null,null,null,null,null,null,null,null,null,null,null,null,null,null,null,null,null,null,null,null,null,null,null,null,null,null,null,null,null,null,null,null,null,6,18,5,14,22,26,20,22,5,16,8,30]
[null,null,null,null,null,null,null,null,null,null,null,null,null,null,null,null,null,null,null,null,null,null,null,null,null,null,null,null,null,283,null,null,null,null,null,null,null,null,null,null,null,null,null,null,null,null,null,null,null,null,null,null,null,null,null,null,null,null,null,null,null,null,null,null,null,null,null,null,null,null,null,null,null,null,5,19,6,13,23,25,19,23,4,17,2,7]
[null,null,null,null,null,null,null,null,null,null,null,null,null,null,null,null,null,null,null,null,null,null,null,null,null,null,null,null,null,284,null,null,null,null,null,null,null,null,null,null,null,null,null,null,null,null,null,null,null,null,null,null,null,null,null,null,null,null,null,null,null,null,null,null,null,null,null,null,null,null,null,null,null,null,4,20,7,12,1,24,18,24,3,18,3,6]
[null,null,null,null,null,null,null,null,null,null,null,null,null,null,null,null,null,null,null,null,null,null,null,null,null,null,null,null,null,285,null,null,null,null,null,null,null,null,null,null,null,null,null,null,null,null,null,null,null,null,null,null,null,null,null,null,null,null,null,null,null,null,null,null,null,null,null,null,null,null,null,null,null,null,3,21,8,11,11,12,17,25,2,19,4,5]
[null,null,null,null,null,null,null,null,null,null,null,null,null,null,null,null,null,null,null,null,null,null,null,null,null,null,null,null,null,286,null,null,null,null,null,null,null,null,null,null,null,null,null,null,null,null,null,null,null,null,null,null,null,null,null,null,null,null,null,null,null,null,null,null,null,null,null,null,null,null,null,null,null,null,2,22,9,10,10,13,16,26,20,29,1,20]
[null,null,null,null,null,null,null,null,null,null,null,null,null,null,null,null,null,null,null,null,null,null,null,null,null,null,null,null,null,287,null,null,null,null,null,null,null,null,null,null,null,null,null,null,null,null,null,null,null,null,null,null,null,null,null,null,null,null,null,null,null,null,null,null,null,null,null,null,null,null,null,null,null,null,23,25,1,23,9,14,15,27,21,28,19,21]
[null,null,null,null,null,null,null,null,null,null,null,null,null,null,null,null,null,null,null,null,null,null,null,null,null,null,null,null,null,288,null,null,null,null,null,null,null,null,null,null,null,null,null,null,null,null,null,null,null,null,null,null,null,null,null,null,null,null,null,null,null,null,null,null,null,null,null,null,null,null,null,null,null,null,1,24,22,24,8,15,14,28,22,27,18,22]
[null,null,null,null,null,null,null,null,null,null,null,null,null,null,null,null,null,null,null,null,null,null,null,null,null,null,null,null,null,289,null,null,null,null,null,null,null,null,null,null,null,null,null,null,null,null,null,null,null,null,null,null,null,null,null,null,null,null,null,null,null,null,null,null,null,null,null,null,null,null,null,null,null,null,12,13,21,25,7,16,2,13,23,26,17,23]
[null,null,null,null,null,null,null,null,null,null,null,null,null,null,null,null,null,null,null,null,null,null,null,null,null,null,null,null,null,290,null,null,null,null,null,null,null,null,null,null,null,null,null,null,null,null,null,null,null,null,null,null,null,null,null,null,null,null,null,null,null,null,null,null,null,null,null,null,null,null,null,null,null,null,11,14,20,26,6,17,3,12,24,25,16,24]
[null,null,null,null,null,null,null,null,null,null,null,null,null,null,null,null,null,null,null,null,null,null,null,null,null,null,null,null,null,291,null,null,null,null,null,null,null,null,null,null,null,null,null,null,null,null,null,null,null,null,null,null,null,null,null,null,null,null,null,null,null,null,null,null,null,null,null,null,null,null,null,null,null,null,10,15,2,19,5,18,4,11,1,11,15,25]
[null,null,null,null,null,null,null,null,null,null,null,null,null,null,null,null,null,null,null,null,null,null,null,null,null,null,null,null,null,292,null,null,null,null,null,null,null,null,null,null,null,null,null,null,null,null,null,null,null,null,null,null,null,null,null,null,null,null,null,null,null,null,null,null,null,null,null,null,null,null,null,null,null,null,9,16,3,18,4,19,5,10,10,12,14,26]
[null,null,null,null,null,null,null,null,null,null,null,null,null,null,null,null,null,null,null,null,null,null,null,null,null,null,null,null,null,293,null,null,null,null,null,null,null,null,null,null,null,null,null,null,null,null,null,null,null,null,null,null,null,null,null,null,null,null,null,null,null,null,null,null,null,null,null,null,null,null,null,null,null,null,8,17,4,17,3,20,6,9,9,13,13,27]
[null,null,null,null,null,null,null,null,null,null,null,null,null,null,null,null,null,null,null,null,null,null,null,null,null,null,null,null,null,294,null,null,null,null,null,null,null,null,null,null,null,null,null,null,null,null,null,null,null,null,null,null,null,null,null,null,null,null,null,null,null,null,null,null,null,null,null,null,null,null,null,null,null,null,7,18,5,16,2,21,7,8,8,14,12,28]
[null,null,null,null,null,null,null,null,null,null,null,null,null,null,null,null,null,null,null,null,null,null,null,null,null,null,null,null,null,295,null,null,null,null,null,null,null,null,null,null,null,null,null,null,null,null,null,null,null,null,null,null,null,null,null,null,null,null,null,null,null,null,null,null,null,null,null,null,null,null,null,null,null,null,6,19,6,15,22,27,1,22,7,15,11,29]
[null,null,null,null,null,null,null,null,null,null,null,null,null,null,null,null,null,null,null,null,null,null,null,null,null,null,null,null,null,296,null,null,null,null,null,null,null,null,null,null,null,null,null,null,null,null,null,null,null,null,null,null,null,null,null,null,null,null,null,null,null,null,null,null,null,null,null,null,null,null,null,null,null,null,5,20,7,14,23,26,21,23,6,16,10,30]
[null,null,null,null,null,null,null,null,null,null,null,null,null,null,null,null,null,null,null,null,null,null,null,null,null,null,null,null,null,297,null,null,null,null,null,null,null,null,null,null,null,null,null,null,null,null,null,null,null,null,null,null,null,null,null,null,null,null,null,null,null,null,null,null,null,null,null,null,null,null,null,null,null,null,4,21,8,13,24,25,20,24,5,17,2,9]
[null,null,null,null,null,null,null,null,null,null,null,null,null,null,null,null,null,null,null,null,null,null,null,null,null,null,null,null,null,298,null,null,null,null,null,null,null,null,null,null,null,null,null,null,null,null,null,null,null,null,null,null,null,null,null,null,null,null,null,null,null,null,null,null,null,null,null,null,null,null,null,null,null,null,3,22,9,12,1,12,19,25,4,18,3,8]
[null,null,null,null,null,null,null,null,null,null,null,null,null,null,null,null,null,null,null,null,null,null,null,null,null,null,null,null,null,299,null,null,null,null,null,null,null,null,null,null,null,null,null,null,null,null,null,null,null,null,null,null,null,null,null,null,null,null,null,null,null,null,null,null,null,null,null,null,null,null,null,null,null,null,2,23,10,11,11,13,18,26,3,19,4,7]
[null,null,null,null,null,null,null,null,null,null,null,null,null,null,null,null,null,null,null,null,null,null,null,null,null,null,null,null,null,300,null,null,null,null,null,null,null,null,null,null,null,null,null,null,null,null,null,null,null,null,null,null,null,null,null,null,null,null,null,null,null,null,null,null,null,null,null,null,null,null,null,null,null,null,24,25,1,24,10,14,17,27,2,20,5,6]
[null,null,null,null,null,null,null,null,null,null,null,null,null,null,null,null,null,null,null,null,null,null,null,null,null,null,null,null,null,301,null,null,null,null,null,null,null,null,null,null,null,null,null,null,null,null,null,null,null,null,null,null,null,null,null,null,null,null,null,null,null,null,null,null,null,null,null,null,null,null,null,null,null,null,null,null,23,25,9,15,16,28,21,29,1,21]
[null,null,null,null,null,null,null,null,null,null,null,null,null,null,null,null,null,null,null,null,null,null,null,null,null,null,null,null,null,302,null,null,null,null,null,null,null,null,null,null,null,null,null,null,null,null,null,null,null,null,null,null,null,null,null,null,null,null,null,null,null,null,null,null,null,null,null,null,null,null,null,null,null,null,null,null,22,26,8,16,2,15,22,28,20,22]
[null,null,null,null,null,null,null,null,null,null,null,null,null,null,null,null,null,null,null,null,null,null,null,null,null,null,null,null,null,303,null,null,null,null,null,null,null,null,null,null,null,null,null,null,null,null,null,null,null,null,null,null,null,null,null,null,null,null,null,null,null,null,null,null,null,null,null,null,null,null,null,null,null,null,null,null,2,21,7,17,3,14,23,27,19,23]
[null,null,null,null,null,null,null,null,null,null,null,null,null,null,null,null,null,null,null,null,null,null,null,null,null,null,null,null,null,304,null,null,null,null,null,null,null,null,null,null,null,null,null,null,null,null,null,null,null,null,null,null,null,null,null,null,null,null,null,null,null,null,null,null,null,null,null,null,null,null,null,null,null,null,null,null,3,20,6,18,4,13,24,26,18,24]
[null,null,null,null,null,null,null,null,null,null,null,null,null,null,null,null,null,null,null,null,null,null,null,null,null,null,null,null,null,305,null,null,null,null,null,null,null,null,null,null,null,null,null,null,null,null,null,null,null,null,null,null,null,null,null,null,null,null,null,null,null,null,null,null,null,null,null,null,null,null,null,null,null,null,null,null,4,19,5,19,5,12,1,25,17,25]
[null,null,null,null,null,null,null,null,null,null,null,null,null,null,null,null,null,null,null,null,null,null,null,null,null,null,null,null,null,306,null,null,null,null,null,null,null,null,null,null,null,null,null,null,null,null,null,null,null,null,null,null,null,null,null,null,null,null,null,null,null,null,null,null,null,null,null,null,null,null,null,null,null,null,null,null,5,18,4,20,6,11,11,12,16,26]
[null,null,null,null,null,null,null,null,null,null,null,null,null,null,null,null,null,null,null,null,null,null,null,null,null,null,null,null,null,307,null,null,null,null,null,null,null,null,null,null,null,null,null,null,null,null,null,null,null,null,null,null,null,null,null,null,null,null,null,null,null,null,null,null,null,null,null,null,null,null,null,null,null,null,null,null,6,17,3,21,7,10,10,13,15,27]
[null,null,null,null,null,null,null,null,null,null,null,null,null,null,null,null,null,null,null,null,null,null,null,null,null,null,null,null,null,308,null,null,null,null,null,null,null,null,null,null,null,null,null,null,null,null,null,null,null,null,null,null,null,null,null,null,null,null,null,null,null,null,null,null,null,null,null,null,null,null,null,null,null,null,null,null,7,16,2,22,8,9,9,14,14,28]
[null,null,null,null,null,null,null,null,null,null,null,null,null,null,null,null,null,null,null,null,null,null,null,null,null,null,null,null,null,309,null,null,null,null,null,null,null,null,null,null,null,null,null,null,null,null,null,null,null,null,null,null,null,null,null,null,null,null,null,null,null,null,null,null,null,null,null,null,null,null,null,null,null,null,null,null,8,15,23,27,1,23,8,15,13,29]
[null,null,null,null,null,null,null,null,null,null,null,null,null,null,null,null,null,null,null,null,null,null,null,null,null,null,null,null,null,310,null,null,null,null,null,null,null,null,null,null,null,null,null,null,null,null,null,null,null,null,null,null,null,null,null,null,null,null,null,null,null,null,null,null,null,null,null,null,null,null,null,null,null,null,null,null,9,14,24,26,22,24,7,16,12,30]
[null,null,null,null,null,null,null,null,null,null,null,null,null,null,null,null,null,null,null,null,null,null,null,null,null,null,null,null,null,311,null,null,null,null,null,null,null,null,null,null,null,null,null,null,null,null,null,null,null,null,null,null,null,null,null,null,null,null,null,null,null,null,null,null,null,null,null,null,null,null,null,null,null,null,null,null,10,13,1,25,21,25,6,17,2,11]
[null,null,null,null,null,null,null,null,null,null,null,null,null,null,null,null,null,null,null,null,null,null,null,null,null,null,null,null,null,312,null,null,null,null,null,null,null,null,null,null,null,null,null,null,null,null,null,null,null,null,null,null,null,null,null,null,null,null,null,null,null,null,null,null,null,null,null,null,null,null,null,null,null,null,null,null,11,12,12,13,20,26,5,18,3,10]
[null,null,null,null,null,null,null,null,null,null,null,null,null,null,null,null,null,null,null,null,null,null,null,null,null,null,null,null,null,313,null,null,null,null,null,null,null,null,null,null,null,null,null,null,null,null,null,null,null,null,null,null,null,null,null,null,null,null,null,null,null,null,null,null,null,null,null,null,null,null,null,null,null,null,null,null,1,25,11,14,19,27,4,19,4,9]
[null,null,null,null,null,null,null,null,null,null,null,null,null,null,null,null,null,null,null,null,null,null,null,null,null,null,null,null,null,314,null,null,null,null,null,null,null,null,null,null,null,null,null,null,null,null,null,null,null,null,null,null,null,null,null,null,null,null,null,null,null,null,null,null,null,null,null,null,null,null,null,null,null,null,null,null,24,26,10,15,18,28,3,20,5,8]
[null,null,null,null,null,null,null,null,null,null,null,null,null,null,null,null,null,null,null,null,null,null,null,null,null,null,null,null,null,315,null,null,null,null,null,null,null,null,null,null,null,null,null,null,null,null,null,null,null,null,null,null,null,null,null,null,null,null,null,null,null,null,null,null,null,null,null,null,null,null,null,null,null,null,null,null,2,23,9,16,2,17,2,21,6,7]
[null,null,null,null,null,null,null,null,null,null,null,null,null,null,null,null,null,null,null,null,null,null,null,null,null,null,null,null,null,316,null,null,null,null,null,null,null,null,null,null,null,null,null,null,null,null,null,null,null,null,null,null,null,null,null,null,null,null,null,null,null,null,null,null,null,null,null,null,null,null,null,null,null,null,null,null,3,22,8,17,3,16,22,29,1,22]
[null,null,null,null,null,null,null,null,null,null,null,null,null,null,null,null,null,null,null,null,null,null,null,null,null,null,null,null,null,317,null,null,null,null,null,null,null,null,null,null,null,null,null,null,null,null,null,null,null,null,null,null,null,null,null,null,null,null,null,null,null,null,null,null,null,null,null,null,null,null,null,null,null,null,null,null,4,21,7,18,4,15,23,28,21,23]
[null,null,null,null,null,null,null,null,null,null,null,null,null,null,null,null,null,null,null,null,null,null,null,null,null,null,null,null,null,318,null,null,null,null,null,null,null,null,null,null,null,null,null,null,null,null,null,null,null,null,null,null,null,null,null,null,null,null,null,null,null,null,null,null,null,null,null,null,null,null,null,null,null,null,null,null,5,20,6,19,5,14,24,27,20,24]
[null,null,null,null,null,null,null,null,null,null,null,null,null,null,null,null,null,null,null,null,null,null,null,null,null,null,null,null,null,319,null,null,null,null,null,null,null,null,null,null,null,null,null,null,null,null,null,null,null,null,null,null,null,null,null,null,null,null,null,null,null,null,null,null,null,null,null,null,null,null,null,null,null,null,null,null,6,19,5,20,6,13,25,26,19,25]
[null,null,null,null,null,null,null,null,null,null,null,null,null,null,null,null,null,null,null,null,null,null,null,null,null,null,null,null,null,320,null,null,null,null,null,null,null,null,null,null,null,null,null,null,null,null,null,null,null,null,null,null,null,null,null,null,null,null,null,null,null,null,null,null,null,null,null,null,null,null,null,null,null,null,null,null,7,18,4,21,7,12,1,12,18,26]
[null,null,null,null,null,null,null,null,null,null,null,null,null,null,null,null,null,null,null,null,null,null,null,null,null,null,null,null,null,321,null,null,null,null,null,null,null,null,null,null,null,null,null,null,null,null,null,null,null,null,null,null,null,null,null,null,null,null,null,null,null,null,null,null,null,null,null,null,null,null,null,null,null,null,null,null,8,17,3,22,8,11,11,13,17,27]
[null,null,null,null,null,null,null,null,null,null,null,null,null,null,null,null,null,null,null,null,null,null,null,null,null,null,null,null,null,322,null,null,null,null,null,null,null,null,null,null,null,null,null,null,null,null,null,null,null,null,null,null,null,null,null,null,null,null,null,null,null,null,null,null,null,null,null,null,null,null,null,null,null,null,null,null,9,16,2,23,9,10,10,14,16,28]
[null,null,null,null,null,null,null,null,null,null,null,null,null,null,null,null,null,null,null,null,null,null,null,null,null,null,null,null,null,323,null,null,null,null,null,null,null,null,null,null,null,null,null,null,null,null,null,null,null,null,null,null,null,null,null,null,null,null,null,null,null,null,null,null,null,null,null,null,null,null,null,null,null,null,null,null,10,15,24,27,1,24,9,15,15,29]
[null,null,null,null,null,null,null,null,null,null,null,null,null,null,null,null,null,null,null,null,null,null,null,null,null,null,null,null,null,324,null,null,null,null,null,null,null,null,null,null,null,null,null,null,null,null,null,null,null,null,null,null,null,null,null,null,null,null,null,null,null,null,null,null,null,null,null,null,null,null,null,null,null,null,null,null,11,14,25,26,23,25,8,16,14,30]
[null,null,null,null,null,null,null,null,null,null,null,null,null,null,null,null,null,null,null,null,null,null,null,null,null,null,null,null,null,325,null,null,null,null,null,null,null,null,null,null,null,null,null,null,null,null,null,null,null,null,null,null,null,null,null,null,null,null,null,null,null,null,null,null,null,null,null,null,null,null,null,null,null,null,null,null,12,13,1,13,22,26,7,17,2,13]
[null,null,null,null,null,null,null,null,null,null,null,null,null,null,null,null,null,null,null,null,null,null,null,null,null,null,null,null,null,326,null,null,null,null,null,null,null,null,null,null,null,null,null,null,null,null,null,null,null,null,null,null,null,null,null,null,null,null,null,null,null,null,null,null,null,null,null,null,null,null,null,null,null,null,null,null,null,null,12,14,21,27,6,18,3,12]
[null,null,null,null,null,null,null,null,null,null,null,null,null,null,null,null,null,null,null,null,null,null,null,null,null,null,null,null,null,327,null,null,null,null,null,null,null,null,null,null,null,null,null,null,null,null,null,null,null,null,null,null,null,null,null,null,null,null,null,null,null,null,null,null,null,null,null,null,null,null,null,null,null,null,null,null,null,null,11,15,20,28,5,19,4,11]
[null,null,null,null,null,null,null,null,null,null,null,null,null,null,null,null,null,null,null,null,null,null,null,null,null,null,null,null,null,328,null,null,null,null,null,null,null,null,null,null,null,null,null,null,null,null,null,null,null,null,null,null,null,null,null,null,null,null,null,null,null,null,null,null,null,null,null,null,null,null,null,null,null,null,null,null,null,null,10,16,2,19,4,20,5,10]
[null,null,null,null,null,null,null,null,null,null,null,null,null,null,null,null,null,null,null,null,null,null,null,null,null,null,null,null,null,329,null,null,null,null,null,null,null,null,null,null,null,null,null,null,null,null,null,null,null,null,null,null,null,null,null,null,null,null,null,null,null,null,null,null,null,null,null,null,null,null,null,null,null,null,null,null,null,null,9,17,3,18,3,21,6,9]
[null,null,null,null,null,null,null,null,null,null,null,null,null,null,null,null,null,null,null,null,null,null,null,null,null,null,null,null,null,330,null,null,null,null,null,null,null,null,null,null,null,null,null,null,null,null,null,null,null,null,null,null,null,null,null,null,null,null,null,null,null,null,null,null,null,null,null,null,null,null,null,null,null,null,null,null,null,null,8,18,4,17,2,22,7,8]
[null,null,null,null,null,null,null,null,null,null,null,null,null,null,null,null,null,null,null,null,null,null,null,null,null,null,null,null,null,331,null,null,null,null,null,null,null,null,null,null,null,null,null,null,null,null,null,null,null,null,null,null,null,null,null,null,null,null,null,null,null,null,null,null,null,null,null,null,null,null,null,null,null,null,null,null,null,null,7,19,5,16,23,29,1,23]
[null,null,null,null,null,null,null,null,null,null,null,null,null,null,null,null,null,null,null,null,null,null,null,null,null,null,null,null,null,332,null,null,null,null,null,null,null,null,null,null,null,null,null,null,null,null,null,null,null,null,null,null,null,null,null,null,null,null,null,null,null,null,null,null,null,null,null,null,null,null,null,null,null,null,null,null,null,null,6,20,6,15,24,28,22,24]
[null,null,null,null,null,null,null,null,null,null,null,null,null,null,null,null,null,null,null,null,null,null,null,null,null,null,null,null,null,333,null,null,null,null,null,null,null,null,null,null,null,null,null,null,null,null,null,null,null,null,null,null,null,null,null,null,null,null,null,null,null,null,null,null,null,null,null,null,null,null,null,null,null,null,null,null,null,null,5,21,7,14,25,27,21,25]
[null,null,null,null,null,null,null,null,null,null,null,null,null,null,null,null,null,null,null,null,null,null,null,null,null,null,null,null,null,334,null,null,null,null,null,null,null,null,null,null,null,null,null,null,null,null,null,null,null,null,null,null,null,null,null,null,null,null,null,null,null,null,null,null,null,null,null,null,null,null,null,null,null,null,null,null,null,null,4,22,8,13,1,26,20,26]
[null,null,null,null,null,null,null,null,null,null,null,null,null,null,null,null,null,null,null,null,null,null,null,null,null,null,null,null,null,335,null,null,null,null,null,null,null,null,null,null,null,null,null,null,null,null,null,null,null,null,null,null,null,null,null,null,null,null,null,null,null,null,null,null,null,null,null,null,null,null,null,null,null,null,null,null,null,null,3,23,9,12,12,13,19,27]
[null,null,null,null,null,null,null,null,null,null,null,null,null,null,null,null,null,null,null,null,null,null,null,null,null,null,null,null,null,336,null,null,null,null,null,null,null,null,null,null,null,null,null,null,null,null,null,null,null,null,null,null,null,null,null,null,null,null,null,null,null,null,null,null,null,null,null,null,null,null,null,null,null,null,null,null,null,null,2,24,10,11,11,14,18,28]
[null,null,null,null,null,null,null,null,null,null,null,null,null,null,null,null,null,null,null,null,null,null,null,null,null,null,null,null,null,337,null,null,null,null,null,null,null,null,null,null,null,null,null,null,null,null,null,null,null,null,null,null,null,null,null,null,null,null,null,null,null,null,null,null,null,null,null,null,null,null,null,null,null,null,null,null,null,null,25,27,1,25,10,15,17,29]
[null,null,null,null,null,null,null,null,null,null,null,null,null,null,null,null,null,null,null,null,null,null,null,null,null,null,null,null,null,338,null,null,null,null,null,null,null,null,null,null,null,null,null,null,null,null,null,null,null,null,null,null,null,null,null,null,null,null,null,null,null,null,null,null,null,null,null,null,null,null,null,null,null,null,null,null,null,null,1,26,24,26,9,16,16,30]
[null,null,null,null,null,null,null,null,null,null,null,null,null,null,null,null,null,null,null,null,null,null,null,null,null,null,null,null,null,339,null,null,null,null,null,null,null,null,null,null,null,null,null,null,null,null,null,null,null,null,null,null,null,null,null,null,null,null,null,null,null,null,null,null,null,null,null,null,null,null,null,null,null,null,null,null,null,null,13,14,23,27,8,17,2,15]
[null,null,null,null,null,null,null,null,null,null,null,null,null,null,null,null,null,null,null,null,null,null,null,null,null,null,null,null,null,340,null,null,null,null,null,null,null,null,null,null,null,null,null,null,null,null,null,null,null,null,null,null,null,null,null,null,null,null,null,null,null,null,null,null,null,null,null,null,null,null,null,null,null,null,null,null,null,null,12,15,22,28,7,18,3,14]
[null,null,null,null,null,null,null,null,null,null,null,null,null,null,null,null,null,null,null,null,null,null,null,null,null,null,null,null,null,341,null,null,null,null,null,null,null,null,null,null,null,null,null,null,null,null,null,null,null,null,null,null,null,null,null,null,null,null,null,null,null,null,null,null,null,null,null,null,null,null,null,null,null,null,null,null,null,null,11,16,2,21,6,19,4,13]
[null,null,null,null,null,null,null,null,null,null,null,null,null,null,null,null,null,null,null,null,null,null,null,null,null,null,null,null,null,342,null,null,null,null,null,null,null,null,null,null,null,null,null,null,null,null,null,null,null,null,null,null,null,null,null,null,null,null,null,null,null,null,null,null,null,null,null,null,null,null,null,null,null,null,null,null,null,null,10,17,3,20,5,20,5,12]
[null,null,null,null,null,null,null,null,null,null,null,null,null,null,null,null,null,null,null,null,null,null,null,null,null,null,null,null,null,343,null,null,null,null,null,null,null,null,null,null,null,null,null,null,null,null,null,null,null,null,null,null,null,null,null,null,null,null,null,null,null,null,null,null,null,null,null,null,null,null,null,null,null,null,null,null,null,null,9,18,4,19,4,21,6,11]
[null,null,null,null,null,null,null,null,null,null,null,null,null,null,null,null,null,null,null,null,null,null,null,null,null,null,null,null,null,344,null,null,null,null,null,null,null,null,null,null,null,null,null,null,null,null,null,null,null,null,null,null,null,null,null,null,null,null,null,null,null,null,null,null,null,null,null,null,null,null,null,null,null,null,null,null,null,null,8,19,5,18,3,22,7,10]
[null,null,null,null,null,null,null,null,null,null,null,null,null,null,null,null,null,null,null,null,null,null,null,null,null,null,null,null,null,345,null,null,null,null,null,null,null,null,null,null,null,null,null,null,null,null,null,null,null,null,null,null,null,null,null,null,null,null,null,null,null,null,null,null,null,null,null,null,null,null,null,null,null,null,null,null,null,null,7,20,6,17,2,23,8,9]
[null,null,null,null,null,null,null,null,null,null,null,null,null,null,null,null,null,null,null,null,null,null,null,null,null,null,null,null,null,346,null,null,null,null,null,null,null,null,null,null,null,null,null,null,null,null,null,null,null,null,null,null,null,null,null,null,null,null,null,null,null,null,null,null,null,null,null,null,null,null,null,null,null,null,null,null,null,null,6,21,7,16,24,29,1,24]
[null,null,null,null,null,null,null,null,null,null,null,null,null,null,null,null,null,null,null,null,null,null,null,null,null,null,null,null,null,347,null,null,null,null,null,null,null,null,null,null,null,null,null,null,null,null,null,null,null,null,null,null,null,null,null,null,null,null,null,null,null,null,null,null,null,null,null,null,null,null,null,null,null,null,null,null,null,null,5,22,8,15,25,28,23,25]
[null,null,null,null,null,null,null,null,null,null,null,null,null,null,null,null,null,null,null,null,null,null,null,null,null,null,null,null,null,348,null,null,null,null,null,null,null,null,null,null,null,null,null,null,null,null,null,null,null,null,null,null,null,null,null,null,null,null,null,null,null,null,null,null,null,null,null,null,null,null,null,null,null,null,null,null,null,null,4,23,9,14,26,27,22,26]
[null,null,null,null,null,null,null,null,null,null,null,null,null,null,null,null,null,null,null,null,null,null,null,null,null,null,null,null,null,349,null,null,null,null,null,null,null,null,null,null,null,null,null,null,null,null,null,null,null,null,null,null,null,null,null,null,null,null,null,null,null,null,null,null,null,null,null,null,null,null,null,null,null,null,null,null,null,null,3,24,10,13,1,13,21,27]
[null,null,null,null,null,null,null,null,null,null,null,null,null,null,null,null,null,null,null,null,null,null,null,null,null,null,null,null,null,350,null,null,null,null,null,null,null,null,null,null,null,null,null,null,null,null,null,null,null,null,null,null,null,null,null,null,null,null,null,null,null,null,null,null,null,null,null,null,null,null,null,null,null,null,null,null,null,null,2,25,11,12,12,14,20,28]
[null,null,null,null,null,null,null,null,null,null,null,null,null,null,null,null,null,null,null,null,null,null,null,null,null,null,null,null,null,351,null,null,null,null,null,null,null,null,null,null,null,null,null,null,null,null,null,null,null,null,null,null,null,null,null,null,null,null,null,null,null,null,null,null,null,null,null,null,null,null,null,null,null,null,null,null,null,null,26,27,1,26,11,15,19,29]
[null,null,null,null,null,null,null,null,null,null,null,null,null,null,null,null,null,null,null,null,null,null,null,null,null,null,null,null,null,352,null,null,null,null,null,null,null,null,null,null,null,null,null,null,null,null,null,null,null,null,null,null,null,null,null,null,null,null,null,null,null,null,null,null,null,null,null,null,null,null,null,null,null,null,null,null,null,null,null,null,25,27,10,16,18,30]
[null,null,null,null,null,null,null,null,null,null,null,null,null,null,null,null,null,null,null,null,null,null,null,null,null,null,null,null,null,353,null,null,null,null,null,null,null,null,null,null,null,null,null,null,null,null,null,null,null,null,null,null,null,null,null,null,null,null,null,null,null,null,null,null,null,null,null,null,null,null,null,null,null,null,null,null,null,null,null,null,24,28,9,17,2,17]
[null,null,null,null,null,null,null,null,null,null,null,null,null,null,null,null,null,null,null,null,null,null,null,null,null,null,null,null,null,354,null,null,null,null,null,null,null,null,null,null,null,null,null,null,null,null,null,null,null,null,null,null,null,null,null,null,null,null,null,null,null,null,null,null,null,null,null,null,null,null,null,null,null,null,null,null,null,null,null,null,2,23,8,18,3,16]
[null,null,null,null,null,null,null,null,null,null,null,null,null,null,null,null,null,null,null,null,null,null,null,null,null,null,null,null,null,355,null,null,null,null,null,null,null,null,null,null,null,null,null,null,null,null,null,null,null,null,null,null,null,null,null,null,null,null,null,null,null,null,null,null,null,null,null,null,null,null,null,null,null,null,null,null,null,null,null,null,3,22,7,19,4,15]
[null,null,null,null,null,null,null,null,null,null,null,null,null,null,null,null,null,null,null,null,null,null,null,null,null,null,null,null,null,356,null,null,null,null,null,null,null,null,null,null,null,null,null,null,null,null,null,null,null,null,null,null,null,null,null,null,null,null,null,null,null,null,null,null,null,null,null,null,null,null,null,null,null,null,null,null,null,null,null,null,4,21,6,20,5,14]
[null,null,null,null,null,null,null,null,null,null,null,null,null,null,null,null,null,null,null,null,null,null,null,null,null,null,null,null,null,357,null,null,null,null,null,null,null,null,null,null,null,null,null,null,null,null,null,null,null,null,null,null,null,null,null,null,null,null,null,null,null,null,null,null,null,null,null,null,null,null,null,null,null,null,null,null,null,null,null,null,5,20,5,21,6,13]
[null,null,null,null,null,null,null,null,null,null,null,null,null,null,null,null,null,null,null,null,null,null,null,null,null,null,null,null,null,358,null,null,null,null,null,null,null,null,null,null,null,null,null,null,null,null,null,null,null,null,null,null,null,null,null,null,null,null,null,null,null,null,null,null,null,null,null,null,null,null,null,null,null,null,null,null,null,null,null,null,6,19,4,22,7,12]
[null,null,null,null,null,null,null,null,null,null,null,null,null,null,null,null,null,null,null,null,null,null,null,null,null,null,null,null,null,359,null,null,null,null,null,null,null,null,null,null,null,null,null,null,null,null,null,null,null,null,null,null,null,null,null,null,null,null,null,null,null,null,null,null,null,null,null,null,null,null,null,null,null,null,null,null,null,null,null,null,7,18,3,23,8,11]
[null,null,null,null,null,null,null,null,null,null,null,null,null,null,null,null,null,null,null,null,null,null,null,null,null,null,null,null,null,360,null,null,null,null,null,null,null,null,null,null,null,null,null,null,null,null,null,null,null,null,null,null,null,null,null,null,null,null,null,null,null,null,null,null,null,null,null,null,null,null,null,null,null,null,null,null,null,null,null,null,8,17,2,24,9,10]
[null,null,null,null,null,null,null,null,null,null,null,null,null,null,null,null,null,null,null,null,null,null,null,null,null,null,null,null,null,361,null,null,null,null,null,null,null,null,null,null,null,null,null,null,null,null,null,null,null,null,null,null,null,null,null,null,null,null,null,null,null,null,null,null,null,null,null,null,null,null,null,null,null,null,null,null,null,null,null,null,9,16,25,29,1,25]
[null,null,null,null,null,null,null,null,null,null,null,null,null,null,null,null,null,null,null,null,null,null,null,null,null,null,null,null,null,362,null,null,null,null,null,null,null,null,null,null,null,null,null,null,null,null,null,null,null,null,null,null,null,null,null,null,null,null,null,null,null,null,null,null,null,null,null,null,null,null,null,null,null,null,null,null,null,null,null,null,10,15,26,28,24,26]
[null,null,null,null,null,null,null,null,null,null,null,null,null,null,null,null,null,null,null,null,null,null,null,null,null,null,null,null,null,363,null,null,null,null,null,null,null,null,null,null,null,null,null,null,null,null,null,null,null,null,null,null,null,null,null,null,null,null,null,null,null,null,null,null,null,null,null,null,null,null,null,null,null,null,null,null,null,null,null,null,11,14,1,27,23,27]
[null,null,null,null,null,null,null,null,null,null,null,null,null,null,null,null,null,null,null,null,null,null,null,null,null,null,null,null,null,364,null,null,null,null,null,null,null,null,null,null,null,null,null,null,null,null,null,null,null,null,null,null,null,null,null,null,null,null,null,null,null,null,null,null,null,null,null,null,null,null,null,null,null,null,null,null,null,null,null,null,12,13,13,14,22,28]
[null,null,null,null,null,null,null,null,null,null,null,null,null,null,null,null,null,null,null,null,null,null,null,null,null,null,null,null,null,365,null,null,null,null,null,null,null,null,null,null,null,null,null,null,null,null,null,null,null,null,null,null,null,null,null,null,null,null,null,null,null,null,null,null,null,null,null,null,null,null,null,null,null,null,null,null,null,null,null,null,1,27,12,15,21,29]
[null,null,null,null,null,null,null,null,null,null,null,null,null,null,null,null,null,null,null,null,null,null,null,null,null,null,null,null,null,366,null,null,null,null,null,null,null,null,null,null,null,null,null,null,null,null,null,null,null,null,null,null,null,null,null,null,null,null,null,null,null,null,null,null,null,null,null,null,null,null,null,null,null,null,null,null,null,null,null,null,26,28,11,16,20,30]
[null,null,null,null,null,null,null,null,null,null,null,null,null,null,null,null,null,null,null,null,null,null,null,null,null,null,null,null,null,367,null,null,null,null,null,null,null,null,null,null,null,null,null,null,null,null,null,null,null,null,null,null,null,null,null,null,null,null,null,null,null,null,null,null,null,null,null,null,null,null,null,null,null,null,null,null,null,null,null,null,2,25,10,17,2,19]
[null,null,null,null,null,null,null,null,null,null,null,null,null,null,null,null,null,null,null,null,null,null,null,null,null,null,null,null,null,368,null,null,null,null,null,null,null,null,null,null,null,null,null,null,null,null,null,null,null,null,null,null,null,null,null,null,null,null,null,null,null,null,null,null,null,null,null,null,null,null,null,null,null,null,null,null,null,null,null,null,3,24,9,18,3,18]
[null,null,null,null,null,null,null,null,null,null,null,null,null,null,null,null,null,null,null,null,null,null,null,null,null,null,null,null,null,369,null,null,null,null,null,null,null,null,null,null,null,null,null,null,null,null,null,null,null,null,null,null,null,null,null,null,null,null,null,null,null,null,null,null,null,null,null,null,null,null,null,null,null,null,null,null,null,null,null,null,4,23,8,19,4,17]
[null,null,null,null,null,null,null,null,null,null,null,null,null,null,null,null,null,null,null,null,null,null,null,null,null,null,null,null,null,370,null,null,null,null,null,null,null,null,null,null,null,null,null,null,null,null,null,null,null,null,null,null,null,null,null,null,null,null,null,null,null,null,null,null,null,null,null,null,null,null,null,null,null,null,null,null,null,null,null,null,5,22,7,20,5,16]
[null,null,null,null,null,null,null,null,null,null,null,null,null,null,null,null,null,null,null,null,null,null,null,null,null,null,null,null,null,371,null,null,null,null,null,null,null,null,null,null,null,null,null,null,null,null,null,null,null,null,null,null,null,null,null,null,null,null,null,null,null,null,null,null,null,null,null,null,null,null,null,null,null,null,null,null,null,null,null,null,6,21,6,21,6,15]
[null,null,null,null,null,null,null,null,null,null,null,null,null,null,null,null,null,null,null,null,null,null,null,null,null,null,null,null,null,372,null,null,null,null,null,null,null,null,null,null,null,null,null,null,null,null,null,null,null,null,null,null,null,null,null,null,null,null,null,null,null,null,null,null,null,null,null,null,null,null,null,null,null,null,null,null,null,null,null,null,7,20,5,22,7,14]
[null,null,null,null,null,null,null,null,null,null,null,null,null,null,null,null,null,null,null,null,null,null,null,null,null,null,null,null,null,373,null,null,null,null,null,null,null,null,null,null,null,null,null,null,null,null,null,null,null,null,null,null,null,null,null,null,null,null,null,null,null,null,null,null,null,null,null,null,null,null,null,null,null,null,null,null,null,null,null,null,8,19,4,23,8,13]
[null,null,null,null,null,null,null,null,null,null,null,null,null,null,null,null,null,null,null,null,null,null,null,null,null,null,null,null,null,374,null,null,null,null,null,null,null,null,null,null,null,null,null,null,null,null,null,null,null,null,null,null,null,null,null,null,null,null,null,null,null,null,null,null,null,null,null,null,null,null,null,null,null,null,null,null,null,null,null,null,9,18,3,24,9,12]
[null,null,null,null,null,null,null,null,null,null,null,null,null,null,null,null,null,null,null,null,null,null,null,null,null,null,null,null,null,375,null,null,null,null,null,null,null,null,null,null,null,null,null,null,null,null,null,null,null,null,null,null,null,null,null,null,null,null,null,null,null,null,null,null,null,null,null,null,null,null,null,null,null,null,null,null,null,null,null,null,10,17,2,25,10,11]
[null,null,null,null,null,null,null,null,null,null,null,null,null,null,null,null,null,null,null,null,null,null,null,null,null,null,null,null,null,376,null,null,null,null,null,null,null,null,null,null,null,null,null,null,null,null,null,null,null,null,null,null,null,null,null,null,null,null,null,null,null,null,null,null,null,null,null,null,null,null,null,null,null,null,null,null,null,null,null,null,11,16,26,29,1,26]
[null,null,null,null,null,null,null,null,null,null,null,null,null,null,null,null,null,null,null,null,null,null,null,null,null,null,null,null,null,377,null,null,null,null,null,null,null,null,null,null,null,null,null,null,null,null,null,null,null,null,null,null,null,null,null,null,null,null,null,null,null,null,null,null,null,null,null,null,null,null,null,null,null,null,null,null,null,null,null,null,12,15,27,28,25,27]
[null,null,null,null,null,null,null,null,null,null,null,null,null,null,null,null,null,null,null,null,null,null,null,null,null,null,null,null,null,378,null,null,null,null,null,null,null,null,null,null,null,null,null,null,null,null,null,null,null,null,null,null,null,null,null,null,null,null,null,null,null,null,null,null,null,null,null,null,null,null,null,null,null,null,null,null,null,null,null,null,13,14,1,14,24,28]
[null,null,null,null,null,null,null,null,null,null,null,null,null,null,null,null,null,null,null,null,null,null,null,null,null,null,null,null,null,379,null,null,null,null,null,null,null,null,null,null,null,null,null,null,null,null,null,null,null,null,null,null,null,null,null,null,null,null,null,null,null,null,null,null,null,null,null,null,null,null,null,null,null,null,null,null,null,null,null,null,null,null,13,15,23,29]
[null,null,null,null,null,null,null,null,null,null,null,null,null,null,null,null,null,null,null,null,null,null,null,null,null,null,null,null,null,380,null,null,null,null,null,null,null,null,null,null,null,null,null,null,null,null,null,null,null,null,null,null,null,null,null,null,null,null,null,null,null,null,null,null,null,null,null,null,null,null,null,null,null,null,null,null,null,null,null,null,null,null,12,16,22,30]
[null,null,null,null,null,null,null,null,null,null,null,null,null,null,null,null,null,null,null,null,null,null,null,null,null,null,null,null,null,381,null,null,null,null,null,null,null,null,null,null,null,null,null,null,null,null,null,null,null,null,null,null,null,null,null,null,null,null,null,null,null,null,null,null,null,null,null,null,null,null,null,null,null,null,null,null,null,null,null,null,null,null,11,17,2,21]
[null,null,null,null,null,null,null,null,null,null,null,null,null,null,null,null,null,null,null,null,null,null,null,null,null,null,null,null,null,382,null,null,null,null,null,null,null,null,null,null,null,null,null,null,null,null,null,null,null,null,null,null,null,null,null,null,null,null,null,null,null,null,null,null,null,null,null,null,null,null,null,null,null,null,null,null,null,null,null,null,null,null,10,18,3,20]
[null,null,null,null,null,null,null,null,null,null,null,null,null,null,null,null,null,null,null,null,null,null,null,null,null,null,null,null,null,383,null,null,null,null,null,null,null,null,null,null,null,null,null,null,null,null,null,null,null,null,null,null,null,null,null,null,null,null,null,null,null,null,null,null,null,null,null,null,null,null,null,null,null,null,null,null,null,null,null,null,null,null,9,19,4,19]
[null,null,null,null,null,null,null,null,null,null,null,null,null,null,null,null,null,null,null,null,null,null,null,null,null,null,null,null,null,384,null,null,null,null,null,null,null,null,null,null,null,null,null,null,null,null,null,null,null,null,null,null,null,null,null,null,null,null,null,null,null,null,null,null,null,null,null,null,null,null,null,null,null,null,null,null,null,null,null,null,null,null,8,20,5,18]
[null,null,null,null,null,null,null,null,null,null,null,null,null,null,null,null,null,null,null,null,null,null,null,null,null,null,null,null,null,385,null,null,null,null,null,null,null,null,null,null,null,null,null,null,null,null,null,null,null,null,null,null,null,null,null,null,null,null,null,null,null,null,null,null,null,null,null,null,null,null,null,null,null,null,null,null,null,null,null,null,null,null,7,21,6,17]
[null,null,null,null,null,null,null,null,null,null,null,null,null,null,null,null,null,null,null,null,null,null,null,null,null,null,null,null,null,386,null,null,null,null,null,null,null,null,null,null,null,null,null,null,null,null,null,null,null,null,null,null,null,null,null,null,null,null,null,null,null,null,null,null,null,null,null,null,null,null,null,null,null,null,null,null,null,null,null,null,null,null,6,22,7,16]
[null,null,null,null,null,null,null,null,null,null,null,null,null,null,null,null,null,null,null,null,null,null,null,null,null,null,null,null,null,387,null,null,null,null,null,null,null,null,null,null,null,null,null,null,null,null,null,null,null,null,null,null,null,null,null,null,null,null,null,null,null,null,null,null,null,null,null,null,null,null,null,null,null,null,null,null,null,null,null,null,null,null,5,23,8,15]
[null,null,null,null,null,null,null,null,null,null,null,null,null,null,null,null,null,null,null,null,null,null,null,null,null,null,null,null,null,388,null,null,null,null,null,null,null,null,null,null,null,null,null,null,null,null,null,null,null,null,null,null,null,null,null,null,null,null,null,null,null,null,null,null,null,null,null,null,null,null,null,null,null,null,null,null,null,null,null,null,null,null,4,24,9,14]
[null,null,null,null,null,null,null,null,null,null,null,null,null,null,null,null,null,null,null,null,null,null,null,null,null,null,null,null,null,389,null,null,null,null,null,null,null,null,null,null,null,null,null,null,null,null,null,null,null,null,null,null,null,null,null,null,null,null,null,null,null,null,null,null,null,null,null,null,null,null,null,null,null,null,null,null,null,null,null,null,null,null,3,25,10,13]
[null,null,null,null,null,null,null,null,null,null,null,null,null,null,null,null,null,null,null,null,null,null,null,null,null,null,null,null,null,390,null,null,null,null,null,null,null,null,null,null,null,null,null,null,null,null,null,null,null,null,null,null,null,null,null,null,null,null,null,null,null,null,null,null,null,null,null,null,null,null,null,null,null,null,null,null,null,null,null,null,null,null,2,26,11,12]
[null,null,null,null,null,null,null,null,null,null,null,null,null,null,null,null,null,null,null,null,null,null,null,null,null,null,null,null,null,391,null,null,null,null,null,null,null,null,null,null,null,null,null,null,null,null,null,null,null,null,null,null,null,null,null,null,null,null,null,null,null,null,null,null,null,null,null,null,null,null,null,null,null,null,null,null,null,null,null,null,null,null,27,29,1,27]
[null,null,null,null,null,null,null,null,null,null,null,null,null,null,null,null,null,null,null,null,null,null,null,null,null,null,null,null,null,392,null,null,null,null,null,null,null,null,null,null,null,null,null,null,null,null,null,null,null,null,null,null,null,null,null,null,null,null,null,null,null,null,null,null,null,null,null,null,null,null,null,null,null,null,null,null,null,null,null,null,null,null,1,28,26,28]
[null,null,null,null,null,null,null,null,null,null,null,null,null,null,null,null,null,null,null,null,null,null,null,null,null,null,null,null,null,393,null,null,null,null,null,null,null,null,null,null,null,null,null,null,null,null,null,null,null,null,null,null,null,null,null,null,null,null,null,null,null,null,null,null,null,null,null,null,null,null,null,null,null,null,null,null,null,null,null,null,null,null,14,15,25,29]
[null,null,null,null,null,null,null,null,null,null,null,null,null,null,null,null,null,null,null,null,null,null,null,null,null,null,null,null,null,394,null,null,null,null,null,null,null,null,null,null,null,null,null,null,null,null,null,null,null,null,null,null,null,null,null,null,null,null,null,null,null,null,null,null,null,null,null,null,null,null,null,null,null,null,null,null,null,null,null,null,null,null,13,16,24,30]
[null,null,null,null,null,null,null,null,null,null,null,null,null,null,null,null,null,null,null,null,null,null,null,null,null,null,null,null,null,395,null,null,null,null,null,null,null,null,null,null,null,null,null,null,null,null,null,null,null,null,null,null,null,null,null,null,null,null,null,null,null,null,null,null,null,null,null,null,null,null,null,null,null,null,null,null,null,null,null,null,null,null,12,17,2,23]
[null,null,null,null,null,null,null,null,null,null,null,null,null,null,null,null,null,null,null,null,null,null,null,null,null,null,null,null,null,396,null,null,null,null,null,null,null,null,null,null,null,null,null,null,null,null,null,null,null,null,null,null,null,null,null,null,null,null,null,null,null,null,null,null,null,null,null,null,null,null,null,null,null,null,null,null,null,null,null,null,null,null,11,18,3,22]
[null,null,null,null,null,null,null,null,null,null,null,null,null,null,null,null,null,null,null,null,null,null,null,null,null,null,null,null,null,397,null,null,null,null,null,null,null,null,null,null,null,null,null,null,null,null,null,null,null,null,null,null,null,null,null,null,null,null,null,null,null,null,null,null,null,null,null,null,null,null,null,null,null,null,null,null,null,null,null,null,null,null,10,19,4,21]
[null,null,null,null,null,null,null,null,null,null,null,null,null,null,null,null,null,null,null,null,null,null,null,null,null,null,null,null,null,398,null,null,null,null,null,null,null,null,null,null,null,null,null,null,null,null,null,null,null,null,null,null,null,null,null,null,null,null,null,null,null,null,null,null,null,null,null,null,null,null,null,null,null,null,null,null,null,null,null,null,null,null,9,20,5,20]
[null,null,null,null,null,null,null,null,null,null,null,null,null,null,null,null,null,null,null,null,null,null,null,null,null,null,null,null,null,399,null,null,null,null,null,null,null,null,null,null,null,null,null,null,null,null,null,null,null,null,null,null,null,null,null,null,null,null,null,null,null,null,null,null,null,null,null,null,null,null,null,null,null,null,null,null,null,null,null,null,null,null,8,21,6,19]
[null,null,null,null,null,null,null,null,null,null,null,null,null,null,null,null,null,null,null,null,null,null,null,null,null,null,null,null,null,400,null,null,null,null,null,null,null,null,null,null,null,null,null,null,null,null,null,null,null,null,null,null,null,null,null,null,null,null,null,null,null,null,null,null,null,null,null,null,null,null,null,null,null,null,null,null,null,null,null,null,null,null,7,22,7,18]
[null,null,null,null,null,null,null,null,null,null,null,null,null,null,null,null,null,null,null,null,null,null,null,null,null,null,null,null,null,401,null,null,null,null,null,null,null,null,null,null,null,null,null,null,null,null,null,null,null,null,null,null,null,null,null,null,null,null,null,null,null,null,null,null,null,null,null,null,null,null,null,null,null,null,null,null,null,null,null,null,null,null,6,23,8,17]
[null,null,null,null,null,null,null,null,null,null,null,null,null,null,null,null,null,null,null,null,null,null,null,null,null,null,null,null,null,402,null,null,null,null,null,null,null,null,null,null,null,null,null,null,null,null,null,null,null,null,null,null,null,null,null,null,null,null,null,null,null,null,null,null,null,null,null,null,null,null,null,null,null,null,null,null,null,null,null,null,null,null,5,24,9,16]
[null,null,null,null,null,null,null,null,null,null,null,null,null,null,null,null,null,null,null,null,null,null,null,null,null,null,null,null,null,403,null,null,null,null,null,null,null,null,null,null,null,null,null,null,null,null,null,null,null,null,null,null,null,null,null,null,null,null,null,null,null,null,null,null,null,null,null,null,null,null,null,null,null,null,null,null,null,null,null,null,null,null,4,25,10,15]
[null,null,null,null,null,null,null,null,null,null,null,null,null,null,null,null,null,null,null,null,null,null,null,null,null,null,null,null,null,404,null,null,null,null,null,null,null,null,null,null,null,null,null,null,null,null,null,null,null,null,null,null,null,null,null,null,null,null,null,null,null,null,null,null,null,null,null,null,null,null,null,null,null,null,null,null,null,null,null,null,null,null,3,26,11,14]
[null,null,null,null,null,null,null,null,null,null,null,null,null,null,null,null,null,null,null,null,null,null,null,null,null,null,null,null,null,405,null,null,null,null,null,null,null,null,null,null,null,null,null,null,null,null,null,null,null,null,null,null,null,null,null,null,null,null,null,null,null,null,null,null,null,null,null,null,null,null,null,null,null,null,null,null,null,null,null,null,null,null,2,27,12,13]
[null,null,null,null,null,null,null,null,null,null,null,null,null,null,null,null,null,null,null,null,null,null,null,null,null,null,null,null,null,406,null,null,null,null,null,null,null,null,null,null,null,null,null,null,null,null,null,null,null,null,null,null,null,null,null,null,null,null,null,null,null,null,null,null,null,null,null,null,null,null,null,null,null,null,null,null,null,null,null,null,null,null,28,29,1,28]
[null,null,null,null,null,null,null,null,null,null,null,null,null,null,null,null,null,null,null,null,null,null,null,null,null,null,null,null,null,407,null,null,null,null,null,null,null,null,null,null,null,null,null,null,null,null,null,null,null,null,null,null,null,null,null,null,null,null,null,null,null,null,null,null,null,null,null,null,null,null,null,null,null,null,null,null,null,null,null,null,null,null,null,null,27,29]
[null,null,null,null,null,null,null,null,null,null,null,null,null,null,null,null,null,null,null,null,null,null,null,null,null,null,null,null,null,408,null,null,null,null,null,null,null,null,null,null,null,null,null,null,null,null,null,null,null,null,null,null,null,null,null,null,null,null,null,null,null,null,null,null,null,null,null,null,null,null,null,null,null,null,null,null,null,null,null,null,null,null,null,null,26,30]
[null,null,null,null,null,null,null,null,null,null,null,null,null,null,null,null,null,null,null,null,null,null,null,null,null,null,null,null,null,409,null,null,null,null,null,null,null,null,null,null,null,null,null,null,null,null,null,null,null,null,null,null,null,null,null,null,null,null,null,null,null,null,null,null,null,null,null,null,null,null,null,null,null,null,null,null,null,null,null,null,null,null,null,null,2,25]
[null,null,null,null,null,null,null,null,null,null,null,null,null,null,null,null,null,null,null,null,null,null,null,null,null,null,null,null,null,410,null,null,null,null,null,null,null,null,null,null,null,null,null,null,null,null,null,null,null,null,null,null,null,null,null,null,null,null,null,null,null,null,null,null,null,null,null,null,null,null,null,null,null,null,null,null,null,null,null,null,null,null,null,null,3,24]
[null,null,null,null,null,null,null,null,null,null,null,null,null,null,null,null,null,null,null,null,null,null,null,null,null,null,null,null,null,411,null,null,null,null,null,null,null,null,null,null,null,null,null,null,null,null,null,null,null,null,null,null,null,null,null,null,null,null,null,null,null,null,null,null,null,null,null,null,null,null,null,null,null,null,null,null,null,null,null,null,null,null,null,null,4,23]
[null,null,null,null,null,null,null,null,null,null,null,null,null,null,null,null,null,null,null,null,null,null,null,null,null,null,null,null,null,412,null,null,null,null,null,null,null,null,null,null,null,null,null,null,null,null,null,null,null,null,null,null,null,null,null,null,null,null,null,null,null,null,null,null,null,null,null,null,null,null,null,null,null,null,null,null,null,null,null,null,null,null,null,null,5,22]
[null,null,null,null,null,null,null,null,null,null,null,null,null,null,null,null,null,null,null,null,null,null,null,null,null,null,null,null,null,413,null,null,null,null,null,null,null,null,null,null,null,null,null,null,null,null,null,null,null,null,null,null,null,null,null,null,null,null,null,null,null,null,null,null,null,null,null,null,null,null,null,null,null,null,null,null,null,null,null,null,null,null,null,null,6,21]
[null,null,null,null,null,null,null,null,null,null,null,null,null,null,null,null,null,null,null,null,null,null,null,null,null,null,null,null,null,414,null,null,null,null,null,null,null,null,null,null,null,null,null,null,null,null,null,null,null,null,null,null,null,null,null,null,null,null,null,null,null,null,null,null,null,null,null,null,null,null,null,null,null,null,null,null,null,null,null,null,null,null,null,null,7,20]
[null,null,null,null,null,null,null,null,null,null,null,null,null,null,null,null,null,null,null,null,null,null,null,null,null,null,null,null,null,415,null,null,null,null,null,null,null,null,null,null,null,null,null,null,null,null,null,null,null,null,null,null,null,null,null,null,null,null,null,null,null,null,null,null,null,null,null,null,null,null,null,null,null,null,null,null,null,null,null,null,null,null,null,null,8,19]
[null,null,null,null,null,null,null,null,null,null,null,null,null,null,null,null,null,null,null,null,null,null,null,null,null,null,null,null,null,416,null,null,null,null,null,null,null,null,null,null,null,null,null,null,null,null,null,null,null,null,null,null,null,null,null,null,null,null,null,null,null,null,null,null,null,null,null,null,null,null,null,null,null,null,null,null,null,null,null,null,null,null,null,null,9,18]
[null,null,null,null,null,null,null,null,null,null,null,null,null,null,null,null,null,null,null,null,null,null,null,null,null,null,null,null,null,417,null,null,null,null,null,null,null,null,null,null,null,null,null,null,null,null,null,null,null,null,null,null,null,null,null,null,null,null,null,null,null,null,null,null,null,null,null,null,null,null,null,null,null,null,null,null,null,null,null,null,null,null,null,null,10,17]
[null,null,null,null,null,null,null,null,null,null,null,null,null,null,null,null,null,null,null,null,null,null,null,null,null,null,null,null,null,418,null,null,null,null,null,null,null,null,null,null,null,null,null,null,null,null,null,null,null,null,null,null,null,null,null,null,null,null,null,null,null,null,null,null,null,null,null,null,null,null,null,null,null,null,null,null,null,null,null,null,null,null,null,null,11,16]
[null,null,null,null,null,null,null,null,null,null,null,null,null,null,null,null,null,null,null,null,null,null,null,null,null,null,null,null,null,419,null,null,null,null,null,null,null,null,null,null,null,null,null,null,null,null,null,null,null,null,null,null,null,null,null,null,null,null,null,null,null,null,null,null,null,null,null,null,null,null,null,null,null,null,null,null,null,null,null,null,null,null,null,null,12,15]
[null,null,null,null,null,null,null,null,null,null,null,null,null,null,null,null,null,null,null,null,null,null,null,null,null,null,null,null,null,420,null,null,null,null,null,null,null,null,null,null,null,null,null,null,null,null,null,null,null,null,null,null,null,null,null,null,null,null,null,null,null,null,null,null,null,null,null,null,null,null,null,null,null,null,null,null,null,null,null,null,null,null,null,null,13,14]
[null,null,null,null,null,null,null,null,null,null,null,null,null,null,null,null,null,null,null,null,null,null,null,null,null,null,null,null,null,421,null,null,null,null,null,null,null,null,null,null,null,null,null,null,null,null,null,null,null,null,null,null,null,null,null,null,null,null,null,null,null,null,null,null,null,null,null,null,null,null,null,null,null,null,null,null,null,null,null,null,null,null,null,null,1,29]
[null,null,null,null,null,null,null,null,null,null,null,null,null,null,null,null,null,null,null,null,null,null,null,null,null,null,null,null,null,422,null,null,null,null,null,null,null,null,null,null,null,null,null,null,null,null,null,null,null,null,null,null,null,null,null,null,null,null,null,null,null,null,null,null,null,null,null,null,null,null,null,null,null,null,null,null,null,null,null,null,null,null,null,null,28,30]
[null,null,null,null,null,null,null,null,null,null,null,null,null,null,null,null,null,null,null,null,null,null,null,null,null,null,null,null,null,423,null,null,null,null,null,null,null,null,null,null,null,null,null,null,null,null,null,null,null,null,null,null,null,null,null,null,null,null,null,null,null,null,null,null,null,null,null,null,null,null,null,null,null,null,null,null,null,null,null,null,null,null,null,null,2,27]
[null,null,null,null,null,null,null,null,null,null,null,null,null,null,null,null,null,null,null,null,null,null,null,null,null,null,null,null,null,424,null,null,null,null,null,null,null,null,null,null,null,null,null,null,null,null,null,null,null,null,null,null,null,null,null,null,null,null,null,null,null,null,null,null,null,null,null,null,null,null,null,null,null,null,null,null,null,null,null,null,null,null,null,null,3,26]
[null,null,null,null,null,null,null,null,null,null,null,null,null,null,null,null,null,null,null,null,null,null,null,null,null,null,null,null,null,425,null,null,null,null,null,null,null,null,null,null,null,null,null,null,null,null,null,null,null,null,null,null,null,null,null,null,null,null,null,null,null,null,null,null,null,null,null,null,null,null,null,null,null,null,null,null,null,null,null,null,null,null,null,null,4,25]
[null,null,null,null,null,null,null,null,null,null,null,null,null,null,null,null,null,null,null,null,null,null,null,null,null,null,null,null,null,426,null,null,null,null,null,null,null,null,null,null,null,null,null,null,null,null,null,null,null,null,null,null,null,null,null,null,null,null,null,null,null,null,null,null,null,null,null,null,null,null,null,null,null,null,null,null,null,null,null,null,null,null,null,null,5,24]
[null,null,null,null,null,null,null,null,null,null,null,null,null,null,null,null,null,null,null,null,null,null,null,null,null,null,null,null,null,427,null,null,null,null,null,null,null,null,null,null,null,null,null,null,null,null,null,null,null,null,null,null,null,null,null,null,null,null,null,null,null,null,null,null,null,null,null,null,null,null,null,null,null,null,null,null,null,null,null,null,null,null,null,null,6,23]
[null,null,null,null,null,null,null,null,null,null,null,null,null,null,null,null,null,null,null,null,null,null,null,null,null,null,null,null,null,428,null,null,null,null,null,null,null,null,null,null,null,null,null,null,null,null,null,null,null,null,null,null,null,null,null,null,null,null,null,null,null,null,null,null,null,null,null,null,null,null,null,null,null,null,null,null,null,null,null,null,null,null,null,null,7,22]
[null,null,null,null,null,null,null,null,null,null,null,null,null,null,null,null,null,null,null,null,null,null,null,null,null,null,null,null,null,429,null,null,null,null,null,null,null,null,null,null,null,null,null,null,null,null,null,null,null,null,null,null,null,null,null,null,null,null,null,null,null,null,null,null,null,null,null,null,null,null,null,null,null,null,null,null,null,null,null,null,null,null,null,null,8,21]
[null,null,null,null,null,null,null,null,null,null,null,null,null,null,null,null,null,null,null,null,null,null,null,null,null,null,null,null,null,430,null,null,null,null,null,null,null,null,null,null,null,null,null,null,null,null,null,null,null,null,null,null,null,null,null,null,null,null,null,null,null,null,null,null,null,null,null,null,null,null,null,null,null,null,null,null,null,null,null,null,null,null,null,null,9,20]
[null,null,null,null,null,null,null,null,null,null,null,null,null,null,null,null,null,null,null,null,null,null,null,null,null,null,null,null,null,431,null,null,null,null,null,null,null,null,null,null,null,null,null,null,null,null,null,null,null,null,null,null,null,null,null,null,null,null,null,null,null,null,null,null,null,null,null,null,null,null,null,null,null,null,null,null,null,null,null,null,null,null,null,null,10,19]
[null,null,null,null,null,null,null,null,null,null,null,null,null,null,null,null,null,null,null,null,null,null,null,null,null,null,null,null,null,432,null,null,null,null,null,null,null,null,null,null,null,null,null,null,null,null,null,null,null,null,null,null,null,null,null,null,null,null,null,null,null,null,null,null,null,null,null,null,null,null,null,null,null,null,null,null,null,null,null,null,null,null,null,null,11,18]
[null,null,null,null,null,null,null,null,null,null,null,null,null,null,null,null,null,null,null,null,null,null,null,null,null,null,null,null,null,433,null,null,null,null,null,null,null,null,null,null,null,null,null,null,null,null,null,null,null,null,null,null,null,null,null,null,null,null,null,null,null,null,null,null,null,null,null,null,null,null,null,null,null,null,null,null,null,null,null,null,null,null,null,null,12,17]
[null,null,null,null,null,null,null,null,null,null,null,null,null,null,null,null,null,null,null,null,null,null,null,null,null,null,null,null,null,434,null,null,null,null,null,null,null,null,null,null,null,null,null,null,null,null,null,null,null,null,null,null,null,null,null,null,null,null,null,null,null,null,null,null,null,null,null,null,null,null,null,null,null,null,null,null,null,null,null,null,null,null,null,null,13,16]
[null,null,null,null,null,null,null,null,null,null,null,null,null,null,null,null,null,null,null,null,null,null,null,null,null,null,null,null,null,435,null,null,null,null,null,null,null,null,null,null,null,null,null,null,null,null,null,null,null,null,null,null,null,null,null,null,null,null,null,null,null,null,null,null,null,null,null,null,null,null,null,null,null,null,null,null,null,null,null,null,null,null,null,null,14,15]

{"sheet":"경기진행표","index":1,"n_rows":9,"n_cols":42,"rows_kept":9,"cut":false,"hidden":true,"merged":[[6,22,7,22],[6,18,7,18],[6,2,7,2],[6,8,7,8],[6,9,7,9],[6,15,7,15],[6,17,7,17],[6,14,7,14],[6,3,7,3],[6,7,7,7],[6,10,7,10],[2,1,2,37],[1,1,1,37],[4,2,4,8],[4,9,4,15],[4,17,4,23],[4,31,4,37],[4,24,4,30],[3,4,3,6],[3,11,3,13],[3,19,3,21],[3,26,3,28],[3,33,3,35],[6,32,7,32],[6,37,7,37],[6,36,7,36],[6,23,7,23],[6,24,7,24],[6,30,7,30],[6,31,7,31],[6,25,7,25],[6,29,7,29]]}
[null,null,null,null,null,null,null,null,null,null,null,null,null,null,null,null,null,null,null,null,null,null,null,null,null,null,null,null,null,null,null,null,null,null,null,null,null,null,null,null,null,1]
[null,"경   기    진   행   표",null,null,null,null,null,null,null,null,null,null,null,null,null,null,null,null,null,null,null,null,null,null,null,null,null,null,null,null,null,null,null,null,null,null,null,null,null,null,null,{"$f":"INDEX($AP$9:$AP$39,AP1)","v":"팀명"}]
[null,"2023 인제군 족구 스포츠 클럽 리그제"]
[]
[null,null,"A     코     트",null,null,null,null,null,null,"B     코     트",null,null,null,null,null,null,"경기","C     코     트",null,null,null,null,null,null,"D     코     트",null,null,null,null,null,null,"E     코     트"]
[]
[null,null,null,{"$f":"IF(AND(E7=\"\",F7=\"\",G7=\"\"),\"\",SUM((E7<>\"\")*(E8<>\"\")*(E7>E8),(F7<>\"\")*(F8<>\"\")*(F7>F8),(G7<>\"\")*(G8<>\"\")*(G7>G8)))","v":""},null,null,null,{"$f":"IF(AND(E8=\"\",F8=\"\",G8=\"\"),\"\",SUM((E7<>\"\")*(E8<>\"\")*(E7<E8),(F7<>\"\")*(F8<>\"\")*(F7<F8),(G7<>\"\")*(G8<>\"\")*(G7<G8)))","v":""},null,null,{"$f":"IF(AND(L7=\"\",M7=\"\",N7=\"\"),\"\",SUM((L7<>\"\")*(L8<>\"\")*(L7>L8),(M7<>\"\")*(M8<>\"\")*(M7>M8),(N7<>\"\")*(N8<>\"\")*(N7>N8)))","v":""},null,null,null,{"$f":"IF(AND(L8=\"\",M8=\"\",N8=\"\"),\"\",SUM((L7<>\"\")*(L8<>\"\")*(L7<L8),(M7<>\"\")*(M8<>\"\")*(M7<M8),(N7<>\"\")*(N8<>\"\")*(N7<N8)))","v":""},null,null,null,{"$f":"IF(AND(T7=\"\",U7=\"\",V7=\"\"),\"\",SUM((T7<>\"\")*(T8<>\"\")*(T7>T8),(U7<>\"\")*(U8<>\"\")*(U7>U8),(V7<>\"\")*(V8<>\"\")*(V7>V8)))","v":""},null,null,null,{"$f":"IF(AND(T8=\"\",U8=\"\",V8=\"\"),\"\",SUM((T7<>\"\")*(T8<>\"\")*(T7<T8),(U7<>\"\")*(U8<>\"\")*(U7<U8),(V7<>\"\")*(V8<>\"\")*(V7<V8)))","v":""},null,null,{"$f":"IF(AND(AA7=\"\",AB7=\"\",AC7=\"\"),\"\",SUM((AA7<>\"\")*(AA8<>\"\")*(AA7>AA8),(AB7<>\"\")*(AB8<>\"\")*(AB7>AB8),(AC7<>\"\")*(AC8<>\"\")*(AC7>AC8)))","v":""},null,null,null,{"$f":"IF(AND(AA8=\"\",AB8=\"\",AC8=\"\"),\"\",SUM((AA7<>\"\")*(AA8<>\"\")*(AA7<AA8),(AB7<>\"\")*(AB8<>\"\")*(AB7<AB8),(AC7<>\"\")*(AC8<>\"\")*(AC7<AC8)))","v":""},null,null,{"$f":"IF(AND(AH7=\"\",AI7=\"\",AJ7=\"\"),\"\",SUM((AH7<>\"\")*(AH8<>\"\")*(AH7>AH8),(AI7<>\"\")*(AI8<>\"\")*(AI7>AI8),(AJ7<>\"\")*(AJ8<>\"\")*(AJ7>AJ8)))","v":""},null,null,null,{"$f":"IF(AND(AH8=\"\",AI8=\"\",AJ8=\"\"),\"\",SUM((AH7<>\"\")*(AH8<>\"\")*(AH7<AH8),(AI7<>\"\")*(AI8<>\"\")*(AI7<AI8),(AJ7<>\"\")*(AJ8<>\"\")*(AJ7<AJ8)))","v":""}]
[]
[null,null,null,null,null,null,null,null,null,null,null,null,null,null,null,null,null,null,null,null,null,null,null,null,null,null,null,null,null,null,null,null,null,null,null,null,null,null,null,null,null,"팀명"]

{"sheet":"순위표","index":2,"n_rows":8,"n_cols":25,"rows_kept":8,"cut":false,"hidden":true,"merged":[[4,24,5,24],[4,12,5,12],[4,13,5,13],[4,20,4,22],[1,1,1,13],[2,1,2,13],[4,1,5,1],[4,2,5,2],[4,3,5,3],[4,4,5,4],[4,5,5,5],[4,6,4,8],[4,9,4,11]]}
[]
[null,"순         위         표",null,null,null,null,null,null,null,null,null,null,null,null,null,null,null,null,{"$f":"IFERROR(MAX((COUNTIF(INDIRECT(\"N10:N\"&팀수+9),INDIRECT(\"N10:N\"&팀수+9))>1)*INDIRECT(\"N10:N\"&팀수+9)),\"\")","v":0}]
[null,"2023 인제군 족구 스포츠 클럽 리그제",null,null,null,null,null,null,null,null,null,null,null,null,null,null,null,null,{"$f":"IF(SUM(S2)=0,\"\",S2&\"등 동 순위 추첨 칸에 순위를 기록.\")","v":""},null,"승자승은 다음에…"]
[]
[null,"번호","팀     명","승","패","승률","세      트",null,null,"점       수",null,null,"추첨","순위",null,null,null,null,"순위",null,"순위",null,null,null,{"$f":"IF(SUM(S2)=0,\"\",S2&\"동순위\")","v":""}]
[null,null,null,null,null,null,"득","실","차","득","실","차",null,null,null,null,null,null,"보조",null,"승률","세트","점수"]
[]
[null,null,null,{"$f":"COUNTIFS(경기진행표!$C$7:$C$450,순위표!$C8,경기진행표!$D$7:$D$450,2)+COUNTIFS(경기진행표!$I$7:$I$450,순위표!$C8,경기진행표!$H$7:$H$450,2)\n+COUNTIFS(경기진행표!$J$7:$J$450,순위표!$C8,경기진행표!$K$7:$K$450,2)+COUNTIFS(경기진행표!$P$7:$P$450,순위표!$C8,경기진행표!$O$7:$O$450,2)\n+COUNTIFS(경기진행표!$R$7:$R$450,순위표!$C8,경기진행표!$S$7:$S$450,2)+COUNTIFS(경기진행표!$X$7:$X$450,순위표!$C8,경기진행표!$W$7:$W$450,2)\n+COUNTIFS(경기진행표!$Y$7:$Y$450,순위표!$C8,경기진행표!$Z$7:$Z$450,2)+COUNTIFS(경기진행표!$AE$7:$AE$450,순위표!$C8,경기진행표!$AD$7:$AD$450,2)\n+COUNTIFS(경기진행표!$AF$7:$AF$450,순위표!$C8,경기진행표!$AG$7:$AG$450,2)+COUNTIFS(경기진행표!$AL$7:$AL$450,순위표!$C8,경기진행표!$AK$7:$AK$450,2)","v":0},{"$f":"COUNTIFS(경기진행표!$C$7:$C$450,순위표!$C8,경기진행표!$D$7:$D$450,\"<\"&2)+COUNTIFS(경기진행표!$I$7:$I$450,순위표!$C8,경기진행표!$H$7:$H$450,\"<\"&2)\n+COUNTIFS(경기진행표!$J$7:$J$450,순위표!$C8,경기진행표!$K$7:$K$450,\"<\"&2)+COUNTIFS(경기진행표!$P$7:$P$450,순위표!$C8,경기진행표!$O$7:$O$450,\"<\"&2)\n+COUNTIFS(경기진행표!$R$7:$R$450,순위표!$C8,경기진행표!$S$7:$S$450,\"<\"&2)+COUNTIFS(경기진행표!$X$7:$X$450,순위표!$C8,경기진행표!$W$7:$W$450,\"<\"&2)\n+COUNTIFS(경기진행표!$Y$7:$Y$450,순위표!$C8,경기진행표!$Z$7:$Z$450,\"<\"&2)+COUNTIFS(경기진행표!$AE$7:$AE$450,순위표!$C8,경기진행표!$AD$7:$AD$450,\"<\"&2)\n+COUNTIFS(경기진행표!$AF$7:$AF$450,순위표!$C8,경기진행표!$AG$7:$AG$450,\"<\"&2)+COUNTIFS(경기진행표!$AL$7:$AL$450,순위표!$C8,경기진행표!$AK$7:$AK$450,\"<\"&2)","v":0},{"$f":"IF(D8=0,0,D8/(D8+E8)*100)","v":0},{"$f":"SUMIF(경기진행표!$C$7:$C$450,순위표!$C8,경기진행표!$D$7:$D$450)+SUMIF(경기진행표!$I$7:$I$450,순위표!$C8,경기진행표!$H$7:$H$450)\n+SUMIF(경기진행표!$J$7:$J$450,순위표!$C8,경기진행표!$K$7:$K$450)+SUMIF(경기진행표!$P$7:$P$450,순위표!$C8,경기진행표!$O$7:$O$450)\n+SUMIF(경기진행표!$R$7:$R$450,순위표!$C8,경기진행표!$S$7:$S$450)+SUMIF(경기진행표!$X$7:$X$450,순위표!$C8,경기진행표!$W$7:$W$450)\n+SUMIF(경기진행표!$Y$7:$Y$450,순위표!$C8,경기진행표!$Z$7:$Z$450)+SUMIF(경기진행표!$AE$7:$AE$450,순위표!$C8,경기진행표!$AD$7:$AD$450)\n+SUMIF(경기진행표!$AF$7:$AF$450,순위표!$C8,경기진행표!$AG$7:$AG$450)+SUMIF(경기진행표!$AL$7:$AL$450,순위표!$C8,경기진행표!$AK$7:$AK$450)","v":0},{"$f":"SUMIF(경기진행표!$C$7:$C$450,순위표!$C8,경기진행표!$H$7:$H$450)+SUMIF(경기진행표!$I$7:$I$450,순위표!$C8,경기진행표!$D$7:$D$450)\n+SUMIF(경기진행표!$J$7:$J$450,순위표!$C8,경기진행표!$O$7:$O$450)+SUMIF(경기진행표!$P$7:$P$450,순위표!$C8,경기진행표!$K$7:$K$450)\n+SUMIF(경기진행표!$R$7:$R$450,순위표!$C8,경기진행표!$W$7:$W$450)+SUMIF(경기진행표!$X$7:$X$450,순위표!$C8,경기진행표!$S$7:$S$450)\n+SUMIF(경기진행표!$Y$7:$Y$450,순위표!$C8,경기진행표!$AD$7:$AD$450)+SUMIF(경기진행표!$AE$7:$AE$450,순위표!$C8,경기진행표!$Z$7:$Z$450)\n+SUMIF(경기진행표!$AF$7:$AF$450,순위표!$C8,경기진행표!$AK$7:$AK$450)+SUMIF(경기진행표!$AL$7:$AL$450,순위표!$C8,경기진행표!$AG$7:$AG$450)","v":0},{"$f":"G8-H8","v":0},{"$f":"SUMIF(경기진행표!$C$7:$C$450,순위표!$C8,경기진행표!$E$7:$G$450) + SUMIF(경기진행표!$I$7:$I$450,순위표!$C8,경기진행표!$E$8:$G$451)\n+SUMIF(경기진행표!J$7:$J$450,순위표!$C8,경기진행표!$L$7:$N$450) + SUMIF(경기진행표!$P$7:$P$450,순위표!$C8,경기진행표!$L$8:$N$451)\n+SUMIF(경기진행표!$R$7:$R$450,순위표!$C8,경기진행표!$T$7:$V$450) + SUMIF(경기진행표!$X$7:$X$450,순위표!$C8,경기진행표!$T$8:$V$451)\n+SUMIF(경기진행표!$Y$7:$Y$450,순위표!$C8,경기진행표!$AA$7:$AC$450) + SUMIF(경기진행표!$AE$7:$AE$450,순위표!$C8,경기진행표!$AA$8:$AC$451)\n+SUMIF(경기진행표!$AF$7:$AF$450,순위표!$C8,경기진행표!$AH$7:$AJ$450) + SUMIF(경기진행표!$AL$7:$AL$450,순위표!$C8,경기진행표!$AH$8:$AJ$451)","v":0},{"$f":"SUMIF(경기진행표!$C$7:$C$450,순위표!$C8,경기진행표!$E$8:$G$451) + SUMIF(경기진행표!$I$7:$I$450,순위표!$C8,경기진행표!$E$7:$G$450)\n+SUMIF(경기진행표!J$7:$J$450,순위표!$C8,경기진행표!$L$8:$N$451) + SUMIF(경기진행표!$P$7:$P$450,순위표!$C8,경기진행표!$L$7:$N$450)\n+SUMIF(경기진행표!$R$7:$R$450,순위표!$C8,경기진행표!$T$8:$V$451) + SUMIF(경기진행표!$X$7:$X$450,순위표!$C8,경기진행표!$T$7:$V$450)\n+SUMIF(경기진행표!$Y$7:$Y$450,순위표!$C8,경기진행표!$AA$8:$AC$451) + SUMIF(경기진행표!$AE$7:$AE$450,순위표!$C8,경기진행표!$AA$7:$AC$450)\n+SUMIF(경기진행표!$AF$7:$AF$450,순위표!$C8,경기진행표!$AH$8:$AJ$451) + SUMIF(경기진행표!$AL$7:$AL$450,순위표!$C8,경기진행표!$AH$7:$AJ$450)","v":0},{"$f":"J8-K8","v":0},null,{"$f":"IF(SUM(D8:E8)=0,\"\",RANK(S8,INDIRECT(\"s10:s\"&COUNTA(팀명)+8),1))","v":""},null,null,null,null,{"$f":"IF(SUM(D8:E8)=0,\"\",U8*10000+V8*100+W8)","v":""},null,{"$f":"IF(SUM(D8:E8)=0,\"\",_xlfn.RANK.EQ(F8,INDIRECT(\"F10:F\"&COUNTA(팀명)+8),0))","v":""},{"$f":"IF(SUM(D8:E8)=0,\"\",_xlfn.RANK.EQ(I8,INDIRECT(\"I10:I\"&COUNTA(팀명)+8),0))","v":""},{"$f":"IF(SUM(D8:E8)=0,\"\",_xlfn.RANK.EQ(L8,INDIRECT(\"L10:L\"&COUNTA(팀명)+8),0))","v":""},null,{"$f":"IF(OR(N8=\"\",COUNTIF(INDIRECT(\"N10:N\"&COUNTA(팀명)+8),N8)=1),\"\",C8)","v":""}]